Workbook

Sheet 2025
A2: Ids | F2: Geom
A3: ID Schuss | B3: ID Spiegel | C3: ID Scheibe | D3: Tag | E3: Punkte (pro Schuss) | F3: Aveg X | G3: Aveg Y
A4: =IF(ISTEXT(A3),1,A3+1) -> 1 | B4: =IF(ISTEXT(A3),1,IF(A3=A2,A3+1,A3)) -> 1 | C4: 141 | D4: 2025-01-07 | E4: 5 | F4: 3 | G4: 5.5
A5: =IF(ISTEXT(A4),1,A4+1) -> 2 | B5: 1 | C5: 141 | D5: 2025-01-07 | E5: 6 | F5: -5 | G5: 1
A6: 3 | B6: 2 | C6: 141 | D6: 2025-01-07 | E6: 9 | F6: 1.5 | G6: -3.5
A7: 4 | B7: 3 | C7: 141 | D7: 2025-01-07 | E7: 7 | F7: 3.5 | G7: 0
A8: 5 | B8: 4 | C8: 141 | D8: 2025-01-07 | E8: 7 | F8: -3.5 | G8: 3
A9: 6 | B9: 5 | C9: 141 | D9: 2025-01-07 | E9: 6 | F9: 2.5 | G9: -4.5
A10: 7 | B10: 6 | C10: 141 | D10: 2025-01-07 | E10: 7 | F10: -3 | G10: 3
A11: 8 | B11: 7 | C11: 141 | D11: 2025-01-07 | E11: 7 | F11: -3.5 | G11: 2.5
A12: =IF(ISTEXT(A11),1,A11+1) -> 9 | B12: 8 | C12: 141 | D12: 2025-01-07 | E12: 10 | F12: 0 | G12: -1
A13: 10 | B13: 9 | C13: 141 | D13: 2025-01-07 | E13: 8 | F13: -1.5 | G13: 3
A14: 11 | B14: 10 | C14: 142 | D14: 2025-01-07 | E14: 8 | F14: -2.5 | G14: -2.5
A15: 12 | B15: 11 | C15: 142 | D15: 2025-01-07 | E15: 7 | F15: -1.5 | G15: 3.5
A16: 13 | B16: 12 | C16: 142 | D16: 2025-01-07 | E16: 9 | F16: -1.5 | G16: 0.5
A17: 14 | B17: 13 | C17: 142 | D17: 2025-01-07 | E17: 7 | F17: 2.5 | G17: 3.5
A18: 15 | B18: 14 | C18: 142 | D18: 2025-01-07 | E18: 5 | F18: -5 | G18: 3.5
A19: 16 | B19: 15 | C19: 142 | D19: 2025-01-07 | E19: 4 | F19: -5.5 | G19: -4.5
A20: 17 | B20: 16 | C20: 142 | D20: 2025-01-07 | E20: 9 | F20: -1.5 | G20: 0.5
A21: 18 | B21: 17 | C21: 142 | D21: 2025-01-07 | E21: 8 | F21: 1.5 | G21: 2.5
A22: 19 | B22: 18 | C22: 142 | D22: 2025-01-07 | E22: 9 | F22: 2 | G22: 0
A23: 20 | B23: 19 | C23: 142 | D23: 2025-01-07 | E23: 5 | F23: -1 | G23: 6
A24: 21 | B24: 20 | C24: 143 | D24: 2025-01-07 | E24: 10 | F24: 0.5 | G24: -1
A25: 22 | B25: 21 | C25: 143 | D25: 2025-01-07 | E25: 8 | F25: 2.5 | G25: 2.5
A26: 23 | B26: 22 | C26: 143 | D26: 2025-01-07 | E26: 7 | F26: 3.5 | G26: 0
A27: 24 | B27: 23 | C27: 143 | D27: 2025-01-07 | E27: 7 | F27: -3.5 | G27: 1.5
A28: 25 | B28: 24 | C28: 143 | D28: 2025-01-07 | E28: 10 | F28: 0 | G28: 1
A29: 26 | B29: 25 | C29: 143 | D29: 2025-01-07 | E29: 6 | F29: 0 | G29: -4.5
A30: 27 | B30: 26 | C30: 143 | D30: 2025-01-07 | E30: 8 | F30: 1.5 | G30: 2.5
A31: 28 | B31: 27 | C31: 143 | D31: 2025-01-07 | E31: 8 | F31: 0 | G31: -3
A32: 29 | B32: 28 | C32: 143 | D32: 2025-01-07 | E32: 9 | F32: 0.5 | G32: 1.5
A33: 30 | B33: 29 | C33: 143 | D33: 2025-01-07 | E33: 8 | F33: 1.5 | G33: 3
A34: 31 | B34: 30 | C34: 144 | D34: 2025-01-07 | E34: 8 | F34: -1.5 | G34: -2.5
A35: 32 | B35: 31 | C35: 144 | D35: 2025-01-07 | E35: 8 | F35: -0.5 | G35: 2.5
A36: 33 | B36: 32 | C36: 144 | D36: 2025-01-07 | E36: 9 | F36: 1.5 | G36: 1.5
A37: 34 | B37: 33 | C37: 144 | D37: 2025-01-07 | E37: 6 | F37: 4 | G37: 3.5
A38: 35 | B38: 34 | C38: 144 | D38: 2025-01-07 | E38: 8 | F38: 3 | G38: -0.5
A39: 36 | B39: 35 | C39: 144 | D39: 2025-01-07 | E39: 7 | F39: -3.5 | G39: -1
A40: 37 | B40: 36 | C40: 144 | D40: 2025-01-07 | E40: 7 | F40: 1.5 | G40: 3.5
A41: 38 | B41: 37 | C41: 144 | D41: 2025-01-07 | E41: 7 | F41: 3.5 | G41: 3.5
A42: 39 | B42: 38 | C42: 144 | D42: 2025-01-07 | E42: 6 | F42: 5 | G42: 0
A43: 40 | B43: 39 | C43: 144 | D43: 2025-01-07 | E43: 6 | F43: 4.5 | G43: 4
A44: 41 | B44: 40 | C44: 145 | D44: 2025-01-07 | E44: 9 | F44: 2 | G44: -1.5
A45: 42 | B45: 41 | C45: 145 | D45: 2025-01-07 | E45: 8 | F45: 2 | G45: 3
A46: 43 | B46: 42 | C46: 145 | D46: 2025-01-07 | E46: 10 | F46: 0.5 | G46: 0.5
A47: 44 | B47: 43 | C47: 145 | D47: 2025-01-07 | E47: 7 | F47: 1.5 | G47: 4
A48: 45 | B48: 44 | C48: 145 | D48: 2025-01-07 | E48: 8 | F48: 1.5 | G48: 2.5
A49: 46 | B49: 45 | C49: 145 | D49: 2025-01-07 | E49: 8 | F49: 0 | G49: 2.5
A50: 47 | B50: 46 | C50: 145 | D50: 2025-01-07 | E50: 8 | F50: -3.5 | G50: 2.5
A51: 48 | B51: 47 | C51: 145 | D51: 2025-01-07 | E51: 7 | F51: 3.5 | G51: 0
A52: 49 | B52: 48 | C52: 145 | D52: 2025-01-07 | E52: 10 | F52: -1 | G52: 1
A53: 50 | B53: 49 | C53: 145 | D53: 2025-01-07 | E53: 10 | F53: 1 | G53: -1
A54: 51 | B54: 50 | C54: 146 | D54: 2025-01-07 | E54: 10 | F54: -1 | G54: -1
A55: 52 | B55: 51 | C55: 146 | D55: 2025-01-07 | E55: 8 | F55: 2.5 | G55: -0.5
A56: 53 | B56: 52 | C56: 146 | D56: 2025-01-07 | E56: 8 | F56: -2 | G56: 2.5
A57: 54 | B57: 53 | C57: 146 | D57: 2025-01-07 | E57: 9 | F57: 1 | G57: 0
A58: 55 | B58: 54 | C58: 146 | D58: 2025-01-07 | E58: 5 | F58: -2.5 | G58: 5.5
A59: 56 | B59: 55 | C59: 146 | D59: 2025-01-07 | E59: 10 | F59: 0.5 | G59: 1
A60: 57 | B60: 56 | C60: 146 | D60: 2025-01-07 | E60: 7 | F60: 2.5 | G60: 3
A61: 58 | B61: 57 | C61: 146 | D61: 2025-01-07 | E61: 8 | F61: -2.5 | G61: -2.5
A62: 59 | B62: 58 | C62: 146 | D62: 2025-01-07 | E62: 8 | F62: -2.5 | G62: -2.5
A63: 60 | B63: 59 | C63: 146 | D63: 2025-01-07 | E63: 4 | F63: 2 | G63: 6.5
A64: 61 | B64: 60 | C64: 147 | D64: 2025-01-14 | E64: 9 | F64: 1.5 | G64: -2
A65: 62 | B65: 61 | C65: 147 | D65: 2025-01-14 | E65: 1 | F65: 9.5 | G65: -3.5
A66: 63 | B66: 62 | C66: 147 | D66: 2025-01-14 | E66: 8 | F66: 2.5 | G66: -1
A67: 64 | B67: 63 | C67: 147 | D67: 2025-01-14 | E67: 6 | F67: -3.5 | G67: 3.5
A68: 65 | B68: =IF(ISTEXT(A67),1,IF(A67=A66,A67+1,A67)) -> 64 | C68: 147 | D68: 2025-01-14 | E68: 8 | F68: -2.5 | G68: -2
A69: 66 | B69: 65 | C69: 147 | D69: 2025-01-14 | E69: 6 | F69: -3.5 | G69: 3.5
A70: 67 | B70: 66 | C70: 147 | D70: 2025-01-14 | E70: 9 | F70: 1.5 | G70: 1
A71: 68 | B71: 67 | C71: 147 | D71: 2025-01-14 | E71: 8 | F71: 0 | G71: 2.5
A72: 69 | B72: 68 | C72: 147 | D72: 2025-01-14 | E72: 7 | F72: 3.5 | G72: -3.5
A73: 70 | B73: 69 | C73: 147 | D73: 2025-01-14 | E73: 5 | F73: 1.5 | G73: -5.5
A74: 71 | B74: 70 | C74: 148 | D74: 2025-01-14 | E74: 9 | F74: 1.5 | G74: 0
A75: 72 | B75: 71 | C75: 148 | D75: 2025-01-14 | E75: 9 | F75: 1.5 | G75: 1
A76: =IF(ISTEXT(A75),1,A75+1) -> 73 | B76: 72 | C76: 148 | D76: 2025-01-14 | E76: 9 | F76: 1.5 | G76: 0.5
A77: 74 | B77: 73 | C77: 148 | D77: 2025-01-14 | E77: 5 | F77: 1.5 | G77: -5.5
A78: 75 | B78: 74 | C78: 148 | D78: 2025-01-14 | E78: 10 | F78: 0.5 | G78: 0
A79: 76 | B79: 75 | C79: 148 | D79: 2025-01-14 | E79: 9 | F79: -1.5 | G79: 1.5
A80: 77 | B80: 76 | C80: 148 | D80: 2025-01-14 | E80: 8 | F80: 0 | G80: 3.5
A81: 78 | B81: 77 | C81: 148 | D81: 2025-01-14 | E81: 7 | F81: -3.5 | G81: 3
A82: 79 | B82: 78 | C82: 148 | D82: 2025-01-14 | E82: 10 | F82: 0 | G82: -0.5
A83: 80 | B83: 79 | C83: 148 | D83: 2025-01-14 | E83: 9 | F83: 0.5 | G83: 1.5
A84: 81 | B84: 80 | C84: 149 | D84: 2025-01-14 | E84: 7 | F84: 2.5 | G84: 3.5
A85: 82 | B85: 81 | C85: 149 | D85: 2025-01-14 | E85: 6 | F85: 3 | G85: -4.5
A86: 83 | B86: 82 | C86: 149 | D86: 2025-01-14 | E86: 9 | F86: 2 | G86: -1.5
A87: 84 | B87: 83 | C87: 149 | D87: 2025-01-14 | E87: 7 | F87: 2.5 | G87: 3.5
A88: 85 | B88: 84 | C88: 149 | D88: 2025-01-14 | E88: 9 | F88: 1.5 | G88: 0.5
A89: 86 | B89: 85 | C89: 149 | D89: 2025-01-14 | E89: 6 | F89: 0.5 | G89: -4.5
A90: 87 | B90: 86 | C90: 149 | D90: 2025-01-14 | E90: 7 | F90: -3.5 | G90: 3.5
A91: 88 | B91: 87 | C91: 149 | D91: 2025-01-14 | E91: 4 | F91: 3.5 | G91: 6.5
A92: 89 | B92: 88 | C92: 149 | D92: 2025-01-14 | E92: 10 | F92: 0 | G92: 0
A93: 90 | B93: 89 | C93: 149 | D93: 2025-01-14 | E93: 7 | F93: -1.5 | G93: -3.5
A94: 91 | B94: 90 | C94: 150 | D94: 2025-01-14 | E94: 8 | F94: 0 | G94: -3
A95: 92 | B95: 91 | C95: 150 | D95: 2025-01-14 | E95: 6 | F95: -4.5 | G95: -3
A96: 93 | B96: 92 | C96: 150 | D96: 2025-01-14 | E96: 8 | F96: 0 | G96: 3
A97: 94 | B97: 93 | C97: 150 | D97: 2025-01-14 | E97: 6 | F97: 1.5 | G97: -4.5
A98: 95 | B98: 94 | C98: 150 | D98: 2025-01-14 | E98: 9 | F98: -1.5 | G98: 1
A99: 96 | B99: 95 | C99: 150 | D99: 2025-01-14 | E99: 7 | F99: -1.5 | G99: 3.5
A100: 97 | B100: 96 | C100: 150 | D100: 2025-01-14 | E100: 10 | F100: 0 | G100: 0
A101: 98 | B101: 97 | C101: 150 | D101: 2025-01-14 | E101: 5 | F101: -2 | G101: -5.5
A102: 99 | B102: 98 | C102: 150 | D102: 2025-01-14 | E102: 8 | F102: -2.5 | G102: -2.5
A103: 100 | B103: 99 | C103: 150 | D103: 2025-01-14 | E103: 4 | F103: -4.5 | G103: -6.5
A104: 101 | B104: 100 | C104: 151 | D104: 2025-01-21 | E104: 8 | F104: -2.5 | G104: -2
A105: 102 | B105: 101 | C105: 151 | D105: 2025-01-21 | E105: 8 | F105: -2.5 | G105: -2
A106: 103 | B106: 102 | C106: 151 | D106: 2025-01-21 | E106: 9 | F106: 1.5 | G106: -1.5
A107: 104 | B107: 103 | C107: 151 | D107: 2025-01-21 | E107: 8 | F107: -2 | G107: 2.5
A108: 105 | B108: 104 | C108: 151 | D108: 2025-01-21 | E108: 7 | F108: -3.5 | G108: -1.5
A109: 106 | B109: 105 | C109: 151 | D109: 2025-01-21 | E109: 7 | F109: 2.5 | G109: -3.5
A110: 107 | B110: 106 | C110: 151 | D110: 2025-01-21 | E110: 8 | F110: 2.5 | G110: -2.5
A111: 108 | B111: 107 | C111: 151 | D111: 2025-01-21 | E111: 8 | F111: -3 | G111: 1
A112: 109 | B112: 108 | C112: 151 | D112: 2025-01-21 | E112: 10 | F112: -0.5 | G112: 0
A113: 110 | B113: 109 | C113: 151 | D113: 2025-01-21 | E113: 7 | F113: -3.5 | G113: 1
A114: 111 | B114: 110 | C114: 152 | D114: 2025-01-21 | E114: 10 | F114: 0 | G114: 0.5
A115: 112 | B115: 111 | C115: 152 | D115: 2025-01-21 | E115: 10 | F115: -0.5 | G115: -0.5
A116: 113 | B116: 112 | C116: 152 | D116: 2025-01-21 | E116: 9 | F116: 0 | G116: 2
A117: 114 | B117: 113 | C117: 152 | D117: 2025-01-21 | E117: 6 | F117: -2 | G117: 5
A118: 115 | B118: 114 | C118: 152 | D118: 2025-01-21 | E118: 7 | F118: 1 | G118: 3.5
A119: 116 | B119: 115 | C119: 152 | D119: 2025-01-21 | E119: 7 | F119: -2.5 | G119: -4
A120: 117 | B120: 116 | C120: 152 | D120: 2025-01-21 | E120: 9 | F120: 1.5 | G120: -1
A121: 118 | B121: 117 | C121: 152 | D121: 2025-01-21 | E121: 7 | F121: -3.5 | G121: 1
A122: 119 | B122: 118 | C122: 152 | D122: 2025-01-21 | E122: 9 | F122: 1.5 | G122: 0
A123: 120 | B123: 119 | C123: 152 | D123: 2025-01-21 | E123: 8 | F123: -2.5 | G123: 2.5
A124: 121 | B124: 120 | C124: 153 | D124: 2025-01-21 | E124: 8 | F124: -2.5 | G124: 2.5
A125: 122 | B125: 121 | C125: 153 | D125: 2025-01-21 | E125: 7 | F125: -3.5 | G125: -3.5
A126: 123 | B126: 122 | C126: 153 | D126: 2025-01-21 | E126: 7 | F126: 3.5 | G126: -2
A127: 124 | B127: 123 | C127: 153 | D127: 2025-01-21 | E127: 9 | F127: 0 | G127: -1.5
A128: 125 | B128: 124 | C128: 153 | D128: 2025-01-21 | E128: 8 | F128: -2.5 | G128: 0
A129: 126 | B129: 125 | C129: 153 | D129: 2025-01-21 | E129: 7 | F129: -2.5 | G129: 4
A130: 127 | B130: 126 | C130: 153 | D130: 2025-01-21 | E130: 9 | F130: 1 | G130: 1.5
A131: 128 | B131: 127 | C131: 153 | D131: 2025-01-21 | E131: 8 | F131: 1 | G131: 2.5
A132: 129 | B132: =IF(ISTEXT(A131),1,IF(A131=A130,A131+1,A131)) -> 128 | C132: 153 | D132: 2025-01-21 | E132: 9 | F132: -0.5 | G132: 1.5
A133: 130 | B133: 129 | C133: 153 | D133: 2025-01-21 | E133: 8 | F133: -2.5 | G133: -2.5
A134: 131 | B134: 130 | C134: 154 | D134: 2025-01-21 | E134: 9 | F134: -0.5 | G134: -2
A135: 132 | B135: 131 | C135: 154 | D135: 2025-01-21 | E135: 6 | F135: -2.5 | G135: 4.5
A136: 133 | B136: 132 | C136: 154 | D136: 2025-01-21 | E136: 10 | F136: 0.5 | G136: -0.5
A137: 134 | B137: 133 | C137: 154 | D137: 2025-01-21 | E137: 10 | F137: 0.5 | G137: -0.5
A138: 135 | B138: 134 | C138: 154 | D138: 2025-01-21 | E138: 8 | F138: -2.5 | G138: -2
A139: 136 | B139: 135 | C139: 154 | D139: 2025-01-21 | E139: 7 | F139: 2.5 | G139: 3.5
A140: =IF(ISTEXT(A139),1,A139+1) -> 137 | B140: 136 | C140: 154 | D140: 2025-01-21 | E140: 7 | F140: 0 | G140: 4
A141: 138 | B141: 137 | C141: 154 | D141: 2025-01-21 | E141: 6 | F141: -4.5 | G141: 0
A142: 139 | B142: 138 | C142: 154 | D142: 2025-01-21 | E142: 8 | F142: -0.5 | G142: -2.5
A143: 140 | B143: 139 | C143: 154 | D143: 2025-01-21 | E143: 8 | F143: -0.5 | G143: -2.5
A144: 141 | B144: 140 | C144: 155 | D144: 2025-01-21 | E144: 9 | F144: 0 | G144: 2.5
A145: 142 | B145: 141 | C145: 155 | D145: 2025-01-21 | E145: 7 | F145: -0.5 | G145: 3.5
A146: 143 | B146: 142 | C146: 155 | D146: 2025-01-21 | E146: 10 | F146: 0 | G146: -0.5
A147: 144 | B147: 143 | C147: 155 | D147: 2025-01-21 | E147: 7 | F147: -2 | G147: -3.5
A148: 145 | B148: 144 | C148: 155 | D148: 2025-01-21 | E148: 9 | F148: -1.5 | G148: 2
A149: 146 | B149: 145 | C149: 155 | D149: 2025-01-21 | E149: 8 | F149: -2.5 | G149: 2
A150: 147 | B150: 146 | C150: 155 | D150: 2025-01-21 | E150: 10 | F150: -1 | G150: 0
A151: 148 | B151: 147 | C151: 155 | D151: 2025-01-21 | E151: 8 | F151: -2.5 | G151: -2.5
A152: 149 | B152: 148 | C152: 155 | D152: 2025-01-21 | E152: 9 | F152: 2 | G152: 0
A153: 150 | B153: 149 | C153: 155 | D153: 2025-01-21 | E153: 7 | F153: -2 | G153: 3.5
A154: 151 | B154: 150 | C154: 156 | D154: 2025-01-21 | E154: 8 | F154: -2.5 | G154: -1
A155: 152 | B155: 151 | C155: 156 | D155: 2025-01-21 | E155: 6 | F155: -4.5 | G155: -3
A156: 153 | B156: 152 | C156: 156 | D156: 2025-01-21 | E156: 9 | F156: -1.5 | G156: -1.5
A157: 154 | B157: 153 | C157: 156 | D157: 2025-01-21 | E157: 7 | F157: 3.5 | G157: 2.5
A158: 155 | B158: 154 | C158: 156 | D158: 2025-01-21 | E158: 10 | F158: -0.5 | G158: 0
A159: 156 | B159: 155 | C159: 156 | D159: 2025-01-21 | E159: 8 | F159: 1.5 | G159: 2.5
A160: 157 | B160: 156 | C160: 156 | D160: 2025-01-21 | E160: 8 | F160: -2 | G160: -2.5
A161: 158 | B161: 157 | C161: 156 | D161: 2025-01-21 | E161: 6 | F161: -0.5 | G161: -6
A162: 159 | B162: 158 | C162: 156 | D162: 2025-01-21 | E162: 9 | F162: 2 | G162: -1.5
A163: 160 | B163: 159 | C163: 156 | D163: 2025-01-21 | E163: 9 | F163: -1 | G163: -1.5
A164: 161 | B164: 160 | C164: 157 | D164: 2025-01-28 | E164: 9 | F164: 0 | G164: 1.5
A165: 162 | B165: 161 | C165: 157 | D165: 2025-01-28 | E165: 8 | F165: 1 | G165: 3
A166: 163 | B166: 162 | C166: 157 | D166: 2025-01-28 | E166: 9 | F166: 1.5 | G166: 0.5
A167: 164 | B167: 163 | C167: 157 | D167: 2025-01-28 | E167: 8 | F167: 1.5 | G167: 0.5
A168: 165 | B168: 164 | C168: 157 | D168: 2025-01-28 | E168: 8 | F168: -2.5 | G168: 2
A169: 166 | B169: 165 | C169: 157 | D169: 2025-01-28 | E169: 7 | F169: -3.5 | G169: -4
A170: 167 | B170: 166 | C170: 157 | D170: 2025-01-28 | E170: 10 | F170: 0 | G170: 0
A171: 168 | B171: 167 | C171: 157 | D171: 2025-01-28 | E171: 7 | F171: -3 | G171: -2.5
A172: 169 | B172: 168 | C172: 157 | D172: 2025-01-28 | E172: 10 | F172: 1.5 | G172: 0.5
A173: 170 | B173: 169 | C173: 157 | D173: 2025-01-28 | E173: 9 | F173: -2 | G173: -1.5
A174: 171 | B174: 170 | C174: 158 | D174: 2025-01-28 | E174: 7 | F174: 1 | G174: 4
A175: 172 | B175: 171 | C175: 158 | D175: 2025-01-28 | E175: 6 | F175: -2.5 | G175: 4.5
A176: 173 | B176: 172 | C176: 158 | D176: 2025-01-28 | E176: 7 | F176: 2.5 | G176: 1.5
A177: 174 | B177: 173 | C177: 158 | D177: 2025-01-28 | E177: 8 | F177: -3 | G177: 2.5
A178: 175 | B178: 174 | C178: 158 | D178: 2025-01-28 | E178: 8 | F178: -2.5 | G178: 2
A179: 176 | B179: 175 | C179: 158 | D179: 2025-01-28 | E179: 6 | F179: 4 | G179: -3.5
A180: 177 | B180: 176 | C180: 158 | D180: 2025-01-28 | E180: 9 | F180: -1.5 | G180: 2
A181: 178 | B181: 177 | C181: 158 | D181: 2025-01-28 | E181: 8 | F181: -2.5 | G181: 1
A182: 179 | B182: 178 | C182: 158 | D182: 2025-01-28 | E182: 10 | F182: 0 | G182: 0.5
A183: 180 | B183: 179 | C183: 158 | D183: 2025-01-28 | E183: 9 | F183: 1.5 | G183: 2
A184: 181 | B184: 180 | C184: 159 | D184: 2025-01-28 | E184: 10 | F184: 0 | G184: -0.5
A185: 182 | B185: 181 | C185: 159 | D185: 2025-01-28 | E185: 8 | F185: 3 | G185: 1.5
A186: 183 | B186: 182 | C186: 159 | D186: 2025-01-28 | E186: 6 | F186: -4.5 | G186: -2
A187: 184 | B187: 183 | C187: 159 | D187: 2025-01-28 | E187: 7 | F187: -2.5 | G187: -2.5
A188: 185 | B188: 184 | C188: 159 | D188: 2025-01-28 | E188: 10 | F188: -1.5 | G188: 0.5
A189: 186 | B189: 185 | C189: 159 | D189: 2025-01-28 | E189: 7 | F189: 3.5 | G189: 1.5
A190: 187 | B190: 186 | C190: 159 | D190: 2025-01-28 | E190: 9 | F190: -1.5 | G190: 1.5
A191: 188 | B191: 187 | C191: 159 | D191: 2025-01-28 | E191: 8 | F191: 2 | G191: 2
A192: 189 | B192: 188 | C192: 159 | D192: 2025-01-28 | E192: 9 | F192: -1 | G192: 2
A193: 190 | B193: 189 | C193: 159 | D193: 2025-01-28 | E193: 7 | F193: 0 | G193: 3.5
A194: 191 | B194: 190 | C194: 160 | D194: 2025-01-28 | E194: 10 | F194: -1 | G194: 0
A195: 192 | B195: 191 | C195: 160 | D195: 2025-01-28 | E195: 9 | F195: -2.5 | G195: -1
A196: 193 | B196: =IF(ISTEXT(A195),1,IF(A195=A194,A195+1,A195)) -> 192 | C196: 160 | D196: 2025-01-28 | E196: 10 | F196: -0.5 | G196: -0.5
A197: 194 | B197: 193 | C197: 160 | D197: 2025-01-28 | E197: 9 | F197: -1.5 | G197: -1.5
A198: 195 | B198: 194 | C198: 160 | D198: 2025-01-28 | E198: 9 | F198: -2 | G198: -1
A199: 196 | B199: 195 | C199: 160 | D199: 2025-01-28 | E199: 9 | F199: -1 | G199: -2
A200: 197 | B200: 196 | C200: 160 | D200: 2025-01-28 | E200: 9 | F200: -1 | G200: -1.5
A201: 198 | B201: 197 | C201: 160 | D201: 2025-01-28 | E201: 8 | F201: 2.5 | G201: 1.5
... 402 more rows

Sheet 2024
A2: Ids | F2: Geom
A3: ID Schuss | B3: ID Spiegel | C3: ID Scheibe | D3: Tag | E3: Punkte (pro Schuss) | F3: Aveg X | G3: Aveg Y
A4: 311 | B4: 156 | C4: 32 | D4: 2024-01-10 | E4: 10 | F4: -1 | G4: -0.5
A5: 312 | B5: 156 | C5: 32 | D5: 2024-01-10 | E5: 10 | F5: -1 | G5: -1
A6: 313 | B6: 157 | C6: 32 | D6: 2024-01-10 | E6: 8 | F6: -3 | G6: -2
A7: 314 | B7: 157 | C7: 32 | D7: 2024-01-10 | E7: 2 | F7: -8.5 | G7: -1
A8: 315 | B8: 158 | C8: 32 | D8: 2024-01-10 | E8: 5 | F8: -5.5 | G8: 1.5
A9: 316 | B9: 158 | C9: 32 | D9: 2024-01-10 | E9: 8 | F9: 2.5 | G9: -2
A10: 317 | B10: 159 | C10: 32 | D10: 2024-01-10 | E10: 10 | F10: 1 | G10: -1
A11: 318 | B11: 159 | C11: 32 | D11: 2024-01-10 | E11: 5 | F11: -6 | G11: -0.5
A12: 319 | B12: 160 | C12: 32 | D12: 2024-01-10 | E12: 8 | F12: 2.5 | G12: 2.5
A13: 320 | B13: 160 | C13: 32 | D13: 2024-01-10 | E13: 2 | F13: -9 | G13: 1.5
A14: 321 | B14: 161 | C14: 33 | D14: 2024-01-10 | E14: 10 | F14: 1 | G14: -0.5
A15: 322 | B15: 161 | C15: 33 | D15: 2024-01-10 | E15: 8 | F15: -3 | G15: 0
A16: 323 | B16: 162 | C16: 33 | D16: 2024-01-10 | E16: 10 | F16: 1.5 | G16: -1.5
A17: 324 | B17: 162 | C17: 33 | D17: 2024-01-10 | E17: 6 | F17: 4.5 | G17: -1
A18: 325 | B18: 163 | C18: 33 | D18: 2024-01-10 | E18: 4 | F18: -6.5 | G18: -2
A19: 326 | B19: 163 | C19: 33 | D19: 2024-01-10 | E19: 5 | F19: -4.5 | G19: -4
A20: 327 | B20: 164 | C20: 33 | D20: 2024-01-10 | E20: 6 | F20: -4.5 | G20: -1
A21: 328 | B21: 164 | C21: 33 | D21: 2024-01-10 | E21: 8 | F21: -0.5 | G21: 3.5
A22: 329 | B22: 165 | C22: 33 | D22: 2024-01-10 | E22: 10 | F22: -0.5 | G22: 0
A23: 330 | B23: 165 | C23: 33 | D23: 2024-01-10 | E23: 6 | F23: -4 | G23: 3
A24: 331 | B24: 166 | C24: 34 | D24: 2024-01-10 | E24: 10 | F24: -1.5 | G24: -1
A25: 332 | B25: 166 | C25: 34 | D25: 2024-01-10 | E25: 9 | F25: 1.5 | G25: -1
A26: 333 | B26: 167 | C26: 34 | D26: 2024-01-10 | E26: 9 | F26: -1 | G26: 2
A27: 334 | B27: 167 | C27: 34 | D27: 2024-01-10 | E27: 9 | F27: 2 | G27: 0
A28: 335 | B28: 168 | C28: 34 | D28: 2024-01-10 | E28: 10 | F28: 1 | G28: 0
A29: 336 | B29: 168 | C29: 34 | D29: 2024-01-10 | E29: 9 | F29: -2 | G29: 0
A30: 337 | B30: 169 | C30: 34 | D30: 2024-01-10 | E30: 8 | F30: -1.5 | G30: -2.5
A31: 338 | B31: 169 | C31: 34 | D31: 2024-01-10 | E31: 7 | F31: -3.5 | G31: -2.5
A32: 339 | B32: 170 | C32: 34 | D32: 2024-01-10 | E32: 7 | F32: -1.5 | G32: 4
A33: 340 | B33: 170 | C33: 34 | D33: 2024-01-10 | E33: 7 | F33: 4 | G33: 3
A34: 341 | B34: 171 | C34: 35 | D34: 2024-01-10 | E34: 6 | F34: 1 | G34: 4.5
A35: 342 | B35: 171 | C35: 35 | D35: 2024-01-10 | E35: 6 | F35: -5 | G35: -1.5
A36: 343 | B36: 172 | C36: 35 | D36: 2024-01-10 | E36: 9 | F36: 1 | G36: 2
A37: 344 | B37: 172 | C37: 35 | D37: 2024-01-10 | E37: 5 | F37: -3.5 | G37: 6
A38: 345 | B38: 173 | C38: 35 | D38: 2024-01-10 | E38: 7 | F38: 1.5 | G38: -4
A39: 346 | B39: 173 | C39: 35 | D39: 2024-01-10 | E39: 7 | F39: -3 | G39: -3
A40: 347 | B40: 174 | C40: 35 | D40: 2024-01-10 | E40: 8 | F40: -2.5 | G40: -0.5
A41: 348 | B41: 174 | C41: 35 | D41: 2024-01-10 | E41: 5 | F41: -6 | G41: 2
A42: 349 | B42: 175 | C42: 35 | D42: 2024-01-10 | E42: 10 | F42: 1.5 | G42: -0.5
A43: 350 | B43: 175 | C43: 35 | D43: 2024-01-10 | E43: 5 | F43: 0 | G43: 6.5
A44: 351 | B44: 176 | C44: 36 | D44: 2024-01-10 | E44: 9 | F44: 0 | G44: 2.5
A45: 352 | B45: 176 | C45: 36 | D45: 2024-01-10 | E45: 9 | F45: -1.5 | G45: 2
A46: 353 | B46: 177 | C46: 36 | D46: 2024-01-10 | E46: 9 | F46: -0.5 | G46: 2
A47: 354 | B47: 177 | C47: 36 | D47: 2024-01-10 | E47: 5 | F47: 4.5 | G47: 3.5
A48: 355 | B48: 178 | C48: 36 | D48: 2024-01-10 | E48: 9 | F48: -2 | G48: 0
A49: 356 | B49: 178 | C49: 36 | D49: 2024-01-10 | E49: 8 | F49: -3 | G49: 1
A50: 357 | B50: 179 | C50: 36 | D50: 2024-01-10 | E50: 9 | F50: -1.5 | G50: 2
A51: 358 | B51: 179 | C51: 36 | D51: 2024-01-10 | E51: 8 | F51: -2.5 | G51: -1.5
A52: 359 | B52: 180 | C52: 36 | D52: 2024-01-10 | E52: 9 | F52: -2 | G52: -1
A53: 360 | B53: 180 | C53: 36 | D53: 2024-01-10 | E53: 8 | F53: 2 | G53: 2
A54: 361 | B54: 181 | C54: 37 | D54: 2024-01-10 | E54: 10 | F54: 1.5 | G54: -0.5
A55: 362 | B55: 181 | C55: 37 | D55: 2024-01-10 | E55: 9 | F55: -2 | G55: 0.5
A56: 363 | B56: 182 | C56: 37 | D56: 2024-01-10 | E56: 3 | F56: -7 | G56: -4.5
A57: 364 | B57: 182 | C57: 37 | D57: 2024-01-10 | E57: 8 | F57: -3.5 | G57: -1
A58: 365 | B58: 183 | C58: 37 | D58: 2024-01-10 | E58: 8 | F58: 2.5 | G58: -1.5
A59: 366 | B59: 183 | C59: 37 | D59: 2024-01-10 | E59: 6 | F59: 3 | G59: 4.5
A60: 367 | B60: 184 | C60: 37 | D60: 2024-01-10 | E60: 9 | F60: -0.5 | G60: 2.5
A61: 368 | B61: 184 | C61: 37 | D61: 2024-01-10 | E61: 6 | F61: -2 | G61: -5
A62: 369 | B62: 185 | C62: 37 | D62: 2024-01-10 | E62: 7 | F62: 3.5 | G62: 1.5
A63: 370 | B63: 185 | C63: 37 | D63: 2024-01-10 | E63: 5 | F63: 4.5 | G63: -4
A64: 371 | B64: 186 | C64: 38 | D64: 2024-01-10 | E64: 8 | F64: -2.5 | G64: 1
A65: 372 | B65: 186 | C65: 38 | D65: 2024-01-10 | E65: 6 | F65: 5 | G65: -0.5
A66: 373 | B66: 187 | C66: 38 | D66: 2024-01-10 | E66: 9 | F66: -2 | G66: -1
A67: 374 | B67: 187 | C67: 38 | D67: 2024-01-10 | E67: 6 | F67: -4.5 | G67: -3
A68: 375 | B68: 188 | C68: 38 | D68: 2024-01-10 | E68: 8 | F68: -1 | G68: 3
A69: 376 | B69: 188 | C69: 38 | D69: 2024-01-10 | E69: 8 | F69: -2.5 | G69: 2
A70: 377 | B70: 189 | C70: 38 | D70: 2024-01-10 | E70: 9 | F70: -1 | G70: 1.5
A71: 378 | B71: 189 | C71: 38 | D71: 2024-01-10 | E71: 5 | F71: -5.5 | G71: 0
A72: 379 | B72: 190 | C72: 38 | D72: 2024-01-10 | E72: 9 | F72: -1.5 | G72: 1.5
A73: 380 | B73: 190 | C73: 38 | D73: 2024-01-10 | E73: 8 | F73: 3 | G73: -2
A74: 381 | B74: 191 | C74: 39 | D74: 2024-01-10 | E74: 9 | F74: -1.5 | G74: 1
A75: 382 | B75: 191 | C75: 39 | D75: 2024-01-10 | E75: 8 | F75: 2 | G75: 3
A76: 383 | B76: 192 | C76: 39 | D76: 2024-01-10 | E76: 6 | F76: 5 | G76: -2
A77: 384 | B77: 192 | C77: 39 | D77: 2024-01-10 | E77: 5 | F77: 5 | G77: -4
A78: 385 | B78: 193 | C78: 39 | D78: 2024-01-10 | E78: 6 | F78: 5.5 | G78: -1
A79: 386 | B79: 193 | C79: 39 | D79: 2024-01-10 | E79: 4 | F79: 6.5 | G79: -2
A80: 387 | B80: 194 | C80: 39 | D80: 2024-01-10 | E80: 6 | F80: 4 | G80: -4
A81: 388 | B81: 194 | C81: 39 | D81: 2024-01-10 | E81: 4 | F81: 7 | G81: -2
A82: 389 | B82: 195 | C82: 39 | D82: 2024-01-10 | E82: 10 | F82: 1.5 | G82: 1
A83: 390 | B83: 195 | C83: 39 | D83: 2024-01-10 | E83: 8 | F83: -1.5 | G83: 3
A84: 391 | B84: 196 | C84: 40 | D84: 2024-01-17 | E84: 8 | F84: 2 | G84: 2.5
A85: 392 | B85: 196 | C85: 40 | D85: 2024-01-17 | E85: 8 | F85: -2.5 | G85: -2
A86: 393 | B86: 197 | C86: 40 | D86: 2024-01-17 | E86: 10 | F86: -1 | G86: 1.5
A87: 394 | B87: 197 | C87: 40 | D87: 2024-01-17 | E87: 5 | F87: 5.5 | G87: 1
A88: 395 | B88: 198 | C88: 40 | D88: 2024-01-17 | E88: 10 | F88: -1 | G88: 1.5
A89: 396 | B89: 198 | C89: 40 | D89: 2024-01-17 | E89: 1 | F89: 8.5 | G89: 6.5
A90: 397 | B90: 199 | C90: 40 | D90: 2024-01-17 | E90: 7 | F90: 4 | G90: -2
A91: 398 | B91: 199 | C91: 40 | D91: 2024-01-17 | E91: 4 | F91: 2.5 | G91: -6.5
A92: 399 | B92: 200 | C92: 40 | D92: 2024-01-17 | E92: 6 | F92: -5 | G92: 2
A93: 400 | B93: 200 | C93: 40 | D93: 2024-01-17 | E93: 7 | F93: 2 | G93: -4
A94: 401 | B94: 201 | C94: 41 | D94: 2024-01-17 | E94: 9 | F94: -1.5 | G94: -0.5
A95: 402 | B95: 201 | C95: 41 | D95: 2024-01-17 | E95: 6 | F95: 4.5 | G95: -2.5
A96: 403 | B96: 202 | C96: 41 | D96: 2024-01-17 | E96: 9 | F96: 2.5 | G96: -1.5
A97: 404 | B97: 202 | C97: 41 | D97: 2024-01-17 | E97: 7 | F97: 4 | G97: 2
A98: 405 | B98: 203 | C98: 41 | D98: 2024-01-17 | E98: 10 | F98: 1 | G98: 1
A99: 406 | B99: 203 | C99: 41 | D99: 2024-01-17 | E99: 7 | F99: 3.5 | G99: 0.5
A100: 407 | B100: 204 | C100: 41 | D100: 2024-01-17 | E100: 5 | F100: -4.5 | G100: 4.5
A101: 408 | B101: 204 | C101: 41 | D101: 2024-01-17 | E101: 6 | F101: 4.5 | G101: 0
A102: 409 | B102: 205 | C102: 41 | D102: 2024-01-17 | E102: 10 | F102: -1 | G102: 0.5
A103: 410 | B103: 205 | C103: 41 | D103: 2024-01-17 | E103: 7 | F103: 3 | G103: 3
A104: 411 | B104: 206 | C104: 42 | D104: 2024-01-17 | E104: 9 | F104: 1 | G104: 1
A105: 412 | B105: 206 | C105: 42 | D105: 2024-01-17 | E105: 8 | F105: 3 | G105: 0.5
A106: 413 | B106: 207 | C106: 42 | D106: 2024-01-17 | E106: 8 | F106: 3 | G106: 1.5
A107: 414 | B107: 207 | C107: 42 | D107: 2024-01-17 | E107: 6 | F107: 4.5 | G107: -2
A108: 415 | B108: 208 | C108: 42 | D108: 2024-01-17 | E108: 9 | F108: -1.5 | G108: 1.5
A109: 416 | B109: 208 | C109: 42 | D109: 2024-01-17 | E109: 8 | F109: -2 | G109: 3
A110: 417 | B110: 209 | C110: 42 | D110: 2024-01-17 | E110: 9 | F110: -1 | G110: 2
A111: 418 | B111: 209 | C111: 42 | D111: 2024-01-17 | E111: 3 | F111: 6.5 | G111: 5
A112: 419 | B112: 210 | C112: 42 | D112: 2024-01-17 | E112: 9 | F112: -2 | G112: 1.5
A113: 420 | B113: 210 | C113: 42 | D113: 2024-01-17 | E113: 8 | F113: 2 | G113: 3
A114: 421 | B114: 211 | C114: 43 | D114: 2024-01-17 | E114: 10 | F114: -1 | G114: 0.5
A115: 422 | B115: 211 | C115: 43 | D115: 2024-01-17 | E115: 9 | F115: -1.5 | G115: -1
A116: 423 | B116: 212 | C116: 43 | D116: 2024-01-17 | E116: 8 | F116: 3 | G116: 1.5
A117: 424 | B117: 212 | C117: 43 | D117: 2024-01-17 | E117: 6 | F117: 1.5 | G117: -4.5
A118: 425 | B118: 213 | C118: 43 | D118: 2024-01-17 | E118: 7 | F118: -0.5 | G118: 3.5
A119: 426 | B119: 213 | C119: 43 | D119: 2024-01-17 | E119: 6 | F119: 2 | G119: 4.5
A120: 427 | B120: 214 | C120: 43 | D120: 2024-01-17 | E120: 8 | F120: -2 | G120: 2.5
A121: 428 | B121: 214 | C121: 43 | D121: 2024-01-17 | E121: 6 | F121: 4.5 | G121: 4
A122: 429 | B122: 215 | C122: 43 | D122: 2024-01-17 | E122: 8 | F122: -2.5 | G122: 2.5
A123: 430 | B123: 215 | C123: 43 | D123: 2024-01-17 | E123: 7 | F123: 3 | G123: 2.5
A124: 431 | B124: 216 | C124: 44 | D124: 2024-01-17 | E124: 8 | F124: 2.5 | G124: -1
A125: 432 | B125: 216 | C125: 44 | D125: 2024-01-17 | E125: 6 | F125: 1 | G125: 4.5
A126: 433 | B126: 217 | C126: 44 | D126: 2024-01-17 | E126: 9 | F126: -1.5 | G126: 2.5
A127: 434 | B127: 217 | C127: 44 | D127: 2024-01-17 | E127: 1 | F127: 9.5 | G127: 1.5
A128: 435 | B128: 218 | C128: 44 | D128: 2024-01-17 | E128: 8 | F128: -0.5 | G128: -2.5
A129: 436 | B129: 218 | C129: 44 | D129: 2024-01-17 | E129: 5 | F129: 4 | G129: 5.5
A130: 437 | B130: 219 | C130: 44 | D130: 2024-01-17 | E130: 10 | F130: -0.5 | G130: 1
A131: 438 | B131: 219 | C131: 44 | D131: 2024-01-17 | E131: 6 | F131: 4.5 | G131: 3
A132: 439 | B132: 220 | C132: 44 | D132: 2024-01-17 | E132: 8 | F132: 0 | G132: -3.5
A133: 440 | B133: 220 | C133: 44 | D133: 2024-01-17 | E133: 5 | F133: -5.5 | G133: 3
A134: 441 | B134: 221 | C134: 45 | D134: 2024-01-17 | E134: 8 | F134: 3 | G134: 1.5
A135: 442 | B135: 221 | C135: 45 | D135: 2024-01-17 | E135: 1 | F135: 5 | G135: 9
A136: 443 | B136: 222 | C136: 45 | D136: 2024-01-17 | E136: 9 | F136: 1.5 | G136: 2
A137: 444 | B137: 222 | C137: 45 | D137: 2024-01-17 | E137: 6 | F137: 3.5 | G137: 3.5
A138: 445 | B138: 223 | C138: 45 | D138: 2024-01-17 | E138: 9 | F138: 1.5 | G138: 1
A139: 446 | B139: 223 | C139: 45 | D139: 2024-01-17 | E139: 8 | F139: 0.5 | G139: 2.5
A140: 447 | B140: 224 | C140: 45 | D140: 2024-01-17 | E140: 5 | F140: 5.5 | G140: 3
A141: 448 | B141: 224 | C141: 45 | D141: 2024-01-17 | E141: 5 | F141: 4.5 | G141: 5
A142: 449 | B142: 225 | C142: 45 | D142: 2024-01-17 | E142: 9 | F142: -1 | G142: -2
A143: 450 | B143: 225 | C143: 45 | D143: 2024-01-17 | E143: 6 | F143: -4.5 | G143: 2
A144: 451 | B144: 226 | C144: 46 | D144: 2024-01-17 | E144: 8 | F144: 0.5 | G144: 3.5
A145: 452 | B145: 226 | C145: 46 | D145: 2024-01-17 | E145: 8 | F145: -3 | G145: -2
A146: 453 | B146: 227 | C146: 46 | D146: 2024-01-17 | E146: 10 | F146: -0.5 | G146: -0.5
A147: 454 | B147: 227 | C147: 46 | D147: 2024-01-17 | E147: 7 | F147: 4 | G147: -1.5
A148: 455 | B148: 228 | C148: 46 | D148: 2024-01-17 | E148: 6 | F148: 1 | G148: 5
A149: 456 | B149: 228 | C149: 46 | D149: 2024-01-17 | E149: 3 | F149: 3.5 | G149: 7.5
A150: 457 | B150: 229 | C150: 46 | D150: 2024-01-17 | E150: 10 | F150: -0.5 | G150: 0.5
A151: 458 | B151: 229 | C151: 46 | D151: 2024-01-17 | E151: 7 | F151: 3 | G151: 3
A152: 459 | B152: 230 | C152: 46 | D152: 2024-01-17 | E152: 7 | F152: 3.5 | G152: 1
A153: 460 | B153: 230 | C153: 46 | D153: 2024-01-17 | E153: 4 | F153: 7 | G153: 1.5
A154: 461 | B154: 231 | C154: 47 | D154: 2024-01-17 | E154: 9 | F154: -1.5 | G154: -2
A155: 462 | B155: 231 | C155: 47 | D155: 2024-01-17 | E155: 8 | F155: -2.5 | G155: 0
A156: 463 | B156: 232 | C156: 47 | D156: 2024-01-17 | E156: 10 | F156: 1 | G156: -1.5
A157: 464 | B157: 232 | C157: 47 | D157: 2024-01-17 | E157: 7 | F157: -3.5 | G157: 0
A158: 465 | B158: 233 | C158: 47 | D158: 2024-01-17 | E158: 7 | F158: 4 | G158: 2
A159: 466 | B159: 233 | C159: 47 | D159: 2024-01-17 | E159: 7 | F159: -2.5 | G159: -3
A160: 467 | B160: 234 | C160: 47 | D160: 2024-01-17 | E160: 10 | F160: -1.5 | G160: -1
A161: 468 | B161: 234 | C161: 47 | D161: 2024-01-17 | E161: 7 | F161: 2.5 | G161: 3
A162: 469 | B162: 235 | C162: 47 | D162: 2024-01-17 | E162: 10 | F162: 1 | G162: 1.5
A163: 470 | B163: 235 | C163: 47 | D163: 2024-01-17 | E163: 10 | F163: -1.5 | G163: 0
A164: 471 | B164: 236 | C164: 48 | D164: 2024-01-24 | E164: 10 | F164: 1.5 | G164: 1
A165: 472 | B165: 236 | C165: 48 | D165: 2024-01-24 | E165: 4 | F165: 7 | G165: -3.5
A166: 473 | B166: 237 | C166: 48 | D166: 2024-01-24 | E166: 5 | F166: -4.5 | G166: 4.5
A167: 474 | B167: 237 | C167: 48 | D167: 2024-01-24 | E167: 5 | F167: -5.5 | G167: 4
A168: 475 | B168: 238 | C168: 48 | D168: 2024-01-24 | E168: 5 | F168: 3.5 | G168: 4.5
A169: 476 | B169: 238 | C169: 48 | D169: 2024-01-24 | E169: 6 | F169: -5.5 | G169: 1
A170: 477 | B170: 239 | C170: 48 | D170: 2024-01-24 | E170: 10 | F170: -1 | G170: 1.5
A171: 478 | B171: 239 | C171: 48 | D171: 2024-01-24 | E171: 5 | F171: -5.5 | G171: -2
A172: 479 | B172: 240 | C172: 48 | D172: 2024-01-24 | E172: 8 | F172: -1.5 | G172: 2.5
A173: 480 | B173: 240 | C173: 48 | D173: 2024-01-24 | E173: 7 | F173: 0.5 | G173: -3.5
A174: 481 | B174: 241 | C174: 49 | D174: 2024-01-24 | E174: 7 | F174: 3.5 | G174: -2
A175: 482 | B175: 241 | C175: 49 | D175: 2024-01-24 | E175: 8 | F175: -1.5 | G175: -2.5
A176: 483 | B176: 242 | C176: 49 | D176: 2024-01-24 | E176: 9 | F176: -2 | G176: -1.5
A177: 484 | B177: 242 | C177: 49 | D177: 2024-01-24 | E177: 8 | F177: -2.5 | G177: -3
A178: 485 | B178: 243 | C178: 49 | D178: 2024-01-24 | E178: 6 | F178: 5 | G178: 2
A179: 486 | B179: 243 | C179: 49 | D179: 2024-01-24 | E179: 6 | F179: 4.5 | G179: -3
A180: 487 | B180: 244 | C180: 49 | D180: 2024-01-24 | E180: 8 | F180: 0.5 | G180: 2.5
A181: 488 | B181: 244 | C181: 49 | D181: 2024-01-24 | E181: 8 | F181: 1.5 | G181: -3
A182: 489 | B182: 245 | C182: 49 | D182: 2024-01-24 | E182: 10 | F182: 1.5 | G182: 0.5
A183: 490 | B183: 245 | C183: 49 | D183: 2024-01-24 | E183: 10 | F183: 1.5 | G183: -1
A184: 491 | B184: 246 | C184: 50 | D184: 2024-01-24 | E184: 6 | F184: -5 | G184: -2.5
A185: 492 | B185: 246 | C185: 50 | D185: 2024-01-24 | E185: 5 | F185: 6 | G185: 1.5
A186: 493 | B186: 247 | C186: 50 | D186: 2024-01-24 | E186: 8 | F186: 2.5 | G186: -1.5
A187: 494 | B187: 247 | C187: 50 | D187: 2024-01-24 | E187: 6 | F187: 4.5 | G187: -2.5
A188: 495 | B188: 248 | C188: 50 | D188: 2024-01-24 | E188: 9 | F188: -1 | G188: -2
A189: 496 | B189: 248 | C189: 50 | D189: 2024-01-24 | E189: 7 | F189: -3.5 | G189: 3
A190: 497 | B190: 249 | C190: 50 | D190: 2024-01-24 | E190: 9 | F190: -1.5 | G190: 1.5
A191: 498 | B191: 249 | C191: 50 | D191: 2024-01-24 | E191: 8 | F191: 1.5 | G191: -3
A192: 499 | B192: 250 | C192: 50 | D192: 2024-01-24 | E192: 8 | F192: -2.5 | G192: 2
A193: 500 | B193: 250 | C193: 50 | D193: 2024-01-24 | E193: 8 | F193: -3 | G193: -1.5
A194: 501 | B194: 251 | C194: 51 | D194: 2024-01-24 | E194: 10 | F194: 0.5 | G194: 1.5
A195: 502 | B195: 251 | C195: 51 | D195: 2024-01-24 | E195: 7 | F195: 3 | G195: 2.5
A196: 503 | B196: 252 | C196: 51 | D196: 2024-01-24 | E196: 10 | F196: -0.5 | G196: 0
A197: 504 | B197: 252 | C197: 51 | D197: 2024-01-24 | E197: 7 | F197: 4 | G197: -2
A198: 505 | B198: 253 | C198: 51 | D198: 2024-01-24 | E198: 10 | F198: -0.5 | G198: 0.5
A199: 506 | B199: 253 | C199: 51 | D199: 2024-01-24 | E199: 6 | F199: 3.5 | G199: 4
A200: 507 | B200: 254 | C200: 51 | D200: 2024-01-24 | E200: 8 | F200: 2 | G200: 2
A201: 508 | B201: 254 | C201: 51 | D201: 2024-01-24 | E201: 7 | F201: -4 | G201: 1.5
... 892 more rows

Sheet 2023
A2: Ids | F2: Geom
A3: ID Schuss | B3: ID Spiegel | C3: ID Scheibe | D3: Tag | E3: Punkte (pro Schuss) | F3: Aveg X | G3: Aveg Y
A4: =IF(ISTEXT(A3),1,A3+1) -> 1 | B4: =IF(ISTEXT(B3),1,IF(B3=B2,B3+1,B3)) -> 1 | C4: 1 | D4: 2023-11-15 | E4: 7 | F4: -2.5 | G4: -3
A5: 2 | B5: 1 | C5: 1 | D5: 2023-11-15 | E5: 0 | F5: -11 | G5: -4
A6: 3 | B6: 2 | C6: 1 | D6: 2023-11-15 | E6: 9 | F6: 1.5 | G6: 2
A7: 4 | B7: 2 | C7: 1 | D7: 2023-11-15 | E7: 6 | F7: -3.5 | G7: 4.5
A8: 5 | B8: 3 | C8: 1 | D8: 2023-11-15 | E8: 10 | F8: 0.5 | G8: -1
A9: 6 | B9: 3 | C9: 1 | D9: 2023-11-15 | E9: 4 | F9: -6.5 | G9: 1
A10: 7 | B10: 4 | C10: 1 | D10: 2023-11-15 | E10: 8 | F10: 2.5 | G10: 1.5
A11: 8 | B11: 4 | C11: 1 | D11: 2023-11-15 | E11: 0 | F11: 12.5 | G11: 6.5
A12: 9 | B12: 5 | C12: 1 | D12: 2023-11-15 | E12: 10 | F12: 0 | G12: -0.5
A13: 10 | B13: 5 | C13: 1 | D13: 2023-11-15 | E13: 6 | F13: -4.5 | G13: 3.5
A14: 11 | B14: 6 | C14: 2 | D14: 2023-11-15 | E14: 7 | F14: -3 | G14: -3.5
A15: 12 | B15: 6 | C15: 2 | D15: 2023-11-15 | E15: 6 | F15: 5 | G15: 0
A16: 13 | B16: 7 | C16: 2 | D16: 2023-11-15 | E16: 0 | F16: -10.5 | G16: -4
A17: 14 | B17: 7 | C17: 2 | D17: 2023-11-15 | E17: 7 | F17: -3.5 | G17: 1.5
A18: 15 | B18: 8 | C18: 2 | D18: 2023-11-15 | E18: 0 | F18: -10.5 | G18: -1
A19: 16 | B19: 8 | C19: 2 | D19: 2023-11-15 | E19: 4 | F19: -1 | G19: -7
A20: 17 | B20: 9 | C20: 2 | D20: 2023-11-15 | E20: 8 | F20: -1 | G20: 2.5
A21: 18 | B21: 9 | C21: 2 | D21: 2023-11-15 | E21: 8 | F21: 2.5 | G21: -1.5
A22: 19 | B22: 10 | C22: 2 | D22: 2023-11-15 | E22: 7 | F22: -1.5 | G22: 4
A23: 20 | B23: 10 | C23: 2 | D23: 2023-11-15 | E23: 6 | F23: -4 | G23: -3
A24: 21 | B24: 11 | C24: 3 | D24: 2023-11-22 | E24: 6 | F24: -4.5 | G24: -1
A25: 22 | B25: 11 | C25: 3 | D25: 2023-11-22 | E25: 7 | F25: 4 | G25: -0.5
A26: 23 | B26: 12 | C26: 3 | D26: 2023-11-22 | E26: 8 | F26: 0 | G26: 2.5
A27: 24 | B27: 12 | C27: 3 | D27: 2023-11-22 | E27: 4 | F27: 6.5 | G27: 4
A28: 25 | B28: 13 | C28: 3 | D28: 2023-11-22 | E28: 8 | F28: 2.5 | G28: -1.5
A29: 26 | B29: 13 | C29: 3 | D29: 2023-11-22 | E29: 7 | F29: -2.5 | G29: -2.5
A30: 27 | B30: 14 | C30: 3 | D30: 2023-11-22 | E30: 7 | F30: -1 | G30: 3.5
A31: 28 | B31: 14 | C31: 3 | D31: 2023-11-22 | E31: 6 | F31: 4.5 | G31: 2.5
A32: 29 | B32: 15 | C32: 3 | D32: 2023-11-22 | E32: 7 | F32: -4 | G32: 0
A33: 30 | B33: 15 | C33: 3 | D33: 2023-11-22 | E33: 7 | F33: -4 | G33: -2.5
A34: 31 | B34: 16 | C34: 4 | D34: 2023-11-22 | E34: 9 | F34: 2.5 | G34: -1.5
A35: 32 | B35: 16 | C35: 4 | D35: 2023-11-22 | E35: 7 | F35: 1.5 | G35: 4
A36: 33 | B36: 17 | C36: 4 | D36: 2023-11-22 | E36: 6 | F36: -5 | G36: -2
A37: 34 | B37: 17 | C37: 4 | D37: 2023-11-22 | E37: 7 | F37: -3 | G37: -2
A38: 35 | B38: 18 | C38: 4 | D38: 2023-11-22 | E38: 6 | F38: 5 | G38: 2
A39: 36 | B39: 18 | C39: 4 | D39: 2023-11-22 | E39: 2 | F39: 8.5 | G39: -3.5
A40: 37 | B40: 19 | C40: 4 | D40: 2023-11-22 | E40: 8 | F40: -2 | G40: 2.5
A41: 38 | B41: 19 | C41: 4 | D41: 2023-11-22 | E41: 10 | F41: -0.5 | G41: -1.5
A42: 39 | B42: 20 | C42: 4 | D42: 2023-11-22 | E42: 4 | F42: -7.5 | G42: 1
A43: 40 | B43: 20 | C43: 4 | D43: 2023-11-22 | E43: 8 | F43: -3 | G43: -0.5
A44: 41 | B44: 21 | C44: 5 | D44: 2023-11-22 | E44: 8 | F44: -1 | G44: 2.5
A45: 42 | B45: 21 | C45: 5 | D45: 2023-11-22 | E45: 8 | F45: 1 | G45: -3
A46: 43 | B46: 22 | C46: 5 | D46: 2023-11-22 | E46: 10 | F46: -1 | G46: 0.5
A47: 44 | B47: 22 | C47: 5 | D47: 2023-11-22 | E47: 10 | F47: -1 | G47: 0.5
A48: 45 | B48: 23 | C48: 5 | D48: 2023-11-22 | E48: 9 | F48: -1.5 | G48: 2
A49: 46 | B49: 23 | C49: 5 | D49: 2023-11-22 | E49: 7 | F49: 3 | G49: 3.5
A50: 47 | B50: 24 | C50: 5 | D50: 2023-11-22 | E50: 9 | F50: 0 | G50: 2
A51: 48 | B51: 24 | C51: 5 | D51: 2023-11-22 | E51: 9 | F51: -1.5 | G51: 2
A52: 49 | B52: 25 | C52: 5 | D52: 2023-11-22 | E52: 9 | F52: -1 | G52: -1.5
A53: 50 | B53: 25 | C53: 5 | D53: 2023-11-22 | E53: 6 | F53: 4.5 | G53: -1.5
A54: 51 | B54: 26 | C54: 6 | D54: 2023-11-22 | E54: 6 | F54: 4.5 | G54: 3
A55: 52 | B55: 26 | C55: 6 | D55: 2023-11-22 | E55: 1 | F55: 10 | G55: 2.5
A56: 53 | B56: 27 | C56: 6 | D56: 2023-11-22 | E56: 5 | F56: 3.5 | G56: 4.5
A57: 54 | B57: 27 | C57: 6 | D57: 2023-11-22 | E57: 8 | F57: 3 | G57: -1.5
A58: 55 | B58: 28 | C58: 6 | D58: 2023-11-22 | E58: 9 | F58: 1.5 | G58: 0.5
A59: 56 | B59: 28 | C59: 6 | D59: 2023-11-22 | E59: 0 | F59: 10.5 | G59: 8
A60: 57 | B60: 29 | C60: 6 | D60: 2023-11-22 | E60: 7 | F60: -3.5 | G60: 2.5
A61: 58 | B61: 29 | C61: 6 | D61: 2023-11-22 | E61: 8 | F61: 2.5 | G61: -2
A62: 59 | B62: 30 | C62: 6 | D62: 2023-11-22 | E62: 3 | F62: -8 | G62: -3.5
A63: 60 | B63: 30 | C63: 6 | D63: 2023-11-22 | E63: 4 | F63: 7 | G63: 2
A64: 61 | B64: 31 | C64: 7 | D64: 2023-11-29 | E64: 8 | F64: 1.5 | G64: 2.5
A65: 62 | B65: 31 | C65: 7 | D65: 2023-11-29 | E65: 6 | F65: 3.5 | G65: 4
A66: 63 | B66: 32 | C66: 7 | D66: 2023-11-29 | E66: 4 | F66: -6.5 | G66: -3.5
A67: 64 | B67: 32 | C67: 7 | D67: 2023-11-29 | E67: 5 | F67: 4 | G67: 5
A68: =IF(ISTEXT(A67),1,A67+1) -> 65 | B68: =IF(ISTEXT(B67),1,IF(B67=B66,B67+1,B67)) -> 33 | C68: 7 | D68: 2023-11-29 | E68: 8 | F68: 1.5 | G68: 3
A69: 66 | B69: 33 | C69: 7 | D69: 2023-11-29 | E69: 6 | F69: 2.5 | G69: -4
A70: 67 | B70: 34 | C70: 7 | D70: 2023-11-29 | E70: 9 | F70: -2 | G70: -0.5
A71: 68 | B71: 34 | C71: 7 | D71: 2023-11-29 | E71: 7 | F71: -4 | G71: -0.5
A72: 69 | B72: 35 | C72: 7 | D72: 2023-11-29 | E72: 8 | F72: 0.5 | G72: 3
A73: 70 | B73: 35 | C73: 7 | D73: 2023-11-29 | E73: 8 | F73: 1 | G73: -3
A74: 71 | B74: 36 | C74: 8 | D74: 2023-11-29 | E74: 4 | F74: 6 | G74: 4
A75: 72 | B75: 36 | C75: 8 | D75: 2023-11-29 | E75: 6 | F75: -4.5 | G75: 1
A76: 73 | B76: 37 | C76: 8 | D76: 2023-11-29 | E76: 9 | F76: 2 | G76: 0.5
A77: 74 | B77: 37 | C77: 8 | D77: 2023-11-29 | E77: 9 | F77: -2 | G77: -1.5
A78: 75 | B78: 38 | C78: 8 | D78: 2023-11-29 | E78: 5 | F78: -5 | G78: 3.5
A79: 76 | B79: 38 | C79: 8 | D79: 2023-11-29 | E79: 5 | F79: 3.5 | G79: -5.5
A80: 77 | B80: 39 | C80: 8 | D80: 2023-11-29 | E80: 10 | F80: 1 | G80: -1
A81: 78 | B81: 39 | C81: 8 | D81: 2023-11-29 | E81: 9 | F81: 3 | G81: 1
A82: 79 | B82: 40 | C82: 8 | D82: 2023-11-29 | E82: 8 | F82: -1.5 | G82: -2.5
A83: 80 | B83: 40 | C83: 8 | D83: 2023-11-29 | E83: 3 | F83: 7.5 | G83: 4
A84: 81 | B84: 41 | C84: 9 | D84: 2023-11-29 | E84: 10 | F84: -0.5 | G84: 1
A85: 82 | B85: 41 | C85: 9 | D85: 2023-11-29 | E85: 5 | F85: 5 | G85: -3
A86: 83 | B86: 42 | C86: 9 | D86: 2023-11-29 | E86: 10 | F86: -0.5 | G86: 1.5
A87: 84 | B87: 42 | C87: 9 | D87: 2023-11-29 | E87: 7 | F87: -2 | G87: 3.5
A88: 85 | B88: 43 | C88: 9 | D88: 2023-11-29 | E88: 9 | F88: 0 | G88: 2
A89: 86 | B89: 43 | C89: 9 | D89: 2023-11-29 | E89: 8 | F89: -3 | G89: 0
A90: 87 | B90: 44 | C90: 9 | D90: 2023-11-29 | E90: 5 | F90: -5.5 | G90: -3
A91: 88 | B91: 44 | C91: 9 | D91: 2023-11-29 | E91: 3 | F91: -8 | G91: 2.5
A92: 89 | B92: 45 | C92: 9 | D92: 2023-11-29 | E92: 7 | F92: 3.5 | G92: 3.5
A93: 90 | B93: 45 | C93: 9 | D93: 2023-11-29 | E93: 7 | F93: 1.5 | G93: -4
A94: 91 | B94: 46 | C94: 10 | D94: 2023-11-29 | E94: 10 | F94: 0.5 | G94: -1
A95: 92 | B95: 46 | C95: 10 | D95: 2023-11-29 | E95: 8 | F95: 3.5 | G95: 1
A96: 93 | B96: 47 | C96: 10 | D96: 2023-11-29 | E96: 10 | F96: 1 | G96: 0.5
A97: 94 | B97: 47 | C97: 10 | D97: 2023-11-29 | E97: 5 | F97: -5 | G97: -3
A98: 95 | B98: 48 | C98: 10 | D98: 2023-11-29 | E98: 9 | F98: -2 | G98: -0.5
A99: 96 | B99: 48 | C99: 10 | D99: 2023-11-29 | E99: 7 | F99: -2.5 | G99: 3
A100: 97 | B100: 49 | C100: 10 | D100: 2023-11-29 | E100: 5 | F100: -2.5 | G100: 6
A101: 98 | B101: 49 | C101: 10 | D101: 2023-11-29 | E101: 10 | F101: -1 | G101: 1
A102: 99 | B102: 50 | C102: 10 | D102: 2023-11-29 | E102: 6 | F102: -1.5 | G102: -4.5
A103: 100 | B103: 50 | C103: 10 | D103: 2023-11-29 | E103: 5 | F103: -5.5 | G103: -2.5
A104: 101 | B104: 51 | C104: 11 | D104: 2023-11-29 | E104: 3 | F104: -6 | G104: 6
A105: 102 | B105: 51 | C105: 11 | D105: 2023-11-29 | E105: 7 | F105: -2.5 | G105: -3.5
A106: 103 | B106: 52 | C106: 11 | D106: 2023-11-29 | E106: 4 | F106: 2 | G106: 6.5
A107: 104 | B107: 52 | C107: 11 | D107: 2023-11-29 | E107: 7 | F107: -1.5 | G107: 4
A108: 105 | B108: 53 | C108: 11 | D108: 2023-11-29 | E108: 7 | F108: -2.5 | G108: 3
A109: 106 | B109: 53 | C109: 11 | D109: 2023-11-29 | E109: 6 | F109: -5 | G109: 0
A110: 107 | B110: 54 | C110: 11 | D110: 2023-11-29 | E110: 9 | F110: -1.5 | G110: -1.5
A111: 108 | B111: 54 | C111: 11 | D111: 2023-11-29 | E111: 6 | F111: -4.5 | G111: -2
A112: 109 | B112: 55 | C112: 11 | D112: 2023-11-29 | E112: 8 | F112: -1 | G112: -2.5
A113: 110 | B113: 55 | C113: 11 | D113: 2023-11-29 | E113: 4 | F113: 3.5 | G113: -6
A114: 111 | B114: 56 | C114: 12 | D114: 2023-11-29 | E114: 5 | F114: 4 | G114: 5.5
A115: 112 | B115: 56 | C115: 12 | D115: 2023-11-29 | E115: 10 | F115: -1 | G115: -1
A116: 113 | B116: 57 | C116: 12 | D116: 2023-11-29 | E116: 5 | F116: 3 | G116: 6
A117: 114 | B117: 57 | C117: 12 | D117: 2023-11-29 | E117: 5 | F117: -1.5 | G117: -5.5
A118: 115 | B118: 58 | C118: 12 | D118: 2023-11-29 | E118: 6 | F118: -4 | G118: -3
A119: 116 | B119: 58 | C119: 12 | D119: 2023-11-29 | E119: 5 | F119: -5.5 | G119: 0.5
A120: 117 | B120: 59 | C120: 12 | D120: 2023-11-29 | E120: 7 | F120: 0.5 | G120: -4
A121: 118 | B121: 59 | C121: 12 | D121: 2023-11-29 | E121: 3 | F121: -1 | G121: -7.5
A122: 119 | B122: 60 | C122: 12 | D122: 2023-11-29 | E122: 10 | F122: -0.5 | G122: 0
A123: 120 | B123: 60 | C123: 12 | D123: 2023-11-29 | E123: 10 | F123: 1.5 | G123: 0
A124: 121 | B124: 61 | C124: 13 | D124: 2023-12-06 | E124: 6 | F124: -4.5 | G124: -3
A125: 122 | B125: 61 | C125: 13 | D125: 2023-12-06 | E125: 7 | F125: 3.5 | G125: 1.5
A126: 123 | B126: 62 | C126: 13 | D126: 2023-12-06 | E126: 6 | F126: -4 | G126: -3
A127: 124 | B127: 62 | C127: 13 | D127: 2023-12-06 | E127: 5 | F127: -5 | G127: -3
A128: 125 | B128: 63 | C128: 13 | D128: 2023-12-06 | E128: 9 | F128: -1.5 | G128: -1
A129: 126 | B129: 63 | C129: 13 | D129: 2023-12-06 | E129: 6 | F129: 2.5 | G129: 4.5
A130: 127 | B130: 64 | C130: 13 | D130: 2023-12-06 | E130: 6 | F130: -1.5 | G130: -4.5
A131: 128 | B131: 64 | C131: 13 | D131: 2023-12-06 | E131: 5 | F131: -2.5 | G131: -5.5
A132: =IF(ISTEXT(A131),1,A131+1) -> 129 | B132: =IF(ISTEXT(B131),1,IF(B131=B130,B131+1,B131)) -> 65 | C132: 13 | D132: 2023-12-06 | E132: 10 | F132: -0.5 | G132: 0
A133: 130 | B133: 65 | C133: 13 | D133: 2023-12-06 | E133: 6 | F133: 4 | G133: -3.5
A134: 131 | B134: 66 | C134: 14 | D134: 2023-12-06 | E134: 10 | F134: 0 | G134: 0.5
A135: 132 | B135: 66 | C135: 14 | D135: 2023-12-06 | E135: 5 | F135: 5 | G135: -4
A136: 133 | B136: 67 | C136: 14 | D136: 2023-12-06 | E136: 9 | F136: -1.5 | G136: -1.5
A137: 134 | B137: 67 | C137: 14 | D137: 2023-12-06 | E137: 7 | F137: -3 | G137: -3
A138: 135 | B138: 68 | C138: 14 | D138: 2023-12-06 | E138: 5 | F138: -5.5 | G138: -4
A139: 136 | B139: 68 | C139: 14 | D139: 2023-12-06 | E139: 0 | F139: 10 | G139: 3.5
A140: 137 | B140: 69 | C140: 14 | D140: 2023-12-06 | E140: 9 | F140: -1.5 | G140: -1
A141: 138 | B141: 69 | C141: 14 | D141: 2023-12-06 | E141: 9 | F141: -1.5 | G141: -2
A142: 139 | B142: 70 | C142: 14 | D142: 2023-12-06 | E142: 7 | F142: -3.5 | G142: -2
A143: 140 | B143: 70 | C143: 14 | D143: 2023-12-06 | E143: 8 | F143: -2.5 | G143: -0.5
A144: 141 | B144: 71 | C144: 15 | D144: 2023-12-06 | E144: 6 | F144: -4.5 | G144: -1.5
A145: 142 | B145: 71 | C145: 15 | D145: 2023-12-06 | E145: 4 | F145: -6.5 | G145: -1
A146: 143 | B146: 72 | C146: 15 | D146: 2023-12-06 | E146: 5 | F146: -5.5 | G146: 3.5
A147: 144 | B147: 72 | C147: 15 | D147: 2023-12-06 | E147: 7 | F147: -2 | G147: -3
A148: 145 | B148: 73 | C148: 15 | D148: 2023-12-06 | E148: 7 | F148: -2.5 | G148: -3
A149: 146 | B149: 73 | C149: 15 | D149: 2023-12-06 | E149: 5 | F149: 6 | G149: -1
A150: 147 | B150: 74 | C150: 15 | D150: 2023-12-06 | E150: 8 | F150: -2 | G150: -2.5
A151: 148 | B151: 74 | C151: 15 | D151: 2023-12-06 | E151: 7 | F151: 2 | G151: -3
A152: 149 | B152: 75 | C152: 15 | D152: 2023-12-06 | E152: 10 | F152: -1 | G152: -1
A153: 150 | B153: 75 | C153: 15 | D153: 2023-12-06 | E153: 8 | F153: -3 | G153: -1
A154: 151 | B154: 76 | C154: 16 | D154: 2023-12-06 | E154: 8 | F154: -2.5 | G154: -1.5
A155: 152 | B155: 76 | C155: 16 | D155: 2023-12-06 | E155: 8 | F155: -1.5 | G155: -3
A156: 153 | B156: 77 | C156: 16 | D156: 2023-12-06 | E156: 4 | F156: 7 | G156: 1
A157: 154 | B157: 77 | C157: 16 | D157: 2023-12-06 | E157: 0 | F157: -16 | G157: -2
A158: 155 | B158: 78 | C158: 16 | D158: 2023-12-06 | E158: 10 | F158: -1 | G158: 0.5
A159: 156 | B159: 78 | C159: 16 | D159: 2023-12-06 | E159: 7 | F159: 3 | G159: 2.5
A160: 157 | B160: 79 | C160: 16 | D160: 2023-12-06 | E160: 9 | F160: -0.5 | G160: -2.5
A161: 158 | B161: 79 | C161: 16 | D161: 2023-12-06 | E161: 7 | F161: 3.5 | G161: -2.5
A162: 159 | B162: 80 | C162: 16 | D162: 2023-12-06 | E162: 5 | F162: 1.5 | G162: -5.5
A163: 160 | B163: 80 | C163: 16 | D163: 2023-12-06 | E163: 0 | F163: 8.5 | G163: 9
A164: 161 | B164: 81 | C164: 17 | D164: 2023-12-06 | E164: 7 | F164: -2.5 | G164: -3
A165: 162 | B165: 81 | C165: 17 | D165: 2023-12-06 | E165: 7 | F165: -1.5 | G165: -4
A166: 163 | B166: 82 | C166: 17 | D166: 2023-12-06 | E166: 7 | F166: -3.5 | G166: 1.5
A167: 164 | B167: 82 | C167: 17 | D167: 2023-12-06 | E167: 7 | F167: -2 | G167: -3.5
A168: 165 | B168: 83 | C168: 17 | D168: 2023-12-06 | E168: 8 | F168: 0.5 | G168: 3.5
A169: 166 | B169: 83 | C169: 17 | D169: 2023-12-06 | E169: 6 | F169: 3 | G169: 4.5
A170: 167 | B170: 84 | C170: 17 | D170: 2023-12-06 | E170: 8 | F170: 2 | G170: 2.5
A171: 168 | B171: 84 | C171: 17 | D171: 2023-12-06 | E171: 5 | F171: 5.5 | G171: 3
A172: 169 | B172: 85 | C172: 17 | D172: 2023-12-06 | E172: 7 | F172: 3.5 | G172: 1
A173: 170 | B173: 85 | C173: 17 | D173: 2023-12-06 | E173: 6 | F173: 4.5 | G173: 0.5
A174: 171 | B174: 86 | C174: 18 | D174: 2023-12-13 | E174: 6 | F174: -1.5 | G174: -5
A175: 172 | B175: 86 | C175: 18 | D175: 2023-12-13 | E175: 5 | F175: -5.5 | G175: -1
A176: 173 | B176: 87 | C176: 18 | D176: 2023-12-13 | E176: 0 | F176: 11.5 | G176: 1.5
A177: 174 | B177: 87 | C177: 18 | D177: 2023-12-13 | E177: 8 | F177: -3 | G177: -1
A178: 175 | B178: 88 | C178: 18 | D178: 2023-12-13 | E178: 7 | F178: 4 | G178: -1
A179: 176 | B179: 88 | C179: 18 | D179: 2023-12-13 | E179: 4 | F179: 4.5 | G179: -5.5
A180: 177 | B180: 89 | C180: 18 | D180: 2023-12-13 | E180: 6 | F180: 5 | G180: 1.5
A181: 178 | B181: 89 | C181: 18 | D181: 2023-12-13 | E181: 4 | F181: 6.5 | G181: -1.5
A182: 179 | B182: 90 | C182: 18 | D182: 2023-12-13 | E182: 6 | F182: 2.5 | G182: -5
A183: 180 | B183: 90 | C183: 18 | D183: 2023-12-13 | E183: 5 | F183: 5 | G183: -4.5
A184: 181 | B184: 91 | C184: 19 | D184: 2023-12-13 | E184: 6 | F184: 5 | G184: 2.5
A185: 182 | B185: 91 | C185: 19 | D185: 2023-12-13 | E185: 6 | F185: -3.5 | G185: -4
A186: 183 | B186: 92 | C186: 19 | D186: 2023-12-13 | E186: 10 | F186: 1.5 | G186: 1.5
A187: 184 | B187: 92 | C187: 19 | D187: 2023-12-13 | E187: 6 | F187: -5 | G187: -1
A188: 185 | B188: 93 | C188: 19 | D188: 2023-12-13 | E188: 7 | F188: -2.5 | G188: -3
A189: 186 | B189: 93 | C189: 19 | D189: 2023-12-13 | E189: 6 | F189: -4.5 | G189: 1
A190: 187 | B190: 94 | C190: 19 | D190: 2023-12-13 | E190: 7 | F190: -3.5 | G190: 1
A191: 188 | B191: 94 | C191: 19 | D191: 2023-12-13 | E191: 7 | F191: 4 | G191: 1.5
A192: 189 | B192: 95 | C192: 19 | D192: 2023-12-13 | E192: 10 | F192: 0.5 | G192: 0.5
A193: 190 | B193: 95 | C193: 19 | D193: 2023-12-13 | E193: 3 | F193: 7.5 | G193: 1
A194: 191 | B194: 96 | C194: 20 | D194: 2023-12-13 | E194: 6 | F194: -5 | G194: -1.5
A195: 192 | B195: 96 | C195: 20 | D195: 2023-12-13 | E195: 10 | F195: 1.5 | G195: 0
A196: =IF(ISTEXT(A195),1,A195+1) -> 193 | B196: =IF(ISTEXT(B195),1,IF(B195=B194,B195+1,B195)) -> 97 | C196: 20 | D196: 2023-12-13 | E196: 8 | F196: -1 | G196: 3
A197: 194 | B197: 97 | C197: 20 | D197: 2023-12-13 | E197: 5 | F197: 5 | G197: -3.5
A198: 195 | B198: 98 | C198: 20 | D198: 2023-12-13 | E198: 10 | F198: 0.5 | G198: 0.5
A199: 196 | B199: 98 | C199: 20 | D199: 2023-12-13 | E199: 5 | F199: 5.5 | G199: -1
A200: 197 | B200: 99 | C200: 20 | D200: 2023-12-13 | E200: 8 | F200: -1.5 | G200: -2.5
A201: 198 | B201: 99 | C201: 20 | D201: 2023-12-13 | E201: 7 | F201: 3.5 | G201: 2.5
... 112 more rows

Sheet Overview

Sheet Pivot_Analysis
H1: Years (Tag) | I1: Quarters (Tag) | J1: Durchschnittliche Nähe Schüsse | K1: Durchschnitt Punkte
H2: 2023 | I2: Qtr4 | J2: 5.918769149 | K2: 6.758064516
A3: Years (Tag) | B3: Quarters (Tag) | C3: Durchschnittliche Punktzahl | D3: Anzahl Schüsse | H3: 2024 | I3: Qtr1 | J3: 4.780562392 | K3: 7.425925926
A4: 2023 | B4: Qtr4 | C4: 6.758064516 | D4: 310 | I4: Qtr4 | J4: 4.75163857 | K4: 7.614545455
A5: 2024 | B5: Qtr1 | C5: 7.425925926 | D5: 540 | H5: 2025 | I5: Qtr1 | J5: 3.828216596 | K5: 8.001666667
B6: Qtr4 | C6: 7.614545455 | D6: 550 | H6: Grand Total | J6: 4.66332665 | K6: 7.547
A7: 2025 | B7: Qtr1 | C7: 8.001666667 | D7: 600
A8: Grand Total | C8: 7.547 | D8: 2000
A12: Months (Tag) | B12: Average of Punkte (pro Schuss) | C12: Count of ID Schuss | E12: Years (Tag) | F12: Average of DistanceFromZero
A13: Jan | B13: 7.591836735 | C13: 490 | E13: 2023 | F13: 4.421577173
A14: Feb | B14: 7.88974359 | C14: 390 | E14: 2024 | F14: 3.605435909
A15: Mar | B15: 7.746153846 | C15: 260 | E15: 2025 | F15: 3.026562574
A16: Oct | B16: 7.033333333 | C16: 30 | E16: Grand Total | F16: 3.558275805
A17: Nov | B17: 7.275 | C17: 400
A18: Dec | B18: 7.353488372 | C18: 430
A19: Grand Total | B19: 7.547 | C19: 2000
A23: Years (Tag) | B23: Quarters (Tag) | C23: Average of Aveg X | D23: Average of Aveg Y | E23: Average of Punkte (pro Schuss)
A24: 2023 | B24: Qtr4 | C24: -0.4241935484 | D24: 0.0935483871 | E24: 6.758064516
A25: 2024 | B25: Qtr1 | C25: 0.2388888889 | D25: 0.5083333333 | E25: 7.425925926
B26: Qtr4 | C26: 0.04 | D26: 0.3090909091 | E26: 7.614545455
A27: 2025 | B27: Qtr1 | C27: 0.2825 | D27: -0.1291666667 | E27: 8.001666667
A28: Grand Total | C28: 0.0945 | D28: 0.198 | E28: 7.547
A31: Months (Tag) | B31: Average of DistanceFromZero | C31: Count of ID Schuss
A32: Jan | B32: 3.522965859 | C32: 490
A33: Feb | B33: 3.197268857 | C33: 390
A34: Mar | B34: 3.265624044 | C34: 260
A35: Oct | B35: 4.150542091 | C35: 30
A36: Nov | B36: 3.840427133 | C36: 400
A37: Dec | B37: 3.799102597 | C37: 430
A38: Grand Total | B38: 3.558275805 | C38: 2000
A40: ID Scheibe | B40: Average of DistanceFromZero
A41: 1 | B41: 5.471056496
A42: 2 | B42: 5.71524009
A43: 3 | B43: 4.27289403
A44: 4 | B44: 4.614620205
A45: 5 | B45: 2.62468924
A46: 6 | B46: 6.306754692
A47: 7 | B47: 4.238351777
A48: 8 | B48: 4.499687498
A49: 9 | B49: 4.142951228
A50: 10 | B50: 3.637290551
A51: 11 | B51: 4.944885962
A52: 12 | B52: 4.474421223
A53: 13 | B53: 4.359776845
A54: 14 | B54: 4.154604484
A55: 15 | B55: 4.281613537
A56: 16 | B56: 5.941928797
A57: 17 | B57: 4.259429463
A58: 18 | B58: 6.100742244
A59: 19 | B59: 4.282601635
A60: 20 | B60: 3.815900305
A61: 21 | B61: 4.006197971
A62: 22 | B62: 3.990201593
A63: 23 | B63: 4.095839086
A64: 24 | B64: 3.545810101
A65: 25 | B65: 3.48955564
A66: 26 | B66: 4.266284081
A67: 27 | B67: 3.258763748
A68: 28 | B68: 3.963269834
A69: 29 | B69: 3.988696692
A70: 30 | B70: 6.018182167
A71: 31 | B71: 4.306651161
A72: 32 | B72: 4.369354801
A73: 33 | B73: 3.731596524
A74: 34 | B74: 2.733025971
A75: 35 | B75: 4.448206192
A76: 36 | B76: 2.840467865
A77: 37 | B77: 4.169156634
A78: 38 | B78: 3.475540214
A79: 39 | B79: 4.76813629
A80: 40 | B80: 4.759294359
A81: 41 | B81: 3.529094898
A82: 42 | B82: 3.50032263
A83: 43 | B83: 3.614130904
A84: 44 | B84: 4.547711057
A85: 45 | B85: 4.560405592
A86: 46 | B86: 4.124439897
A87: 47 | B87: 2.769071254
A88: 48 | B88: 4.819089236
A89: 49 | B89: 3.343274757
A90: 50 | B90: 3.8715046
A91: 51 | B91: 2.961099755
A92: 52 | B92: 4.080520509
A93: 53 | B93: 4.050236412
A94: 54 | B94: 3.786805698
A95: 55 | B95: 2.983508261
A96: 56 | B96: 5.288931232
A97: 57 | B97: 2.961268301
A98: 58 | B98: 3.229337832
A99: 59 | B99: 3.726296659
A100: 60 | B100: 3.406594731
A101: 61 | B101: 3.085542536
A102: 62 | B102: 2.236301256
A103: 63 | B103: 3.655817677
A104: 64 | B104: 3.099878253
A105: 65 | B105: 3.099779275
A106: 66 | B106: 3.08600139
A107: 67 | B107: 4.68070915
A108: 68 | B108: 3.995573411
A109: 69 | B109: 4.240280935
A110: 70 | B110: 4.268787153
A111: 71 | B111: 4.171826206
A112: 72 | B112: 3.063700084
A113: 73 | B113: 4.004837476
A114: 74 | B114: 3.735705747
A115: 75 | B115: 3.471842284
A116: 76 | B116: 5.5676497
A117: 77 | B117: 3.500858459
A118: 78 | B118: 4.333670912
A119: 79 | B119: 3.598201603
A120: 80 | B120: 3.614588717
A121: 81 | B121: 3.953934262
A122: 82 | B122: 3.117231652
A123: 83 | B123: 3.239743224
A124: 84 | B124: 3.340183278
A125: 85 | B125: 2.020215497
A126: 86 | B126: 3.879479205
A127: 87 | B127: 3.362959007
A128: 88 | B128: 5.20918806
A129: 89 | B129: 3.903794471
A130: 90 | B130: 3.239848254
A131: 91 | B131: 3.328461734
A132: 92 | B132: 3.430368966
A133: 93 | B133: 4.191539609
A134: 94 | B134: 3.526213737
A135: 95 | B135: 3.880821349
A136: 96 | B136: 3.437511304
A137: 97 | B137: 2.203933196
A138: 98 | B138: 3.664732731
A139: 99 | B139: 3.196958183
A140: 100 | B140: 3.511906826
A141: 101 | B141: 3.001910307
A142: 102 | B142: 2.995501812
A143: 103 | B143: 4.063408992
A144: 104 | B144: 2.996645421
A145: 105 | B145: 3.976091262
A146: 106 | B146: 4.29238153
A147: 107 | B147: 5.200551342
A148: 108 | B148: 3.784548358
A149: 109 | B149: 2.718388843
A150: 110 | B150: 3.251250585
A151: 111 | B151: 2.71576653
A152: 112 | B152: 2.909491305
A153: 113 | B153: 3.53919721
A154: 114 | B154: 4.069058153
A155: 115 | B155: 3.720057649
A156: 116 | B156: 3.923902666
A157: 117 | B157: 3.174988018
A158: 118 | B158: 2.853287405
A159: 119 | B159: 3.329328383
A160: 120 | B160: 2.747411709
A161: 121 | B161: 5.86482983
A162: 122 | B162: 4.530621816
A163: 123 | B163: 3.315785726
A164: 124 | B164: 3.521509813
A165: 125 | B165: 2.833296522
A166: 126 | B166: 2.998716949
A167: 127 | B167: 3.136103941
A168: 128 | B168: 3.630330914
A169: 129 | B169: 2.95213079
A170: 130 | B170: 4.645442301
A171: 131 | B171: 3.377009752
A172: 132 | B172: 2.686755601
A173: 133 | B173: 3.557227051
A174: 134 | B174: 3.033558783
A175: 135 | B175: 3.706762253
A176: 136 | B176: 3.656227437
A177: 137 | B177: 2.911882032
A178: 138 | B178: 3.224070266
A179: 139 | B179: 3.187668152
A180: 140 | B180: 2.360416849
A181: 141 | B181: 4.13273807
A182: 142 | B182: 3.901471224
A183: 143 | B183: 2.831217119
A184: 144 | B184: 3.936124647
A185: 145 | B185: 2.712972563
A186: 146 | B186: 3.310177032
A187: 147 | B187: 4.337126806
A188: 148 | B188: 2.3397023
A189: 149 | B189: 3.875952913
A190: 150 | B190: 3.905598361
A191: 151 | B191: 3.06729224
A192: 152 | B192: 2.742768159
A193: 153 | B193: 3.084543159
A194: 154 | B194: 2.972532571
A195: 155 | B195: 2.683488768
A196: 156 | B196: 3.146400329
A197: 157 | B197: 2.432745401
A198: 158 | B198: 3.280073891
A199: 159 | B199: 2.83889056
A200: 160 | B200: 1.812561063
A201: 161 | B201: 2.011510201
A202: 162 | B202: 2.849592372
A203: 163 | B203: 3.258568286
A204: 164 | B204: 4.036353523
A205: 165 | B205: 3.264994119
A206: 166 | B206: 3.299937777
A207: 167 | B207: 2.692930052
A208: 168 | B208: 3.039061505
A209: 169 | B209: 2.78019335
... 32 more rows

Sheet Sheet1
A2: Ids | G2: Geom
A3: ID Schuss | B3: ID Spiegel | C3: ID Scheibe | D3: Tag | E3: Jahr | F3: Punkte (pro Schuss) | G3: Aveg X | H3: Aveg Y | I3: DistanceFromZero | J3: DistanceFormPrevShot
A4: =IF(ISTEXT(A3),1,A3+1) -> 1 | B4: =IF(ISTEXT(B3),1,IF(B3=B2,B3+1,B3)) -> 1 | C4: 1 | D4: 2023-11-15 | E4: =YEAR(Table1[[#This Row],[Tag]]) -> 2023 | F4: 7 | G4: -2.5 | H4: -3 | I4: =SQRT( ABS(Table1[[#This Row],[Aveg X]])^2 + ABS(Table1[[#This Row],[Aveg Y]])^2 ) -> 3.905124838 | J4: =IF(Table1[[#This Row],[ID Spiegel]]=B3, SQRT((Table1[[#This Row],[Aveg X]]-G3)^2+(Table1[[#This Row],[Aveg Y]]-H3)^2), "" ) -> 
A5: 2 | B5: 1 | C5: 1 | D5: 2023-11-15 | E5: =YEAR(Table1[[#This Row],[Tag]]) -> 2023 | F5: 0 | G5: -11 | H5: -4 | I5: =SQRT( ABS(Table1[[#This Row],[Aveg X]])^2 + ABS(Table1[[#This Row],[Aveg Y]])^2 ) -> 11.70469991 | J5: =IF(Table1[[#This Row],[ID Spiegel]]=B4, SQRT((Table1[[#This Row],[Aveg X]]-G4)^2+(Table1[[#This Row],[Aveg Y]]-H4)^2), "" ) -> 8.558621384
A6: 3 | B6: 2 | C6: 1 | D6: 2023-11-15 | E6: =YEAR(Table1[[#This Row],[Tag]]) -> 2023 | F6: 9 | G6: 1.5 | H6: 2 | I6: =SQRT( ABS(Table1[[#This Row],[Aveg X]])^2 + ABS(Table1[[#This Row],[Aveg Y]])^2 ) -> 2.5 | J6: =IF(Table1[[#This Row],[ID Spiegel]]=B5, SQRT((Table1[[#This Row],[Aveg X]]-G5)^2+(Table1[[#This Row],[Aveg Y]]-H5)^2), "" ) -> 
A7: 4 | B7: 2 | C7: 1 | D7: 2023-11-15 | E7: =YEAR(Table1[[#This Row],[Tag]]) -> 2023 | F7: 6 | G7: -3.5 | H7: 4.5 | I7: =SQRT( ABS(Table1[[#This Row],[Aveg X]])^2 + ABS(Table1[[#This Row],[Aveg Y]])^2 ) -> 5.700877125 | J7: =IF(Table1[[#This Row],[ID Spiegel]]=B6, SQRT((Table1[[#This Row],[Aveg X]]-G6)^2+(Table1[[#This Row],[Aveg Y]]-H6)^2), "" ) -> 5.590169944
A8: 5 | B8: 3 | C8: 1 | D8: 2023-11-15 | E8: =YEAR(Table1[[#This Row],[Tag]]) -> 2023 | F8: 10 | G8: 0.5 | H8: -1 | I8: =SQRT( ABS(Table1[[#This Row],[Aveg X]])^2 + ABS(Table1[[#This Row],[Aveg Y]])^2 ) -> 1.118033989 | J8: =IF(Table1[[#This Row],[ID Spiegel]]=B7, SQRT((Table1[[#This Row],[Aveg X]]-G7)^2+(Table1[[#This Row],[Aveg Y]]-H7)^2), "" ) -> 
A9: 6 | B9: 3 | C9: 1 | D9: 2023-11-15 | E9: =YEAR(Table1[[#This Row],[Tag]]) -> 2023 | F9: 4 | G9: -6.5 | H9: 1 | I9: =SQRT( ABS(Table1[[#This Row],[Aveg X]])^2 + ABS(Table1[[#This Row],[Aveg Y]])^2 ) -> 6.576473219 | J9: =IF(Table1[[#This Row],[ID Spiegel]]=B8, SQRT((Table1[[#This Row],[Aveg X]]-G8)^2+(Table1[[#This Row],[Aveg Y]]-H8)^2), "" ) -> 7.280109889
A10: 7 | B10: 4 | C10: 1 | D10: 2023-11-15 | E10: =YEAR(Table1[[#This Row],[Tag]]) -> 2023 | F10: 8 | G10: 2.5 | H10: 1.5 | I10: =SQRT( ABS(Table1[[#This Row],[Aveg X]])^2 + ABS(Table1[[#This Row],[Aveg Y]])^2 ) -> 2.915475947 | J10: =IF(Table1[[#This Row],[ID Spiegel]]=B9, SQRT((Table1[[#This Row],[Aveg X]]-G9)^2+(Table1[[#This Row],[Aveg Y]]-H9)^2), "" ) -> 
A11: 8 | B11: 4 | C11: 1 | D11: 2023-11-15 | E11: =YEAR(Table1[[#This Row],[Tag]]) -> 2023 | F11: 0 | G11: 12.5 | H11: 6.5 | I11: =SQRT( ABS(Table1[[#This Row],[Aveg X]])^2 + ABS(Table1[[#This Row],[Aveg Y]])^2 ) -> 14.0890028 | J11: =IF(Table1[[#This Row],[ID Spiegel]]=B10, SQRT((Table1[[#This Row],[Aveg X]]-G10)^2+(Table1[[#This Row],[Aveg Y]]-H10)^2), "" ) -> 11.18033989
A12: 9 | B12: 5 | C12: 1 | D12: 2023-11-15 | E12: =YEAR(Table1[[#This Row],[Tag]]) -> 2023 | F12: 10 | G12: 0 | H12: -0.5 | I12: =SQRT( ABS(Table1[[#This Row],[Aveg X]])^2 + ABS(Table1[[#This Row],[Aveg Y]])^2 ) -> 0.5 | J12: =IF(Table1[[#This Row],[ID Spiegel]]=B11, SQRT((Table1[[#This Row],[Aveg X]]-G11)^2+(Table1[[#This Row],[Aveg Y]]-H11)^2), "" ) -> 
A13: 10 | B13: 5 | C13: 1 | D13: 2023-11-15 | E13: =YEAR(Table1[[#This Row],[Tag]]) -> 2023 | F13: 6 | G13: -4.5 | H13: 3.5 | I13: =SQRT( ABS(Table1[[#This Row],[Aveg X]])^2 + ABS(Table1[[#This Row],[Aveg Y]])^2 ) -> 5.700877125 | J13: =IF(Table1[[#This Row],[ID Spiegel]]=B12, SQRT((Table1[[#This Row],[Aveg X]]-G12)^2+(Table1[[#This Row],[Aveg Y]]-H12)^2), "" ) -> 6.020797289
A14: 11 | B14: 6 | C14: 2 | D14: 2023-11-15 | E14: =YEAR(Table1[[#This Row],[Tag]]) -> 2023 | F14: 7 | G14: -3 | H14: -3.5 | I14: =SQRT( ABS(Table1[[#This Row],[Aveg X]])^2 + ABS(Table1[[#This Row],[Aveg Y]])^2 ) -> 4.609772229 | J14: =IF(Table1[[#This Row],[ID Spiegel]]=B13, SQRT((Table1[[#This Row],[Aveg X]]-G13)^2+(Table1[[#This Row],[Aveg Y]]-H13)^2), "" ) -> 
A15: 12 | B15: 6 | C15: 2 | D15: 2023-11-15 | E15: =YEAR(Table1[[#This Row],[Tag]]) -> 2023 | F15: 6 | G15: 5 | H15: 0 | I15: =SQRT( ABS(Table1[[#This Row],[Aveg X]])^2 + ABS(Table1[[#This Row],[Aveg Y]])^2 ) -> 5 | J15: =IF(Table1[[#This Row],[ID Spiegel]]=B14, SQRT((Table1[[#This Row],[Aveg X]]-G14)^2+(Table1[[#This Row],[Aveg Y]]-H14)^2), "" ) -> 8.732124598
A16: 13 | B16: 7 | C16: 2 | D16: 2023-11-15 | E16: =YEAR(Table1[[#This Row],[Tag]]) -> 2023 | F16: 0 | G16: -10.5 | H16: -4 | I16: =SQRT( ABS(Table1[[#This Row],[Aveg X]])^2 + ABS(Table1[[#This Row],[Aveg Y]])^2 ) -> 11.23610253 | J16: =IF(Table1[[#This Row],[ID Spiegel]]=B15, SQRT((Table1[[#This Row],[Aveg X]]-G15)^2+(Table1[[#This Row],[Aveg Y]]-H15)^2), "" ) -> 
A17: 14 | B17: 7 | C17: 2 | D17: 2023-11-15 | E17: =YEAR(Table1[[#This Row],[Tag]]) -> 2023 | F17: 7 | G17: -3.5 | H17: 1.5 | I17: =SQRT( ABS(Table1[[#This Row],[Aveg X]])^2 + ABS(Table1[[#This Row],[Aveg Y]])^2 ) -> 3.807886553 | J17: =IF(Table1[[#This Row],[ID Spiegel]]=B16, SQRT((Table1[[#This Row],[Aveg X]]-G16)^2+(Table1[[#This Row],[Aveg Y]]-H16)^2), "" ) -> 8.902246907
A18: 15 | B18: 8 | C18: 2 | D18: 2023-11-15 | E18: =YEAR(Table1[[#This Row],[Tag]]) -> 2023 | F18: 0 | G18: -10.5 | H18: -1 | I18: =SQRT( ABS(Table1[[#This Row],[Aveg X]])^2 + ABS(Table1[[#This Row],[Aveg Y]])^2 ) -> 10.54751155 | J18: =IF(Table1[[#This Row],[ID Spiegel]]=B17, SQRT((Table1[[#This Row],[Aveg X]]-G17)^2+(Table1[[#This Row],[Aveg Y]]-H17)^2), "" ) -> 
A19: 16 | B19: 8 | C19: 2 | D19: 2023-11-15 | E19: =YEAR(Table1[[#This Row],[Tag]]) -> 2023 | F19: 4 | G19: -1 | H19: -7 | I19: =SQRT( ABS(Table1[[#This Row],[Aveg X]])^2 + ABS(Table1[[#This Row],[Aveg Y]])^2 ) -> 7.071067812 | J19: =IF(Table1[[#This Row],[ID Spiegel]]=B18, SQRT((Table1[[#This Row],[Aveg X]]-G18)^2+(Table1[[#This Row],[Aveg Y]]-H18)^2), "" ) -> 11.23610253
A20: 17 | B20: 9 | C20: 2 | D20: 2023-11-15 | E20: =YEAR(Table1[[#This Row],[Tag]]) -> 2023 | F20: 8 | G20: -1 | H20: 2.5 | I20: =SQRT( ABS(Table1[[#This Row],[Aveg X]])^2 + ABS(Table1[[#This Row],[Aveg Y]])^2 ) -> 2.692582404 | J20: =IF(Table1[[#This Row],[ID Spiegel]]=B19, SQRT((Table1[[#This Row],[Aveg X]]-G19)^2+(Table1[[#This Row],[Aveg Y]]-H19)^2), "" ) -> 
A21: 18 | B21: 9 | C21: 2 | D21: 2023-11-15 | E21: =YEAR(Table1[[#This Row],[Tag]]) -> 2023 | F21: 8 | G21: 2.5 | H21: -1.5 | I21: =SQRT( ABS(Table1[[#This Row],[Aveg X]])^2 + ABS(Table1[[#This Row],[Aveg Y]])^2 ) -> 2.915475947 | J21: =IF(Table1[[#This Row],[ID Spiegel]]=B20, SQRT((Table1[[#This Row],[Aveg X]]-G20)^2+(Table1[[#This Row],[Aveg Y]]-H20)^2), "" ) -> 5.315072906
A22: 19 | B22: 10 | C22: 2 | D22: 2023-11-15 | E22: =YEAR(Table1[[#This Row],[Tag]]) -> 2023 | F22: 7 | G22: -1.5 | H22: 4 | I22: =SQRT( ABS(Table1[[#This Row],[Aveg X]])^2 + ABS(Table1[[#This Row],[Aveg Y]])^2 ) -> 4.272001873 | J22: =IF(Table1[[#This Row],[ID Spiegel]]=B21, SQRT((Table1[[#This Row],[Aveg X]]-G21)^2+(Table1[[#This Row],[Aveg Y]]-H21)^2), "" ) -> 
A23: 20 | B23: 10 | C23: 2 | D23: 2023-11-15 | E23: =YEAR(Table1[[#This Row],[Tag]]) -> 2023 | F23: 6 | G23: -4 | H23: -3 | I23: =SQRT( ABS(Table1[[#This Row],[Aveg X]])^2 + ABS(Table1[[#This Row],[Aveg Y]])^2 ) -> 5 | J23: =IF(Table1[[#This Row],[ID Spiegel]]=B22, SQRT((Table1[[#This Row],[Aveg X]]-G22)^2+(Table1[[#This Row],[Aveg Y]]-H22)^2), "" ) -> 7.433034374
A24: 21 | B24: 11 | C24: 3 | D24: 2023-11-22 | E24: =YEAR(Table1[[#This Row],[Tag]]) -> 2023 | F24: 6 | G24: -4.5 | H24: -1 | I24: =SQRT( ABS(Table1[[#This Row],[Aveg X]])^2 + ABS(Table1[[#This Row],[Aveg Y]])^2 ) -> 4.609772229 | J24: =IF(Table1[[#This Row],[ID Spiegel]]=B23, SQRT((Table1[[#This Row],[Aveg X]]-G23)^2+(Table1[[#This Row],[Aveg Y]]-H23)^2), "" ) -> 
A25: 22 | B25: 11 | C25: 3 | D25: 2023-11-22 | E25: =YEAR(Table1[[#This Row],[Tag]]) -> 2023 | F25: 7 | G25: 4 | H25: -0.5 | I25: =SQRT( ABS(Table1[[#This Row],[Aveg X]])^2 + ABS(Table1[[#This Row],[Aveg Y]])^2 ) -> 4.031128874 | J25: =IF(Table1[[#This Row],[ID Spiegel]]=B24, SQRT((Table1[[#This Row],[Aveg X]]-G24)^2+(Table1[[#This Row],[Aveg Y]]-H24)^2), "" ) -> 8.514693183
A26: 23 | B26: 12 | C26: 3 | D26: 2023-11-22 | E26: =YEAR(Table1[[#This Row],[Tag]]) -> 2023 | F26: 8 | G26: 0 | H26: 2.5 | I26: =SQRT( ABS(Table1[[#This Row],[Aveg X]])^2 + ABS(Table1[[#This Row],[Aveg Y]])^2 ) -> 2.5 | J26: =IF(Table1[[#This Row],[ID Spiegel]]=B25, SQRT((Table1[[#This Row],[Aveg X]]-G25)^2+(Table1[[#This Row],[Aveg Y]]-H25)^2), "" ) -> 
A27: 24 | B27: 12 | C27: 3 | D27: 2023-11-22 | E27: =YEAR(Table1[[#This Row],[Tag]]) -> 2023 | F27: 4 | G27: 6.5 | H27: 4 | I27: =SQRT( ABS(Table1[[#This Row],[Aveg X]])^2 + ABS(Table1[[#This Row],[Aveg Y]])^2 ) -> 7.632168761 | J27: =IF(Table1[[#This Row],[ID Spiegel]]=B26, SQRT((Table1[[#This Row],[Aveg X]]-G26)^2+(Table1[[#This Row],[Aveg Y]]-H26)^2), "" ) -> 6.670832032
A28: 25 | B28: 13 | C28: 3 | D28: 2023-11-22 | E28: =YEAR(Table1[[#This Row],[Tag]]) -> 2023 | F28: 8 | G28: 2.5 | H28: -1.5 | I28: =SQRT( ABS(Table1[[#This Row],[Aveg X]])^2 + ABS(Table1[[#This Row],[Aveg Y]])^2 ) -> 2.915475947 | J28: =IF(Table1[[#This Row],[ID Spiegel]]=B27, SQRT((Table1[[#This Row],[Aveg X]]-G27)^2+(Table1[[#This Row],[Aveg Y]]-H27)^2), "" ) -> 
A29: 26 | B29: 13 | C29: 3 | D29: 2023-11-22 | E29: =YEAR(Table1[[#This Row],[Tag]]) -> 2023 | F29: 7 | G29: -2.5 | H29: -2.5 | I29: =SQRT( ABS(Table1[[#This Row],[Aveg X]])^2 + ABS(Table1[[#This Row],[Aveg Y]])^2 ) -> 3.535533906 | J29: =IF(Table1[[#This Row],[ID Spiegel]]=B28, SQRT((Table1[[#This Row],[Aveg X]]-G28)^2+(Table1[[#This Row],[Aveg Y]]-H28)^2), "" ) -> 5.099019514
A30: 27 | B30: 14 | C30: 3 | D30: 2023-11-22 | E30: =YEAR(Table1[[#This Row],[Tag]]) -> 2023 | F30: 7 | G30: -1 | H30: 3.5 | I30: =SQRT( ABS(Table1[[#This Row],[Aveg X]])^2 + ABS(Table1[[#This Row],[Aveg Y]])^2 ) -> 3.640054945 | J30: =IF(Table1[[#This Row],[ID Spiegel]]=B29, SQRT((Table1[[#This Row],[Aveg X]]-G29)^2+(Table1[[#This Row],[Aveg Y]]-H29)^2), "" ) -> 
A31: 28 | B31: 14 | C31: 3 | D31: 2023-11-22 | E31: =YEAR(Table1[[#This Row],[Tag]]) -> 2023 | F31: 6 | G31: 4.5 | H31: 2.5 | I31: =SQRT( ABS(Table1[[#This Row],[Aveg X]])^2 + ABS(Table1[[#This Row],[Aveg Y]])^2 ) -> 5.14781507 | J31: =IF(Table1[[#This Row],[ID Spiegel]]=B30, SQRT((Table1[[#This Row],[Aveg X]]-G30)^2+(Table1[[#This Row],[Aveg Y]]-H30)^2), "" ) -> 5.590169944
A32: 29 | B32: 15 | C32: 3 | D32: 2023-11-22 | E32: =YEAR(Table1[[#This Row],[Tag]]) -> 2023 | F32: 7 | G32: -4 | H32: 0 | I32: =SQRT( ABS(Table1[[#This Row],[Aveg X]])^2 + ABS(Table1[[#This Row],[Aveg Y]])^2 ) -> 4 | J32: =IF(Table1[[#This Row],[ID Spiegel]]=B31, SQRT((Table1[[#This Row],[Aveg X]]-G31)^2+(Table1[[#This Row],[Aveg Y]]-H31)^2), "" ) -> 
A33: 30 | B33: 15 | C33: 3 | D33: 2023-11-22 | E33: =YEAR(Table1[[#This Row],[Tag]]) -> 2023 | F33: 7 | G33: -4 | H33: -2.5 | I33: =SQRT( ABS(Table1[[#This Row],[Aveg X]])^2 + ABS(Table1[[#This Row],[Aveg Y]])^2 ) -> 4.716990566 | J33: =IF(Table1[[#This Row],[ID Spiegel]]=B32, SQRT((Table1[[#This Row],[Aveg X]]-G32)^2+(Table1[[#This Row],[Aveg Y]]-H32)^2), "" ) -> 2.5
A34: 31 | B34: 16 | C34: 4 | D34: 2023-11-22 | E34: =YEAR(Table1[[#This Row],[Tag]]) -> 2023 | F34: 9 | G34: 2.5 | H34: -1.5 | I34: =SQRT( ABS(Table1[[#This Row],[Aveg X]])^2 + ABS(Table1[[#This Row],[Aveg Y]])^2 ) -> 2.915475947 | J34: =IF(Table1[[#This Row],[ID Spiegel]]=B33, SQRT((Table1[[#This Row],[Aveg X]]-G33)^2+(Table1[[#This Row],[Aveg Y]]-H33)^2), "" ) -> 
A35: 32 | B35: 16 | C35: 4 | D35: 2023-11-22 | E35: =YEAR(Table1[[#This Row],[Tag]]) -> 2023 | F35: 7 | G35: 1.5 | H35: 4 | I35: =SQRT( ABS(Table1[[#This Row],[Aveg X]])^2 + ABS(Table1[[#This Row],[Aveg Y]])^2 ) -> 4.272001873 | J35: =IF(Table1[[#This Row],[ID Spiegel]]=B34, SQRT((Table1[[#This Row],[Aveg X]]-G34)^2+(Table1[[#This Row],[Aveg Y]]-H34)^2), "" ) -> 5.590169944
A36: 33 | B36: 17 | C36: 4 | D36: 2023-11-22 | E36: =YEAR(Table1[[#This Row],[Tag]]) -> 2023 | F36: 6 | G36: -5 | H36: -2 | I36: =SQRT( ABS(Table1[[#This Row],[Aveg X]])^2 + ABS(Table1[[#This Row],[Aveg Y]])^2 ) -> 5.385164807 | J36: =IF(Table1[[#This Row],[ID Spiegel]]=B35, SQRT((Table1[[#This Row],[Aveg X]]-G35)^2+(Table1[[#This Row],[Aveg Y]]-H35)^2), "" ) -> 
A37: 34 | B37: 17 | C37: 4 | D37: 2023-11-22 | E37: =YEAR(Table1[[#This Row],[Tag]]) -> 2023 | F37: 7 | G37: -3 | H37: -2 | I37: =SQRT( ABS(Table1[[#This Row],[Aveg X]])^2 + ABS(Table1[[#This Row],[Aveg Y]])^2 ) -> 3.605551275 | J37: =IF(Table1[[#This Row],[ID Spiegel]]=B36, SQRT((Table1[[#This Row],[Aveg X]]-G36)^2+(Table1[[#This Row],[Aveg Y]]-H36)^2), "" ) -> 2
A38: 35 | B38: 18 | C38: 4 | D38: 2023-11-22 | E38: =YEAR(Table1[[#This Row],[Tag]]) -> 2023 | F38: 6 | G38: 5 | H38: 2 | I38: =SQRT( ABS(Table1[[#This Row],[Aveg X]])^2 + ABS(Table1[[#This Row],[Aveg Y]])^2 ) -> 5.385164807 | J38: =IF(Table1[[#This Row],[ID Spiegel]]=B37, SQRT((Table1[[#This Row],[Aveg X]]-G37)^2+(Table1[[#This Row],[Aveg Y]]-H37)^2), "" ) -> 
A39: 36 | B39: 18 | C39: 4 | D39: 2023-11-22 | E39: =YEAR(Table1[[#This Row],[Tag]]) -> 2023 | F39: 2 | G39: 8.5 | H39: -3.5 | I39: =SQRT( ABS(Table1[[#This Row],[Aveg X]])^2 + ABS(Table1[[#This Row],[Aveg Y]])^2 ) -> 9.192388155 | J39: =IF(Table1[[#This Row],[ID Spiegel]]=B38, SQRT((Table1[[#This Row],[Aveg X]]-G38)^2+(Table1[[#This Row],[Aveg Y]]-H38)^2), "" ) -> 6.519202405
A40: 37 | B40: 19 | C40: 4 | D40: 2023-11-22 | E40: =YEAR(Table1[[#This Row],[Tag]]) -> 2023 | F40: 8 | G40: -2 | H40: 2.5 | I40: =SQRT( ABS(Table1[[#This Row],[Aveg X]])^2 + ABS(Table1[[#This Row],[Aveg Y]])^2 ) -> 3.201562119 | J40: =IF(Table1[[#This Row],[ID Spiegel]]=B39, SQRT((Table1[[#This Row],[Aveg X]]-G39)^2+(Table1[[#This Row],[Aveg Y]]-H39)^2), "" ) -> 
A41: 38 | B41: 19 | C41: 4 | D41: 2023-11-22 | E41: =YEAR(Table1[[#This Row],[Tag]]) -> 2023 | F41: 10 | G41: -0.5 | H41: -1.5 | I41: =SQRT( ABS(Table1[[#This Row],[Aveg X]])^2 + ABS(Table1[[#This Row],[Aveg Y]])^2 ) -> 1.58113883 | J41: =IF(Table1[[#This Row],[ID Spiegel]]=B40, SQRT((Table1[[#This Row],[Aveg X]]-G40)^2+(Table1[[#This Row],[Aveg Y]]-H40)^2), "" ) -> 4.272001873
A42: 39 | B42: 20 | C42: 4 | D42: 2023-11-22 | E42: =YEAR(Table1[[#This Row],[Tag]]) -> 2023 | F42: 4 | G42: -7.5 | H42: 1 | I42: =SQRT( ABS(Table1[[#This Row],[Aveg X]])^2 + ABS(Table1[[#This Row],[Aveg Y]])^2 ) -> 7.566372975 | J42: =IF(Table1[[#This Row],[ID Spiegel]]=B41, SQRT((Table1[[#This Row],[Aveg X]]-G41)^2+(Table1[[#This Row],[Aveg Y]]-H41)^2), "" ) -> 
A43: 40 | B43: 20 | C43: 4 | D43: 2023-11-22 | E43: =YEAR(Table1[[#This Row],[Tag]]) -> 2023 | F43: 8 | G43: -3 | H43: -0.5 | I43: =SQRT( ABS(Table1[[#This Row],[Aveg X]])^2 + ABS(Table1[[#This Row],[Aveg Y]])^2 ) -> 3.041381265 | J43: =IF(Table1[[#This Row],[ID Spiegel]]=B42, SQRT((Table1[[#This Row],[Aveg X]]-G42)^2+(Table1[[#This Row],[Aveg Y]]-H42)^2), "" ) -> 4.74341649
A44: 41 | B44: 21 | C44: 5 | D44: 2023-11-22 | E44: =YEAR(Table1[[#This Row],[Tag]]) -> 2023 | F44: 8 | G44: -1 | H44: 2.5 | I44: =SQRT( ABS(Table1[[#This Row],[Aveg X]])^2 + ABS(Table1[[#This Row],[Aveg Y]])^2 ) -> 2.692582404 | J44: =IF(Table1[[#This Row],[ID Spiegel]]=B43, SQRT((Table1[[#This Row],[Aveg X]]-G43)^2+(Table1[[#This Row],[Aveg Y]]-H43)^2), "" ) -> 
A45: 42 | B45: 21 | C45: 5 | D45: 2023-11-22 | E45: =YEAR(Table1[[#This Row],[Tag]]) -> 2023 | F45: 8 | G45: 1 | H45: -3 | I45: =SQRT( ABS(Table1[[#This Row],[Aveg X]])^2 + ABS(Table1[[#This Row],[Aveg Y]])^2 ) -> 3.16227766 | J45: =IF(Table1[[#This Row],[ID Spiegel]]=B44, SQRT((Table1[[#This Row],[Aveg X]]-G44)^2+(Table1[[#This Row],[Aveg Y]]-H44)^2), "" ) -> 5.852349955
A46: 43 | B46: 22 | C46: 5 | D46: 2023-11-22 | E46: =YEAR(Table1[[#This Row],[Tag]]) -> 2023 | F46: 10 | G46: -1 | H46: 0.5 | I46: =SQRT( ABS(Table1[[#This Row],[Aveg X]])^2 + ABS(Table1[[#This Row],[Aveg Y]])^2 ) -> 1.118033989 | J46: =IF(Table1[[#This Row],[ID Spiegel]]=B45, SQRT((Table1[[#This Row],[Aveg X]]-G45)^2+(Table1[[#This Row],[Aveg Y]]-H45)^2), "" ) -> 
A47: 44 | B47: 22 | C47: 5 | D47: 2023-11-22 | E47: =YEAR(Table1[[#This Row],[Tag]]) -> 2023 | F47: 10 | G47: -1 | H47: 0.5 | I47: =SQRT( ABS(Table1[[#This Row],[Aveg X]])^2 + ABS(Table1[[#This Row],[Aveg Y]])^2 ) -> 1.118033989 | J47: =IF(Table1[[#This Row],[ID Spiegel]]=B46, SQRT((Table1[[#This Row],[Aveg X]]-G46)^2+(Table1[[#This Row],[Aveg Y]]-H46)^2), "" ) -> 0
A48: 45 | B48: 23 | C48: 5 | D48: 2023-11-22 | E48: =YEAR(Table1[[#This Row],[Tag]]) -> 2023 | F48: 9 | G48: -1.5 | H48: 2 | I48: =SQRT( ABS(Table1[[#This Row],[Aveg X]])^2 + ABS(Table1[[#This Row],[Aveg Y]])^2 ) -> 2.5 | J48: =IF(Table1[[#This Row],[ID Spiegel]]=B47, SQRT((Table1[[#This Row],[Aveg X]]-G47)^2+(Table1[[#This Row],[Aveg Y]]-H47)^2), "" ) -> 
A49: 46 | B49: 23 | C49: 5 | D49: 2023-11-22 | E49: =YEAR(Table1[[#This Row],[Tag]]) -> 2023 | F49: 7 | G49: 3 | H49: 3.5 | I49: =SQRT( ABS(Table1[[#This Row],[Aveg X]])^2 + ABS(Table1[[#This Row],[Aveg Y]])^2 ) -> 4.609772229 | J49: =IF(Table1[[#This Row],[ID Spiegel]]=B48, SQRT((Table1[[#This Row],[Aveg X]]-G48)^2+(Table1[[#This Row],[Aveg Y]]-H48)^2), "" ) -> 4.74341649
A50: 47 | B50: 24 | C50: 5 | D50: 2023-11-22 | E50: =YEAR(Table1[[#This Row],[Tag]]) -> 2023 | F50: 9 | G50: 0 | H50: 2 | I50: =SQRT( ABS(Table1[[#This Row],[Aveg X]])^2 + ABS(Table1[[#This Row],[Aveg Y]])^2 ) -> 2 | J50: =IF(Table1[[#This Row],[ID Spiegel]]=B49, SQRT((Table1[[#This Row],[Aveg X]]-G49)^2+(Table1[[#This Row],[Aveg Y]]-H49)^2), "" ) -> 
A51: 48 | B51: 24 | C51: 5 | D51: 2023-11-22 | E51: =YEAR(Table1[[#This Row],[Tag]]) -> 2023 | F51: 9 | G51: -1.5 | H51: 2 | I51: =SQRT( ABS(Table1[[#This Row],[Aveg X]])^2 + ABS(Table1[[#This Row],[Aveg Y]])^2 ) -> 2.5 | J51: =IF(Table1[[#This Row],[ID Spiegel]]=B50, SQRT((Table1[[#This Row],[Aveg X]]-G50)^2+(Table1[[#This Row],[Aveg Y]]-H50)^2), "" ) -> 1.5
A52: 49 | B52: 25 | C52: 5 | D52: 2023-11-22 | E52: =YEAR(Table1[[#This Row],[Tag]]) -> 2023 | F52: 9 | G52: -1 | H52: -1.5 | I52: =SQRT( ABS(Table1[[#This Row],[Aveg X]])^2 + ABS(Table1[[#This Row],[Aveg Y]])^2 ) -> 1.802775638 | J52: =IF(Table1[[#This Row],[ID Spiegel]]=B51, SQRT((Table1[[#This Row],[Aveg X]]-G51)^2+(Table1[[#This Row],[Aveg Y]]-H51)^2), "" ) -> 
A53: 50 | B53: 25 | C53: 5 | D53: 2023-11-22 | E53: =YEAR(Table1[[#This Row],[Tag]]) -> 2023 | F53: 6 | G53: 4.5 | H53: -1.5 | I53: =SQRT( ABS(Table1[[#This Row],[Aveg X]])^2 + ABS(Table1[[#This Row],[Aveg Y]])^2 ) -> 4.74341649 | J53: =IF(Table1[[#This Row],[ID Spiegel]]=B52, SQRT((Table1[[#This Row],[Aveg X]]-G52)^2+(Table1[[#This Row],[Aveg Y]]-H52)^2), "" ) -> 5.5
A54: 51 | B54: 26 | C54: 6 | D54: 2023-11-22 | E54: =YEAR(Table1[[#This Row],[Tag]]) -> 2023 | F54: 6 | G54: 4.5 | H54: 3 | I54: =SQRT( ABS(Table1[[#This Row],[Aveg X]])^2 + ABS(Table1[[#This Row],[Aveg Y]])^2 ) -> 5.408326913 | J54: =IF(Table1[[#This Row],[ID Spiegel]]=B53, SQRT((Table1[[#This Row],[Aveg X]]-G53)^2+(Table1[[#This Row],[Aveg Y]]-H53)^2), "" ) -> 
A55: 52 | B55: 26 | C55: 6 | D55: 2023-11-22 | E55: =YEAR(Table1[[#This Row],[Tag]]) -> 2023 | F55: 1 | G55: 10 | H55: 2.5 | I55: =SQRT( ABS(Table1[[#This Row],[Aveg X]])^2 + ABS(Table1[[#This Row],[Aveg Y]])^2 ) -> 10.30776406 | J55: =IF(Table1[[#This Row],[ID Spiegel]]=B54, SQRT((Table1[[#This Row],[Aveg X]]-G54)^2+(Table1[[#This Row],[Aveg Y]]-H54)^2), "" ) -> 5.522680509
A56: 53 | B56: 27 | C56: 6 | D56: 2023-11-22 | E56: =YEAR(Table1[[#This Row],[Tag]]) -> 2023 | F56: 5 | G56: 3.5 | H56: 4.5 | I56: =SQRT( ABS(Table1[[#This Row],[Aveg X]])^2 + ABS(Table1[[#This Row],[Aveg Y]])^2 ) -> 5.700877125 | J56: =IF(Table1[[#This Row],[ID Spiegel]]=B55, SQRT((Table1[[#This Row],[Aveg X]]-G55)^2+(Table1[[#This Row],[Aveg Y]]-H55)^2), "" ) -> 
A57: 54 | B57: 27 | C57: 6 | D57: 2023-11-22 | E57: =YEAR(Table1[[#This Row],[Tag]]) -> 2023 | F57: 8 | G57: 3 | H57: -1.5 | I57: =SQRT( ABS(Table1[[#This Row],[Aveg X]])^2 + ABS(Table1[[#This Row],[Aveg Y]])^2 ) -> 3.354101966 | J57: =IF(Table1[[#This Row],[ID Spiegel]]=B56, SQRT((Table1[[#This Row],[Aveg X]]-G56)^2+(Table1[[#This Row],[Aveg Y]]-H56)^2), "" ) -> 6.020797289
A58: 55 | B58: 28 | C58: 6 | D58: 2023-11-22 | E58: =YEAR(Table1[[#This Row],[Tag]]) -> 2023 | F58: 9 | G58: 1.5 | H58: 0.5 | I58: =SQRT( ABS(Table1[[#This Row],[Aveg X]])^2 + ABS(Table1[[#This Row],[Aveg Y]])^2 ) -> 1.58113883 | J58: =IF(Table1[[#This Row],[ID Spiegel]]=B57, SQRT((Table1[[#This Row],[Aveg X]]-G57)^2+(Table1[[#This Row],[Aveg Y]]-H57)^2), "" ) -> 
A59: 56 | B59: 28 | C59: 6 | D59: 2023-11-22 | E59: =YEAR(Table1[[#This Row],[Tag]]) -> 2023 | F59: 0 | G59: 10.5 | H59: 8 | I59: =SQRT( ABS(Table1[[#This Row],[Aveg X]])^2 + ABS(Table1[[#This Row],[Aveg Y]])^2 ) -> 13.20037878 | J59: =IF(Table1[[#This Row],[ID Spiegel]]=B58, SQRT((Table1[[#This Row],[Aveg X]]-G58)^2+(Table1[[#This Row],[Aveg Y]]-H58)^2), "" ) -> 11.71537451
A60: 57 | B60: 29 | C60: 6 | D60: 2023-11-22 | E60: =YEAR(Table1[[#This Row],[Tag]]) -> 2023 | F60: 7 | G60: -3.5 | H60: 2.5 | I60: =SQRT( ABS(Table1[[#This Row],[Aveg X]])^2 + ABS(Table1[[#This Row],[Aveg Y]])^2 ) -> 4.301162634 | J60: =IF(Table1[[#This Row],[ID Spiegel]]=B59, SQRT((Table1[[#This Row],[Aveg X]]-G59)^2+(Table1[[#This Row],[Aveg Y]]-H59)^2), "" ) -> 
A61: 58 | B61: 29 | C61: 6 | D61: 2023-11-22 | E61: =YEAR(Table1[[#This Row],[Tag]]) -> 2023 | F61: 8 | G61: 2.5 | H61: -2 | I61: =SQRT( ABS(Table1[[#This Row],[Aveg X]])^2 + ABS(Table1[[#This Row],[Aveg Y]])^2 ) -> 3.201562119 | J61: =IF(Table1[[#This Row],[ID Spiegel]]=B60, SQRT((Table1[[#This Row],[Aveg X]]-G60)^2+(Table1[[#This Row],[Aveg Y]]-H60)^2), "" ) -> 7.5
A62: 59 | B62: 30 | C62: 6 | D62: 2023-11-22 | E62: =YEAR(Table1[[#This Row],[Tag]]) -> 2023 | F62: 3 | G62: -8 | H62: -3.5 | I62: =SQRT( ABS(Table1[[#This Row],[Aveg X]])^2 + ABS(Table1[[#This Row],[Aveg Y]])^2 ) -> 8.732124598 | J62: =IF(Table1[[#This Row],[ID Spiegel]]=B61, SQRT((Table1[[#This Row],[Aveg X]]-G61)^2+(Table1[[#This Row],[Aveg Y]]-H61)^2), "" ) -> 
A63: 60 | B63: 30 | C63: 6 | D63: 2023-11-22 | E63: =YEAR(Table1[[#This Row],[Tag]]) -> 2023 | F63: 4 | G63: 7 | H63: 2 | I63: =SQRT( ABS(Table1[[#This Row],[Aveg X]])^2 + ABS(Table1[[#This Row],[Aveg Y]])^2 ) -> 7.280109889 | J63: =IF(Table1[[#This Row],[ID Spiegel]]=B62, SQRT((Table1[[#This Row],[Aveg X]]-G62)^2+(Table1[[#This Row],[Aveg Y]]-H62)^2), "" ) -> 15.97654531
A64: 61 | B64: 31 | C64: 7 | D64: 2023-11-29 | E64: =YEAR(Table1[[#This Row],[Tag]]) -> 2023 | F64: 8 | G64: 1.5 | H64: 2.5 | I64: =SQRT( ABS(Table1[[#This Row],[Aveg X]])^2 + ABS(Table1[[#This Row],[Aveg Y]])^2 ) -> 2.915475947 | J64: =IF(Table1[[#This Row],[ID Spiegel]]=B63, SQRT((Table1[[#This Row],[Aveg X]]-G63)^2+(Table1[[#This Row],[Aveg Y]]-H63)^2), "" ) -> 
A65: 62 | B65: 31 | C65: 7 | D65: 2023-11-29 | E65: =YEAR(Table1[[#This Row],[Tag]]) -> 2023 | F65: 6 | G65: 3.5 | H65: 4 | I65: =SQRT( ABS(Table1[[#This Row],[Aveg X]])^2 + ABS(Table1[[#This Row],[Aveg Y]])^2 ) -> 5.315072906 | J65: =IF(Table1[[#This Row],[ID Spiegel]]=B64, SQRT((Table1[[#This Row],[Aveg X]]-G64)^2+(Table1[[#This Row],[Aveg Y]]-H64)^2), "" ) -> 2.5
A66: 63 | B66: 32 | C66: 7 | D66: 2023-11-29 | E66: =YEAR(Table1[[#This Row],[Tag]]) -> 2023 | F66: 4 | G66: -6.5 | H66: -3.5 | I66: =SQRT( ABS(Table1[[#This Row],[Aveg X]])^2 + ABS(Table1[[#This Row],[Aveg Y]])^2 ) -> 7.38241153 | J66: =IF(Table1[[#This Row],[ID Spiegel]]=B65, SQRT((Table1[[#This Row],[Aveg X]]-G65)^2+(Table1[[#This Row],[Aveg Y]]-H65)^2), "" ) -> 
A67: 64 | B67: 32 | C67: 7 | D67: 2023-11-29 | E67: =YEAR(Table1[[#This Row],[Tag]]) -> 2023 | F67: 5 | G67: 4 | H67: 5 | I67: =SQRT( ABS(Table1[[#This Row],[Aveg X]])^2 + ABS(Table1[[#This Row],[Aveg Y]])^2 ) -> 6.403124237 | J67: =IF(Table1[[#This Row],[ID Spiegel]]=B66, SQRT((Table1[[#This Row],[Aveg X]]-G66)^2+(Table1[[#This Row],[Aveg Y]]-H66)^2), "" ) -> 13.50925609
A68: =IF(ISTEXT(A67),1,A67+1) -> 65 | B68: =IF(ISTEXT(B67),1,IF(B67=B66,B67+1,B67)) -> 33 | C68: 7 | D68: 2023-11-29 | E68: =YEAR(Table1[[#This Row],[Tag]]) -> 2023 | F68: 8 | G68: 1.5 | H68: 3 | I68: =SQRT( ABS(Table1[[#This Row],[Aveg X]])^2 + ABS(Table1[[#This Row],[Aveg Y]])^2 ) -> 3.354101966 | J68: =IF(Table1[[#This Row],[ID Spiegel]]=B67, SQRT((Table1[[#This Row],[Aveg X]]-G67)^2+(Table1[[#This Row],[Aveg Y]]-H67)^2), "" ) -> 
A69: 66 | B69: 33 | C69: 7 | D69: 2023-11-29 | E69: =YEAR(Table1[[#This Row],[Tag]]) -> 2023 | F69: 6 | G69: 2.5 | H69: -4 | I69: =SQRT( ABS(Table1[[#This Row],[Aveg X]])^2 + ABS(Table1[[#This Row],[Aveg Y]])^2 ) -> 4.716990566 | J69: =IF(Table1[[#This Row],[ID Spiegel]]=B68, SQRT((Table1[[#This Row],[Aveg X]]-G68)^2+(Table1[[#This Row],[Aveg Y]]-H68)^2), "" ) -> 7.071067812
A70: 67 | B70: 34 | C70: 7 | D70: 2023-11-29 | E70: =YEAR(Table1[[#This Row],[Tag]]) -> 2023 | F70: 9 | G70: -2 | H70: -0.5 | I70: =SQRT( ABS(Table1[[#This Row],[Aveg X]])^2 + ABS(Table1[[#This Row],[Aveg Y]])^2 ) -> 2.061552813 | J70: =IF(Table1[[#This Row],[ID Spiegel]]=B69, SQRT((Table1[[#This Row],[Aveg X]]-G69)^2+(Table1[[#This Row],[Aveg Y]]-H69)^2), "" ) -> 
A71: 68 | B71: 34 | C71: 7 | D71: 2023-11-29 | E71: =YEAR(Table1[[#This Row],[Tag]]) -> 2023 | F71: 7 | G71: -4 | H71: -0.5 | I71: =SQRT( ABS(Table1[[#This Row],[Aveg X]])^2 + ABS(Table1[[#This Row],[Aveg Y]])^2 ) -> 4.031128874 | J71: =IF(Table1[[#This Row],[ID Spiegel]]=B70, SQRT((Table1[[#This Row],[Aveg X]]-G70)^2+(Table1[[#This Row],[Aveg Y]]-H70)^2), "" ) -> 2
A72: 69 | B72: 35 | C72: 7 | D72: 2023-11-29 | E72: =YEAR(Table1[[#This Row],[Tag]]) -> 2023 | F72: 8 | G72: 0.5 | H72: 3 | I72: =SQRT( ABS(Table1[[#This Row],[Aveg X]])^2 + ABS(Table1[[#This Row],[Aveg Y]])^2 ) -> 3.041381265 | J72: =IF(Table1[[#This Row],[ID Spiegel]]=B71, SQRT((Table1[[#This Row],[Aveg X]]-G71)^2+(Table1[[#This Row],[Aveg Y]]-H71)^2), "" ) -> 
A73: 70 | B73: 35 | C73: 7 | D73: 2023-11-29 | E73: =YEAR(Table1[[#This Row],[Tag]]) -> 2023 | F73: 8 | G73: 1 | H73: -3 | I73: =SQRT( ABS(Table1[[#This Row],[Aveg X]])^2 + ABS(Table1[[#This Row],[Aveg Y]])^2 ) -> 3.16227766 | J73: =IF(Table1[[#This Row],[ID Spiegel]]=B72, SQRT((Table1[[#This Row],[Aveg X]]-G72)^2+(Table1[[#This Row],[Aveg Y]]-H72)^2), "" ) -> 6.020797289
A74: 71 | B74: 36 | C74: 8 | D74: 2023-11-29 | E74: =YEAR(Table1[[#This Row],[Tag]]) -> 2023 | F74: 4 | G74: 6 | H74: 4 | I74: =SQRT( ABS(Table1[[#This Row],[Aveg X]])^2 + ABS(Table1[[#This Row],[Aveg Y]])^2 ) -> 7.211102551 | J74: =IF(Table1[[#This Row],[ID Spiegel]]=B73, SQRT((Table1[[#This Row],[Aveg X]]-G73)^2+(Table1[[#This Row],[Aveg Y]]-H73)^2), "" ) -> 
A75: 72 | B75: 36 | C75: 8 | D75: 2023-11-29 | E75: =YEAR(Table1[[#This Row],[Tag]]) -> 2023 | F75: 6 | G75: -4.5 | H75: 1 | I75: =SQRT( ABS(Table1[[#This Row],[Aveg X]])^2 + ABS(Table1[[#This Row],[Aveg Y]])^2 ) -> 4.609772229 | J75: =IF(Table1[[#This Row],[ID Spiegel]]=B74, SQRT((Table1[[#This Row],[Aveg X]]-G74)^2+(Table1[[#This Row],[Aveg Y]]-H74)^2), "" ) -> 10.92016483
A76: 73 | B76: 37 | C76: 8 | D76: 2023-11-29 | E76: =YEAR(Table1[[#This Row],[Tag]]) -> 2023 | F76: 9 | G76: 2 | H76: 0.5 | I76: =SQRT( ABS(Table1[[#This Row],[Aveg X]])^2 + ABS(Table1[[#This Row],[Aveg Y]])^2 ) -> 2.061552813 | J76: =IF(Table1[[#This Row],[ID Spiegel]]=B75, SQRT((Table1[[#This Row],[Aveg X]]-G75)^2+(Table1[[#This Row],[Aveg Y]]-H75)^2), "" ) -> 
A77: 74 | B77: 37 | C77: 8 | D77: 2023-11-29 | E77: =YEAR(Table1[[#This Row],[Tag]]) -> 2023 | F77: 9 | G77: -2 | H77: -1.5 | I77: =SQRT( ABS(Table1[[#This Row],[Aveg X]])^2 + ABS(Table1[[#This Row],[Aveg Y]])^2 ) -> 2.5 | J77: =IF(Table1[[#This Row],[ID Spiegel]]=B76, SQRT((Table1[[#This Row],[Aveg X]]-G76)^2+(Table1[[#This Row],[Aveg Y]]-H76)^2), "" ) -> 4.472135955
A78: 75 | B78: 38 | C78: 8 | D78: 2023-11-29 | E78: =YEAR(Table1[[#This Row],[Tag]]) -> 2023 | F78: 5 | G78: -5 | H78: 3.5 | I78: =SQRT( ABS(Table1[[#This Row],[Aveg X]])^2 + ABS(Table1[[#This Row],[Aveg Y]])^2 ) -> 6.103277808 | J78: =IF(Table1[[#This Row],[ID Spiegel]]=B77, SQRT((Table1[[#This Row],[Aveg X]]-G77)^2+(Table1[[#This Row],[Aveg Y]]-H77)^2), "" ) -> 
A79: 76 | B79: 38 | C79: 8 | D79: 2023-11-29 | E79: =YEAR(Table1[[#This Row],[Tag]]) -> 2023 | F79: 5 | G79: 3.5 | H79: -5.5 | I79: =SQRT( ABS(Table1[[#This Row],[Aveg X]])^2 + ABS(Table1[[#This Row],[Aveg Y]])^2 ) -> 6.519202405 | J79: =IF(Table1[[#This Row],[ID Spiegel]]=B78, SQRT((Table1[[#This Row],[Aveg X]]-G78)^2+(Table1[[#This Row],[Aveg Y]]-H78)^2), "" ) -> 12.3794184
A80: 77 | B80: 39 | C80: 8 | D80: 2023-11-29 | E80: =YEAR(Table1[[#This Row],[Tag]]) -> 2023 | F80: 10 | G80: 1 | H80: -1 | I80: =SQRT( ABS(Table1[[#This Row],[Aveg X]])^2 + ABS(Table1[[#This Row],[Aveg Y]])^2 ) -> 1.414213562 | J80: =IF(Table1[[#This Row],[ID Spiegel]]=B79, SQRT((Table1[[#This Row],[Aveg X]]-G79)^2+(Table1[[#This Row],[Aveg Y]]-H79)^2), "" ) -> 
A81: 78 | B81: 39 | C81: 8 | D81: 2023-11-29 | E81: =YEAR(Table1[[#This Row],[Tag]]) -> 2023 | F81: 9 | G81: 3 | H81: 1 | I81: =SQRT( ABS(Table1[[#This Row],[Aveg X]])^2 + ABS(Table1[[#This Row],[Aveg Y]])^2 ) -> 3.16227766 | J81: =IF(Table1[[#This Row],[ID Spiegel]]=B80, SQRT((Table1[[#This Row],[Aveg X]]-G80)^2+(Table1[[#This Row],[Aveg Y]]-H80)^2), "" ) -> 2.828427125
A82: 79 | B82: 40 | C82: 8 | D82: 2023-11-29 | E82: =YEAR(Table1[[#This Row],[Tag]]) -> 2023 | F82: 8 | G82: -1.5 | H82: -2.5 | I82: =SQRT( ABS(Table1[[#This Row],[Aveg X]])^2 + ABS(Table1[[#This Row],[Aveg Y]])^2 ) -> 2.915475947 | J82: =IF(Table1[[#This Row],[ID Spiegel]]=B81, SQRT((Table1[[#This Row],[Aveg X]]-G81)^2+(Table1[[#This Row],[Aveg Y]]-H81)^2), "" ) -> 
A83: 80 | B83: 40 | C83: 8 | D83: 2023-11-29 | E83: =YEAR(Table1[[#This Row],[Tag]]) -> 2023 | F83: 3 | G83: 7.5 | H83: 4 | I83: =SQRT( ABS(Table1[[#This Row],[Aveg X]])^2 + ABS(Table1[[#This Row],[Aveg Y]])^2 ) -> 8.5 | J83: =IF(Table1[[#This Row],[ID Spiegel]]=B82, SQRT((Table1[[#This Row],[Aveg X]]-G82)^2+(Table1[[#This Row],[Aveg Y]]-H82)^2), "" ) -> 11.10180166
A84: 81 | B84: 41 | C84: 9 | D84: 2023-11-29 | E84: =YEAR(Table1[[#This Row],[Tag]]) -> 2023 | F84: 10 | G84: -0.5 | H84: 1 | I84: =SQRT( ABS(Table1[[#This Row],[Aveg X]])^2 + ABS(Table1[[#This Row],[Aveg Y]])^2 ) -> 1.118033989 | J84: =IF(Table1[[#This Row],[ID Spiegel]]=B83, SQRT((Table1[[#This Row],[Aveg X]]-G83)^2+(Table1[[#This Row],[Aveg Y]]-H83)^2), "" ) -> 
A85: 82 | B85: 41 | C85: 9 | D85: 2023-11-29 | E85: =YEAR(Table1[[#This Row],[Tag]]) -> 2023 | F85: 5 | G85: 5 | H85: -3 | I85: =SQRT( ABS(Table1[[#This Row],[Aveg X]])^2 + ABS(Table1[[#This Row],[Aveg Y]])^2 ) -> 5.830951895 | J85: =IF(Table1[[#This Row],[ID Spiegel]]=B84, SQRT((Table1[[#This Row],[Aveg X]]-G84)^2+(Table1[[#This Row],[Aveg Y]]-H84)^2), "" ) -> 6.800735254
A86: 83 | B86: 42 | C86: 9 | D86: 2023-11-29 | E86: =YEAR(Table1[[#This Row],[Tag]]) -> 2023 | F86: 10 | G86: -0.5 | H86: 1.5 | I86: =SQRT( ABS(Table1[[#This Row],[Aveg X]])^2 + ABS(Table1[[#This Row],[Aveg Y]])^2 ) -> 1.58113883 | J86: =IF(Table1[[#This Row],[ID Spiegel]]=B85, SQRT((Table1[[#This Row],[Aveg X]]-G85)^2+(Table1[[#This Row],[Aveg Y]]-H85)^2), "" ) -> 
A87: 84 | B87: 42 | C87: 9 | D87: 2023-11-29 | E87: =YEAR(Table1[[#This Row],[Tag]]) -> 2023 | F87: 7 | G87: -2 | H87: 3.5 | I87: =SQRT( ABS(Table1[[#This Row],[Aveg X]])^2 + ABS(Table1[[#This Row],[Aveg Y]])^2 ) -> 4.031128874 | J87: =IF(Table1[[#This Row],[ID Spiegel]]=B86, SQRT((Table1[[#This Row],[Aveg X]]-G86)^2+(Table1[[#This Row],[Aveg Y]]-H86)^2), "" ) -> 2.5
A88: 85 | B88: 43 | C88: 9 | D88: 2023-11-29 | E88: =YEAR(Table1[[#This Row],[Tag]]) -> 2023 | F88: 9 | G88: 0 | H88: 2 | I88: =SQRT( ABS(Table1[[#This Row],[Aveg X]])^2 + ABS(Table1[[#This Row],[Aveg Y]])^2 ) -> 2 | J88: =IF(Table1[[#This Row],[ID Spiegel]]=B87, SQRT((Table1[[#This Row],[Aveg X]]-G87)^2+(Table1[[#This Row],[Aveg Y]]-H87)^2), "" ) -> 
A89: 86 | B89: 43 | C89: 9 | D89: 2023-11-29 | E89: =YEAR(Table1[[#This Row],[Tag]]) -> 2023 | F89: 8 | G89: -3 | H89: 0 | I89: =SQRT( ABS(Table1[[#This Row],[Aveg X]])^2 + ABS(Table1[[#This Row],[Aveg Y]])^2 ) -> 3 | J89: =IF(Table1[[#This Row],[ID Spiegel]]=B88, SQRT((Table1[[#This Row],[Aveg X]]-G88)^2+(Table1[[#This Row],[Aveg Y]]-H88)^2), "" ) -> 3.605551275
A90: 87 | B90: 44 | C90: 9 | D90: 2023-11-29 | E90: =YEAR(Table1[[#This Row],[Tag]]) -> 2023 | F90: 5 | G90: -5.5 | H90: -3 | I90: =SQRT( ABS(Table1[[#This Row],[Aveg X]])^2 + ABS(Table1[[#This Row],[Aveg Y]])^2 ) -> 6.264982043 | J90: =IF(Table1[[#This Row],[ID Spiegel]]=B89, SQRT((Table1[[#This Row],[Aveg X]]-G89)^2+(Table1[[#This Row],[Aveg Y]]-H89)^2), "" ) -> 
A91: 88 | B91: 44 | C91: 9 | D91: 2023-11-29 | E91: =YEAR(Table1[[#This Row],[Tag]]) -> 2023 | F91: 3 | G91: -8 | H91: 2.5 | I91: =SQRT( ABS(Table1[[#This Row],[Aveg X]])^2 + ABS(Table1[[#This Row],[Aveg Y]])^2 ) -> 8.381527307 | J91: =IF(Table1[[#This Row],[ID Spiegel]]=B90, SQRT((Table1[[#This Row],[Aveg X]]-G90)^2+(Table1[[#This Row],[Aveg Y]]-H90)^2), "" ) -> 6.041522987
A92: 89 | B92: 45 | C92: 9 | D92: 2023-11-29 | E92: =YEAR(Table1[[#This Row],[Tag]]) -> 2023 | F92: 7 | G92: 3.5 | H92: 3.5 | I92: =SQRT( ABS(Table1[[#This Row],[Aveg X]])^2 + ABS(Table1[[#This Row],[Aveg Y]])^2 ) -> 4.949747468 | J92: =IF(Table1[[#This Row],[ID Spiegel]]=B91, SQRT((Table1[[#This Row],[Aveg X]]-G91)^2+(Table1[[#This Row],[Aveg Y]]-H91)^2), "" ) -> 
A93: 90 | B93: 45 | C93: 9 | D93: 2023-11-29 | E93: =YEAR(Table1[[#This Row],[Tag]]) -> 2023 | F93: 7 | G93: 1.5 | H93: -4 | I93: =SQRT( ABS(Table1[[#This Row],[Aveg X]])^2 + ABS(Table1[[#This Row],[Aveg Y]])^2 ) -> 4.272001873 | J93: =IF(Table1[[#This Row],[ID Spiegel]]=B92, SQRT((Table1[[#This Row],[Aveg X]]-G92)^2+(Table1[[#This Row],[Aveg Y]]-H92)^2), "" ) -> 7.762087348
A94: 91 | B94: 46 | C94: 10 | D94: 2023-11-29 | E94: =YEAR(Table1[[#This Row],[Tag]]) -> 2023 | F94: 10 | G94: 0.5 | H94: -1 | I94: =SQRT( ABS(Table1[[#This Row],[Aveg X]])^2 + ABS(Table1[[#This Row],[Aveg Y]])^2 ) -> 1.118033989 | J94: =IF(Table1[[#This Row],[ID Spiegel]]=B93, SQRT((Table1[[#This Row],[Aveg X]]-G93)^2+(Table1[[#This Row],[Aveg Y]]-H93)^2), "" ) -> 
A95: 92 | B95: 46 | C95: 10 | D95: 2023-11-29 | E95: =YEAR(Table1[[#This Row],[Tag]]) -> 2023 | F95: 8 | G95: 3.5 | H95: 1 | I95: =SQRT( ABS(Table1[[#This Row],[Aveg X]])^2 + ABS(Table1[[#This Row],[Aveg Y]])^2 ) -> 3.640054945 | J95: =IF(Table1[[#This Row],[ID Spiegel]]=B94, SQRT((Table1[[#This Row],[Aveg X]]-G94)^2+(Table1[[#This Row],[Aveg Y]]-H94)^2), "" ) -> 3.605551275
A96: 93 | B96: 47 | C96: 10 | D96: 2023-11-29 | E96: =YEAR(Table1[[#This Row],[Tag]]) -> 2023 | F96: 10 | G96: 1 | H96: 0.5 | I96: =SQRT( ABS(Table1[[#This Row],[Aveg X]])^2 + ABS(Table1[[#This Row],[Aveg Y]])^2 ) -> 1.118033989 | J96: =IF(Table1[[#This Row],[ID Spiegel]]=B95, SQRT((Table1[[#This Row],[Aveg X]]-G95)^2+(Table1[[#This Row],[Aveg Y]]-H95)^2), "" ) -> 
A97: 94 | B97: 47 | C97: 10 | D97: 2023-11-29 | E97: =YEAR(Table1[[#This Row],[Tag]]) -> 2023 | F97: 5 | G97: -5 | H97: -3 | I97: =SQRT( ABS(Table1[[#This Row],[Aveg X]])^2 + ABS(Table1[[#This Row],[Aveg Y]])^2 ) -> 5.830951895 | J97: =IF(Table1[[#This Row],[ID Spiegel]]=B96, SQRT((Table1[[#This Row],[Aveg X]]-G96)^2+(Table1[[#This Row],[Aveg Y]]-H96)^2), "" ) -> 6.946221995
A98: 95 | B98: 48 | C98: 10 | D98: 2023-11-29 | E98: =YEAR(Table1[[#This Row],[Tag]]) -> 2023 | F98: 9 | G98: -2 | H98: -0.5 | I98: =SQRT( ABS(Table1[[#This Row],[Aveg X]])^2 + ABS(Table1[[#This Row],[Aveg Y]])^2 ) -> 2.061552813 | J98: =IF(Table1[[#This Row],[ID Spiegel]]=B97, SQRT((Table1[[#This Row],[Aveg X]]-G97)^2+(Table1[[#This Row],[Aveg Y]]-H97)^2), "" ) -> 
A99: 96 | B99: 48 | C99: 10 | D99: 2023-11-29 | E99: =YEAR(Table1[[#This Row],[Tag]]) -> 2023 | F99: 7 | G99: -2.5 | H99: 3 | I99: =SQRT( ABS(Table1[[#This Row],[Aveg X]])^2 + ABS(Table1[[#This Row],[Aveg Y]])^2 ) -> 3.905124838 | J99: =IF(Table1[[#This Row],[ID Spiegel]]=B98, SQRT((Table1[[#This Row],[Aveg X]]-G98)^2+(Table1[[#This Row],[Aveg Y]]-H98)^2), "" ) -> 3.535533906
A100: 97 | B100: 49 | C100: 10 | D100: 2023-11-29 | E100: =YEAR(Table1[[#This Row],[Tag]]) -> 2023 | F100: 5 | G100: -2.5 | H100: 6 | I100: =SQRT( ABS(Table1[[#This Row],[Aveg X]])^2 + ABS(Table1[[#This Row],[Aveg Y]])^2 ) -> 6.5 | J100: =IF(Table1[[#This Row],[ID Spiegel]]=B99, SQRT((Table1[[#This Row],[Aveg X]]-G99)^2+(Table1[[#This Row],[Aveg Y]]-H99)^2), "" ) -> 
A101: 98 | B101: 49 | C101: 10 | D101: 2023-11-29 | E101: =YEAR(Table1[[#This Row],[Tag]]) -> 2023 | F101: 10 | G101: -1 | H101: 1 | I101: =SQRT( ABS(Table1[[#This Row],[Aveg X]])^2 + ABS(Table1[[#This Row],[Aveg Y]])^2 ) -> 1.414213562 | J101: =IF(Table1[[#This Row],[ID Spiegel]]=B100, SQRT((Table1[[#This Row],[Aveg X]]-G100)^2+(Table1[[#This Row],[Aveg Y]]-H100)^2), "" ) -> 5.220153254
A102: 99 | B102: 50 | C102: 10 | D102: 2023-11-29 | E102: =YEAR(Table1[[#This Row],[Tag]]) -> 2023 | F102: 6 | G102: -1.5 | H102: -4.5 | I102: =SQRT( ABS(Table1[[#This Row],[Aveg X]])^2 + ABS(Table1[[#This Row],[Aveg Y]])^2 ) -> 4.74341649 | J102: =IF(Table1[[#This Row],[ID Spiegel]]=B101, SQRT((Table1[[#This Row],[Aveg X]]-G101)^2+(Table1[[#This Row],[Aveg Y]]-H101)^2), "" ) -> 
A103: 100 | B103: 50 | C103: 10 | D103: 2023-11-29 | E103: =YEAR(Table1[[#This Row],[Tag]]) -> 2023 | F103: 5 | G103: -5.5 | H103: -2.5 | I103: =SQRT( ABS(Table1[[#This Row],[Aveg X]])^2 + ABS(Table1[[#This Row],[Aveg Y]])^2 ) -> 6.041522987 | J103: =IF(Table1[[#This Row],[ID Spiegel]]=B102, SQRT((Table1[[#This Row],[Aveg X]]-G102)^2+(Table1[[#This Row],[Aveg Y]]-H102)^2), "" ) -> 4.472135955
A104: 101 | B104: 51 | C104: 11 | D104: 2023-11-29 | E104: =YEAR(Table1[[#This Row],[Tag]]) -> 2023 | F104: 3 | G104: -6 | H104: 6 | I104: =SQRT( ABS(Table1[[#This Row],[Aveg X]])^2 + ABS(Table1[[#This Row],[Aveg Y]])^2 ) -> 8.485281374 | J104: =IF(Table1[[#This Row],[ID Spiegel]]=B103, SQRT((Table1[[#This Row],[Aveg X]]-G103)^2+(Table1[[#This Row],[Aveg Y]]-H103)^2), "" ) -> 
A105: 102 | B105: 51 | C105: 11 | D105: 2023-11-29 | E105: =YEAR(Table1[[#This Row],[Tag]]) -> 2023 | F105: 7 | G105: -2.5 | H105: -3.5 | I105: =SQRT( ABS(Table1[[#This Row],[Aveg X]])^2 + ABS(Table1[[#This Row],[Aveg Y]])^2 ) -> 4.301162634 | J105: =IF(Table1[[#This Row],[ID Spiegel]]=B104, SQRT((Table1[[#This Row],[Aveg X]]-G104)^2+(Table1[[#This Row],[Aveg Y]]-H104)^2), "" ) -> 10.12422837
A106: 103 | B106: 52 | C106: 11 | D106: 2023-11-29 | E106: =YEAR(Table1[[#This Row],[Tag]]) -> 2023 | F106: 4 | G106: 2 | H106: 6.5 | I106: =SQRT( ABS(Table1[[#This Row],[Aveg X]])^2 + ABS(Table1[[#This Row],[Aveg Y]])^2 ) -> 6.800735254 | J106: =IF(Table1[[#This Row],[ID Spiegel]]=B105, SQRT((Table1[[#This Row],[Aveg X]]-G105)^2+(Table1[[#This Row],[Aveg Y]]-H105)^2), "" ) -> 
A107: 104 | B107: 52 | C107: 11 | D107: 2023-11-29 | E107: =YEAR(Table1[[#This Row],[Tag]]) -> 2023 | F107: 7 | G107: -1.5 | H107: 4 | I107: =SQRT( ABS(Table1[[#This Row],[Aveg X]])^2 + ABS(Table1[[#This Row],[Aveg Y]])^2 ) -> 4.272001873 | J107: =IF(Table1[[#This Row],[ID Spiegel]]=B106, SQRT((Table1[[#This Row],[Aveg X]]-G106)^2+(Table1[[#This Row],[Aveg Y]]-H106)^2), "" ) -> 4.301162634
A108: 105 | B108: 53 | C108: 11 | D108: 2023-11-29 | E108: =YEAR(Table1[[#This Row],[Tag]]) -> 2023 | F108: 7 | G108: -2.5 | H108: 3 | I108: =SQRT( ABS(Table1[[#This Row],[Aveg X]])^2 + ABS(Table1[[#This Row],[Aveg Y]])^2 ) -> 3.905124838 | J108: =IF(Table1[[#This Row],[ID Spiegel]]=B107, SQRT((Table1[[#This Row],[Aveg X]]-G107)^2+(Table1[[#This Row],[Aveg Y]]-H107)^2), "" ) -> 
A109: 106 | B109: 53 | C109: 11 | D109: 2023-11-29 | E109: =YEAR(Table1[[#This Row],[Tag]]) -> 2023 | F109: 6 | G109: -5 | H109: 0 | I109: =SQRT( ABS(Table1[[#This Row],[Aveg X]])^2 + ABS(Table1[[#This Row],[Aveg Y]])^2 ) -> 5 | J109: =IF(Table1[[#This Row],[ID Spiegel]]=B108, SQRT((Table1[[#This Row],[Aveg X]]-G108)^2+(Table1[[#This Row],[Aveg Y]]-H108)^2), "" ) -> 3.905124838
A110: 107 | B110: 54 | C110: 11 | D110: 2023-11-29 | E110: =YEAR(Table1[[#This Row],[Tag]]) -> 2023 | F110: 9 | G110: -1.5 | H110: -1.5 | I110: =SQRT( ABS(Table1[[#This Row],[Aveg X]])^2 + ABS(Table1[[#This Row],[Aveg Y]])^2 ) -> 2.121320344 | J110: =IF(Table1[[#This Row],[ID Spiegel]]=B109, SQRT((Table1[[#This Row],[Aveg X]]-G109)^2+(Table1[[#This Row],[Aveg Y]]-H109)^2), "" ) -> 
A111: 108 | B111: 54 | C111: 11 | D111: 2023-11-29 | E111: =YEAR(Table1[[#This Row],[Tag]]) -> 2023 | F111: 6 | G111: -4.5 | H111: -2 | I111: =SQRT( ABS(Table1[[#This Row],[Aveg X]])^2 + ABS(Table1[[#This Row],[Aveg Y]])^2 ) -> 4.924428901 | J111: =IF(Table1[[#This Row],[ID Spiegel]]=B110, SQRT((Table1[[#This Row],[Aveg X]]-G110)^2+(Table1[[#This Row],[Aveg Y]]-H110)^2), "" ) -> 3.041381265
A112: 109 | B112: 55 | C112: 11 | D112: 2023-11-29 | E112: =YEAR(Table1[[#This Row],[Tag]]) -> 2023 | F112: 8 | G112: -1 | H112: -2.5 | I112: =SQRT( ABS(Table1[[#This Row],[Aveg X]])^2 + ABS(Table1[[#This Row],[Aveg Y]])^2 ) -> 2.692582404 | J112: =IF(Table1[[#This Row],[ID Spiegel]]=B111, SQRT((Table1[[#This Row],[Aveg X]]-G111)^2+(Table1[[#This Row],[Aveg Y]]-H111)^2), "" ) -> 
A113: 110 | B113: 55 | C113: 11 | D113: 2023-11-29 | E113: =YEAR(Table1[[#This Row],[Tag]]) -> 2023 | F113: 4 | G113: 3.5 | H113: -6 | I113: =SQRT( ABS(Table1[[#This Row],[Aveg X]])^2 + ABS(Table1[[#This Row],[Aveg Y]])^2 ) -> 6.946221995 | J113: =IF(Table1[[#This Row],[ID Spiegel]]=B112, SQRT((Table1[[#This Row],[Aveg X]]-G112)^2+(Table1[[#This Row],[Aveg Y]]-H112)^2), "" ) -> 5.700877125
A114: 111 | B114: 56 | C114: 12 | D114: 2023-11-29 | E114: =YEAR(Table1[[#This Row],[Tag]]) -> 2023 | F114: 5 | G114: 4 | H114: 5.5 | I114: =SQRT( ABS(Table1[[#This Row],[Aveg X]])^2 + ABS(Table1[[#This Row],[Aveg Y]])^2 ) -> 6.800735254 | J114: =IF(Table1[[#This Row],[ID Spiegel]]=B113, SQRT((Table1[[#This Row],[Aveg X]]-G113)^2+(Table1[[#This Row],[Aveg Y]]-H113)^2), "" ) -> 
A115: 112 | B115: 56 | C115: 12 | D115: 2023-11-29 | E115: =YEAR(Table1[[#This Row],[Tag]]) -> 2023 | F115: 10 | G115: -1 | H115: -1 | I115: =SQRT( ABS(Table1[[#This Row],[Aveg X]])^2 + ABS(Table1[[#This Row],[Aveg Y]])^2 ) -> 1.414213562 | J115: =IF(Table1[[#This Row],[ID Spiegel]]=B114, SQRT((Table1[[#This Row],[Aveg X]]-G114)^2+(Table1[[#This Row],[Aveg Y]]-H114)^2), "" ) -> 8.200609733
A116: 113 | B116: 57 | C116: 12 | D116: 2023-11-29 | E116: =YEAR(Table1[[#This Row],[Tag]]) -> 2023 | F116: 5 | G116: 3 | H116: 6 | I116: =SQRT( ABS(Table1[[#This Row],[Aveg X]])^2 + ABS(Table1[[#This Row],[Aveg Y]])^2 ) -> 6.708203932 | J116: =IF(Table1[[#This Row],[ID Spiegel]]=B115, SQRT((Table1[[#This Row],[Aveg X]]-G115)^2+(Table1[[#This Row],[Aveg Y]]-H115)^2), "" ) -> 
A117: 114 | B117: 57 | C117: 12 | D117: 2023-11-29 | E117: =YEAR(Table1[[#This Row],[Tag]]) -> 2023 | F117: 5 | G117: -1.5 | H117: -5.5 | I117: =SQRT( ABS(Table1[[#This Row],[Aveg X]])^2 + ABS(Table1[[#This Row],[Aveg Y]])^2 ) -> 5.700877125 | J117: =IF(Table1[[#This Row],[ID Spiegel]]=B116, SQRT((Table1[[#This Row],[Aveg X]]-G116)^2+(Table1[[#This Row],[Aveg Y]]-H116)^2), "" ) -> 12.34908904
A118: 115 | B118: 58 | C118: 12 | D118: 2023-11-29 | E118: =YEAR(Table1[[#This Row],[Tag]]) -> 2023 | F118: 6 | G118: -4 | H118: -3 | I118: =SQRT( ABS(Table1[[#This Row],[Aveg X]])^2 + ABS(Table1[[#This Row],[Aveg Y]])^2 ) -> 5 | J118: =IF(Table1[[#This Row],[ID Spiegel]]=B117, SQRT((Table1[[#This Row],[Aveg X]]-G117)^2+(Table1[[#This Row],[Aveg Y]]-H117)^2), "" ) -> 
A119: 116 | B119: 58 | C119: 12 | D119: 2023-11-29 | E119: =YEAR(Table1[[#This Row],[Tag]]) -> 2023 | F119: 5 | G119: -5.5 | H119: 0.5 | I119: =SQRT( ABS(Table1[[#This Row],[Aveg X]])^2 + ABS(Table1[[#This Row],[Aveg Y]])^2 ) -> 5.522680509 | J119: =IF(Table1[[#This Row],[ID Spiegel]]=B118, SQRT((Table1[[#This Row],[Aveg X]]-G118)^2+(Table1[[#This Row],[Aveg Y]]-H118)^2), "" ) -> 3.807886553
A120: 117 | B120: 59 | C120: 12 | D120: 2023-11-29 | E120: =YEAR(Table1[[#This Row],[Tag]]) -> 2023 | F120: 7 | G120: 0.5 | H120: -4 | I120: =SQRT( ABS(Table1[[#This Row],[Aveg X]])^2 + ABS(Table1[[#This Row],[Aveg Y]])^2 ) -> 4.031128874 | J120: =IF(Table1[[#This Row],[ID Spiegel]]=B119, SQRT((Table1[[#This Row],[Aveg X]]-G119)^2+(Table1[[#This Row],[Aveg Y]]-H119)^2), "" ) -> 
A121: 118 | B121: 59 | C121: 12 | D121: 2023-11-29 | E121: =YEAR(Table1[[#This Row],[Tag]]) -> 2023 | F121: 3 | G121: -1 | H121: -7.5 | I121: =SQRT( ABS(Table1[[#This Row],[Aveg X]])^2 + ABS(Table1[[#This Row],[Aveg Y]])^2 ) -> 7.566372975 | J121: =IF(Table1[[#This Row],[ID Spiegel]]=B120, SQRT((Table1[[#This Row],[Aveg X]]-G120)^2+(Table1[[#This Row],[Aveg Y]]-H120)^2), "" ) -> 3.807886553
A122: 119 | B122: 60 | C122: 12 | D122: 2023-11-29 | E122: =YEAR(Table1[[#This Row],[Tag]]) -> 2023 | F122: 10 | G122: -0.5 | H122: 0 | I122: =SQRT( ABS(Table1[[#This Row],[Aveg X]])^2 + ABS(Table1[[#This Row],[Aveg Y]])^2 ) -> 0.5 | J122: =IF(Table1[[#This Row],[ID Spiegel]]=B121, SQRT((Table1[[#This Row],[Aveg X]]-G121)^2+(Table1[[#This Row],[Aveg Y]]-H121)^2), "" ) -> 
A123: 120 | B123: 60 | C123: 12 | D123: 2023-11-29 | E123: =YEAR(Table1[[#This Row],[Tag]]) -> 2023 | F123: 10 | G123: 1.5 | H123: 0 | I123: =SQRT( ABS(Table1[[#This Row],[Aveg X]])^2 + ABS(Table1[[#This Row],[Aveg Y]])^2 ) -> 1.5 | J123: =IF(Table1[[#This Row],[ID Spiegel]]=B122, SQRT((Table1[[#This Row],[Aveg X]]-G122)^2+(Table1[[#This Row],[Aveg Y]]-H122)^2), "" ) -> 2
A124: 121 | B124: 61 | C124: 13 | D124: 2023-12-06 | E124: =YEAR(Table1[[#This Row],[Tag]]) -> 2023 | F124: 6 | G124: -4.5 | H124: -3 | I124: =SQRT( ABS(Table1[[#This Row],[Aveg X]])^2 + ABS(Table1[[#This Row],[Aveg Y]])^2 ) -> 5.408326913 | J124: =IF(Table1[[#This Row],[ID Spiegel]]=B123, SQRT((Table1[[#This Row],[Aveg X]]-G123)^2+(Table1[[#This Row],[Aveg Y]]-H123)^2), "" ) -> 
A125: 122 | B125: 61 | C125: 13 | D125: 2023-12-06 | E125: =YEAR(Table1[[#This Row],[Tag]]) -> 2023 | F125: 7 | G125: 3.5 | H125: 1.5 | I125: =SQRT( ABS(Table1[[#This Row],[Aveg X]])^2 + ABS(Table1[[#This Row],[Aveg Y]])^2 ) -> 3.807886553 | J125: =IF(Table1[[#This Row],[ID Spiegel]]=B124, SQRT((Table1[[#This Row],[Aveg X]]-G124)^2+(Table1[[#This Row],[Aveg Y]]-H124)^2), "" ) -> 9.178779875
A126: 123 | B126: 62 | C126: 13 | D126: 2023-12-06 | E126: =YEAR(Table1[[#This Row],[Tag]]) -> 2023 | F126: 6 | G126: -4 | H126: -3 | I126: =SQRT( ABS(Table1[[#This Row],[Aveg X]])^2 + ABS(Table1[[#This Row],[Aveg Y]])^2 ) -> 5 | J126: =IF(Table1[[#This Row],[ID Spiegel]]=B125, SQRT((Table1[[#This Row],[Aveg X]]-G125)^2+(Table1[[#This Row],[Aveg Y]]-H125)^2), "" ) -> 
A127: 124 | B127: 62 | C127: 13 | D127: 2023-12-06 | E127: =YEAR(Table1[[#This Row],[Tag]]) -> 2023 | F127: 5 | G127: -5 | H127: -3 | I127: =SQRT( ABS(Table1[[#This Row],[Aveg X]])^2 + ABS(Table1[[#This Row],[Aveg Y]])^2 ) -> 5.830951895 | J127: =IF(Table1[[#This Row],[ID Spiegel]]=B126, SQRT((Table1[[#This Row],[Aveg X]]-G126)^2+(Table1[[#This Row],[Aveg Y]]-H126)^2), "" ) -> 1
A128: 125 | B128: 63 | C128: 13 | D128: 2023-12-06 | E128: =YEAR(Table1[[#This Row],[Tag]]) -> 2023 | F128: 9 | G128: -1.5 | H128: -1 | I128: =SQRT( ABS(Table1[[#This Row],[Aveg X]])^2 + ABS(Table1[[#This Row],[Aveg Y]])^2 ) -> 1.802775638 | J128: =IF(Table1[[#This Row],[ID Spiegel]]=B127, SQRT((Table1[[#This Row],[Aveg X]]-G127)^2+(Table1[[#This Row],[Aveg Y]]-H127)^2), "" ) -> 
A129: 126 | B129: 63 | C129: 13 | D129: 2023-12-06 | E129: =YEAR(Table1[[#This Row],[Tag]]) -> 2023 | F129: 6 | G129: 2.5 | H129: 4.5 | I129: =SQRT( ABS(Table1[[#This Row],[Aveg X]])^2 + ABS(Table1[[#This Row],[Aveg Y]])^2 ) -> 5.14781507 | J129: =IF(Table1[[#This Row],[ID Spiegel]]=B128, SQRT((Table1[[#This Row],[Aveg X]]-G128)^2+(Table1[[#This Row],[Aveg Y]]-H128)^2), "" ) -> 6.800735254
A130: 127 | B130: 64 | C130: 13 | D130: 2023-12-06 | E130: =YEAR(Table1[[#This Row],[Tag]]) -> 2023 | F130: 6 | G130: -1.5 | H130: -4.5 | I130: =SQRT( ABS(Table1[[#This Row],[Aveg X]])^2 + ABS(Table1[[#This Row],[Aveg Y]])^2 ) -> 4.74341649 | J130: =IF(Table1[[#This Row],[ID Spiegel]]=B129, SQRT((Table1[[#This Row],[Aveg X]]-G129)^2+(Table1[[#This Row],[Aveg Y]]-H129)^2), "" ) -> 
A131: 128 | B131: 64 | C131: 13 | D131: 2023-12-06 | E131: =YEAR(Table1[[#This Row],[Tag]]) -> 2023 | F131: 5 | G131: -2.5 | H131: -5.5 | I131: =SQRT( ABS(Table1[[#This Row],[Aveg X]])^2 + ABS(Table1[[#This Row],[Aveg Y]])^2 ) -> 6.041522987 | J131: =IF(Table1[[#This Row],[ID Spiegel]]=B130, SQRT((Table1[[#This Row],[Aveg X]]-G130)^2+(Table1[[#This Row],[Aveg Y]]-H130)^2), "" ) -> 1.414213562
A132: =IF(ISTEXT(A131),1,A131+1) -> 129 | B132: =IF(ISTEXT(B131),1,IF(B131=B130,B131+1,B131)) -> 65 | C132: 13 | D132: 2023-12-06 | E132: =YEAR(Table1[[#This Row],[Tag]]) -> 2023 | F132: 10 | G132: -0.5 | H132: 0 | I132: =SQRT( ABS(Table1[[#This Row],[Aveg X]])^2 + ABS(Table1[[#This Row],[Aveg Y]])^2 ) -> 0.5 | J132: =IF(Table1[[#This Row],[ID Spiegel]]=B131, SQRT((Table1[[#This Row],[Aveg X]]-G131)^2+(Table1[[#This Row],[Aveg Y]]-H131)^2), "" ) -> 
A133: 130 | B133: 65 | C133: 13 | D133: 2023-12-06 | E133: =YEAR(Table1[[#This Row],[Tag]]) -> 2023 | F133: 6 | G133: 4 | H133: -3.5 | I133: =SQRT( ABS(Table1[[#This Row],[Aveg X]])^2 + ABS(Table1[[#This Row],[Aveg Y]])^2 ) -> 5.315072906 | J133: =IF(Table1[[#This Row],[ID Spiegel]]=B132, SQRT((Table1[[#This Row],[Aveg X]]-G132)^2+(Table1[[#This Row],[Aveg Y]]-H132)^2), "" ) -> 5.700877125
A134: 131 | B134: 66 | C134: 14 | D134: 2023-12-06 | E134: =YEAR(Table1[[#This Row],[Tag]]) -> 2023 | F134: 10 | G134: 0 | H134: 0.5 | I134: =SQRT( ABS(Table1[[#This Row],[Aveg X]])^2 + ABS(Table1[[#This Row],[Aveg Y]])^2 ) -> 0.5 | J134: =IF(Table1[[#This Row],[ID Spiegel]]=B133, SQRT((Table1[[#This Row],[Aveg X]]-G133)^2+(Table1[[#This Row],[Aveg Y]]-H133)^2), "" ) -> 
A135: 132 | B135: 66 | C135: 14 | D135: 2023-12-06 | E135: =YEAR(Table1[[#This Row],[Tag]]) -> 2023 | F135: 5 | G135: 5 | H135: -4 | I135: =SQRT( ABS(Table1[[#This Row],[Aveg X]])^2 + ABS(Table1[[#This Row],[Aveg Y]])^2 ) -> 6.403124237 | J135: =IF(Table1[[#This Row],[ID Spiegel]]=B134, SQRT((Table1[[#This Row],[Aveg X]]-G134)^2+(Table1[[#This Row],[Aveg Y]]-H134)^2), "" ) -> 6.726812024
A136: 133 | B136: 67 | C136: 14 | D136: 2023-12-06 | E136: =YEAR(Table1[[#This Row],[Tag]]) -> 2023 | F136: 9 | G136: -1.5 | H136: -1.5 | I136: =SQRT( ABS(Table1[[#This Row],[Aveg X]])^2 + ABS(Table1[[#This Row],[Aveg Y]])^2 ) -> 2.121320344 | J136: =IF(Table1[[#This Row],[ID Spiegel]]=B135, SQRT((Table1[[#This Row],[Aveg X]]-G135)^2+(Table1[[#This Row],[Aveg Y]]-H135)^2), "" ) -> 
A137: 134 | B137: 67 | C137: 14 | D137: 2023-12-06 | E137: =YEAR(Table1[[#This Row],[Tag]]) -> 2023 | F137: 7 | G137: -3 | H137: -3 | I137: =SQRT( ABS(Table1[[#This Row],[Aveg X]])^2 + ABS(Table1[[#This Row],[Aveg Y]])^2 ) -> 4.242640687 | J137: =IF(Table1[[#This Row],[ID Spiegel]]=B136, SQRT((Table1[[#This Row],[Aveg X]]-G136)^2+(Table1[[#This Row],[Aveg Y]]-H136)^2), "" ) -> 2.121320344
A138: 135 | B138: 68 | C138: 14 | D138: 2023-12-06 | E138: =YEAR(Table1[[#This Row],[Tag]]) -> 2023 | F138: 5 | G138: -5.5 | H138: -4 | I138: =SQRT( ABS(Table1[[#This Row],[Aveg X]])^2 + ABS(Table1[[#This Row],[Aveg Y]])^2 ) -> 6.800735254 | J138: =IF(Table1[[#This Row],[ID Spiegel]]=B137, SQRT((Table1[[#This Row],[Aveg X]]-G137)^2+(Table1[[#This Row],[Aveg Y]]-H137)^2), "" ) -> 
A139: 136 | B139: 68 | C139: 14 | D139: 2023-12-06 | E139: =YEAR(Table1[[#This Row],[Tag]]) -> 2023 | F139: 0 | G139: 10 | H139: 3.5 | I139: =SQRT( ABS(Table1[[#This Row],[Aveg X]])^2 + ABS(Table1[[#This Row],[Aveg Y]])^2 ) -> 10.59481005 | J139: =IF(Table1[[#This Row],[ID Spiegel]]=B138, SQRT((Table1[[#This Row],[Aveg X]]-G138)^2+(Table1[[#This Row],[Aveg Y]]-H138)^2), "" ) -> 17.21917536
A140: 137 | B140: 69 | C140: 14 | D140: 2023-12-06 | E140: =YEAR(Table1[[#This Row],[Tag]]) -> 2023 | F140: 9 | G140: -1.5 | H140: -1 | I140: =SQRT( ABS(Table1[[#This Row],[Aveg X]])^2 + ABS(Table1[[#This Row],[Aveg Y]])^2 ) -> 1.802775638 | J140: =IF(Table1[[#This Row],[ID Spiegel]]=B139, SQRT((Table1[[#This Row],[Aveg X]]-G139)^2+(Table1[[#This Row],[Aveg Y]]-H139)^2), "" ) -> 
A141: 138 | B141: 69 | C141: 14 | D141: 2023-12-06 | E141: =YEAR(Table1[[#This Row],[Tag]]) -> 2023 | F141: 9 | G141: -1.5 | H141: -2 | I141: =SQRT( ABS(Table1[[#This Row],[Aveg X]])^2 + ABS(Table1[[#This Row],[Aveg Y]])^2 ) -> 2.5 | J141: =IF(Table1[[#This Row],[ID Spiegel]]=B140, SQRT((Table1[[#This Row],[Aveg X]]-G140)^2+(Table1[[#This Row],[Aveg Y]]-H140)^2), "" ) -> 1
A142: 139 | B142: 70 | C142: 14 | D142: 2023-12-06 | E142: =YEAR(Table1[[#This Row],[Tag]]) -> 2023 | F142: 7 | G142: -3.5 | H142: -2 | I142: =SQRT( ABS(Table1[[#This Row],[Aveg X]])^2 + ABS(Table1[[#This Row],[Aveg Y]])^2 ) -> 4.031128874 | J142: =IF(Table1[[#This Row],[ID Spiegel]]=B141, SQRT((Table1[[#This Row],[Aveg X]]-G141)^2+(Table1[[#This Row],[Aveg Y]]-H141)^2), "" ) -> 
A143: 140 | B143: 70 | C143: 14 | D143: 2023-12-06 | E143: =YEAR(Table1[[#This Row],[Tag]]) -> 2023 | F143: 8 | G143: -2.5 | H143: -0.5 | I143: =SQRT( ABS(Table1[[#This Row],[Aveg X]])^2 + ABS(Table1[[#This Row],[Aveg Y]])^2 ) -> 2.549509757 | J143: =IF(Table1[[#This Row],[ID Spiegel]]=B142, SQRT((Table1[[#This Row],[Aveg X]]-G142)^2+(Table1[[#This Row],[Aveg Y]]-H142)^2), "" ) -> 1.802775638
A144: 141 | B144: 71 | C144: 15 | D144: 2023-12-06 | E144: =YEAR(Table1[[#This Row],[Tag]]) -> 2023 | F144: 6 | G144: -4.5 | H144: -1.5 | I144: =SQRT( ABS(Table1[[#This Row],[Aveg X]])^2 + ABS(Table1[[#This Row],[Aveg Y]])^2 ) -> 4.74341649 | J144: =IF(Table1[[#This Row],[ID Spiegel]]=B143, SQRT((Table1[[#This Row],[Aveg X]]-G143)^2+(Table1[[#This Row],[Aveg Y]]-H143)^2), "" ) -> 
A145: 142 | B145: 71 | C145: 15 | D145: 2023-12-06 | E145: =YEAR(Table1[[#This Row],[Tag]]) -> 2023 | F145: 4 | G145: -6.5 | H145: -1 | I145: =SQRT( ABS(Table1[[#This Row],[Aveg X]])^2 + ABS(Table1[[#This Row],[Aveg Y]])^2 ) -> 6.576473219 | J145: =IF(Table1[[#This Row],[ID Spiegel]]=B144, SQRT((Table1[[#This Row],[Aveg X]]-G144)^2+(Table1[[#This Row],[Aveg Y]]-H144)^2), "" ) -> 2.061552813
A146: 143 | B146: 72 | C146: 15 | D146: 2023-12-06 | E146: =YEAR(Table1[[#This Row],[Tag]]) -> 2023 | F146: 5 | G146: -5.5 | H146: 3.5 | I146: =SQRT( ABS(Table1[[#This Row],[Aveg X]])^2 + ABS(Table1[[#This Row],[Aveg Y]])^2 ) -> 6.519202405 | J146: =IF(Table1[[#This Row],[ID Spiegel]]=B145, SQRT((Table1[[#This Row],[Aveg X]]-G145)^2+(Table1[[#This Row],[Aveg Y]]-H145)^2), "" ) -> 
A147: 144 | B147: 72 | C147: 15 | D147: 2023-12-06 | E147: =YEAR(Table1[[#This Row],[Tag]]) -> 2023 | F147: 7 | G147: -2 | H147: -3 | I147: =SQRT( ABS(Table1[[#This Row],[Aveg X]])^2 + ABS(Table1[[#This Row],[Aveg Y]])^2 ) -> 3.605551275 | J147: =IF(Table1[[#This Row],[ID Spiegel]]=B146, SQRT((Table1[[#This Row],[Aveg X]]-G146)^2+(Table1[[#This Row],[Aveg Y]]-H146)^2), "" ) -> 7.38241153
A148: 145 | B148: 73 | C148: 15 | D148: 2023-12-06 | E148: =YEAR(Table1[[#This Row],[Tag]]) -> 2023 | F148: 7 | G148: -2.5 | H148: -3 | I148: =SQRT( ABS(Table1[[#This Row],[Aveg X]])^2 + ABS(Table1[[#This Row],[Aveg Y]])^2 ) -> 3.905124838 | J148: =IF(Table1[[#This Row],[ID Spiegel]]=B147, SQRT((Table1[[#This Row],[Aveg X]]-G147)^2+(Table1[[#This Row],[Aveg Y]]-H147)^2), "" ) -> 
A149: 146 | B149: 73 | C149: 15 | D149: 2023-12-06 | E149: =YEAR(Table1[[#This Row],[Tag]]) -> 2023 | F149: 5 | G149: 6 | H149: -1 | I149: =SQRT( ABS(Table1[[#This Row],[Aveg X]])^2 + ABS(Table1[[#This Row],[Aveg Y]])^2 ) -> 6.08276253 | J149: =IF(Table1[[#This Row],[ID Spiegel]]=B148, SQRT((Table1[[#This Row],[Aveg X]]-G148)^2+(Table1[[#This Row],[Aveg Y]]-H148)^2), "" ) -> 8.732124598
A150: 147 | B150: 74 | C150: 15 | D150: 2023-12-06 | E150: =YEAR(Table1[[#This Row],[Tag]]) -> 2023 | F150: 8 | G150: -2 | H150: -2.5 | I150: =SQRT( ABS(Table1[[#This Row],[Aveg X]])^2 + ABS(Table1[[#This Row],[Aveg Y]])^2 ) -> 3.201562119 | J150: =IF(Table1[[#This Row],[ID Spiegel]]=B149, SQRT((Table1[[#This Row],[Aveg X]]-G149)^2+(Table1[[#This Row],[Aveg Y]]-H149)^2), "" ) -> 
A151: 148 | B151: 74 | C151: 15 | D151: 2023-12-06 | E151: =YEAR(Table1[[#This Row],[Tag]]) -> 2023 | F151: 7 | G151: 2 | H151: -3 | I151: =SQRT( ABS(Table1[[#This Row],[Aveg X]])^2 + ABS(Table1[[#This Row],[Aveg Y]])^2 ) -> 3.605551275 | J151: =IF(Table1[[#This Row],[ID Spiegel]]=B150, SQRT((Table1[[#This Row],[Aveg X]]-G150)^2+(Table1[[#This Row],[Aveg Y]]-H150)^2), "" ) -> 4.031128874
A152: 149 | B152: 75 | C152: 15 | D152: 2023-12-06 | E152: =YEAR(Table1[[#This Row],[Tag]]) -> 2023 | F152: 10 | G152: -1 | H152: -1 | I152: =SQRT( ABS(Table1[[#This Row],[Aveg X]])^2 + ABS(Table1[[#This Row],[Aveg Y]])^2 ) -> 1.414213562 | J152: =IF(Table1[[#This Row],[ID Spiegel]]=B151, SQRT((Table1[[#This Row],[Aveg X]]-G151)^2+(Table1[[#This Row],[Aveg Y]]-H151)^2), "" ) -> 
A153: 150 | B153: 75 | C153: 15 | D153: 2023-12-06 | E153: =YEAR(Table1[[#This Row],[Tag]]) -> 2023 | F153: 8 | G153: -3 | H153: -1 | I153: =SQRT( ABS(Table1[[#This Row],[Aveg X]])^2 + ABS(Table1[[#This Row],[Aveg Y]])^2 ) -> 3.16227766 | J153: =IF(Table1[[#This Row],[ID Spiegel]]=B152, SQRT((Table1[[#This Row],[Aveg X]]-G152)^2+(Table1[[#This Row],[Aveg Y]]-H152)^2), "" ) -> 2
A154: 151 | B154: 76 | C154: 16 | D154: 2023-12-06 | E154: =YEAR(Table1[[#This Row],[Tag]]) -> 2023 | F154: 8 | G154: -2.5 | H154: -1.5 | I154: =SQRT( ABS(Table1[[#This Row],[Aveg X]])^2 + ABS(Table1[[#This Row],[Aveg Y]])^2 ) -> 2.915475947 | J154: =IF(Table1[[#This Row],[ID Spiegel]]=B153, SQRT((Table1[[#This Row],[Aveg X]]-G153)^2+(Table1[[#This Row],[Aveg Y]]-H153)^2), "" ) -> 
A155: 152 | B155: 76 | C155: 16 | D155: 2023-12-06 | E155: =YEAR(Table1[[#This Row],[Tag]]) -> 2023 | F155: 8 | G155: -1.5 | H155: -3 | I155: =SQRT( ABS(Table1[[#This Row],[Aveg X]])^2 + ABS(Table1[[#This Row],[Aveg Y]])^2 ) -> 3.354101966 | J155: =IF(Table1[[#This Row],[ID Spiegel]]=B154, SQRT((Table1[[#This Row],[Aveg X]]-G154)^2+(Table1[[#This Row],[Aveg Y]]-H154)^2), "" ) -> 1.802775638
A156: 153 | B156: 77 | C156: 16 | D156: 2023-12-06 | E156: =YEAR(Table1[[#This Row],[Tag]]) -> 2023 | F156: 4 | G156: 7 | H156: 1 | I156: =SQRT( ABS(Table1[[#This Row],[Aveg X]])^2 + ABS(Table1[[#This Row],[Aveg Y]])^2 ) -> 7.071067812 | J156: =IF(Table1[[#This Row],[ID Spiegel]]=B155, SQRT((Table1[[#This Row],[Aveg X]]-G155)^2+(Table1[[#This Row],[Aveg Y]]-H155)^2), "" ) -> 
A157: 154 | B157: 77 | C157: 16 | D157: 2023-12-06 | E157: =YEAR(Table1[[#This Row],[Tag]]) -> 2023 | F157: 0 | G157: -16 | H157: -2 | I157: =SQRT( ABS(Table1[[#This Row],[Aveg X]])^2 + ABS(Table1[[#This Row],[Aveg Y]])^2 ) -> 16.1245155 | J157: =IF(Table1[[#This Row],[ID Spiegel]]=B156, SQRT((Table1[[#This Row],[Aveg X]]-G156)^2+(Table1[[#This Row],[Aveg Y]]-H156)^2), "" ) -> 23.19482701
A158: 155 | B158: 78 | C158: 16 | D158: 2023-12-06 | E158: =YEAR(Table1[[#This Row],[Tag]]) -> 2023 | F158: 10 | G158: -1 | H158: 0.5 | I158: =SQRT( ABS(Table1[[#This Row],[Aveg X]])^2 + ABS(Table1[[#This Row],[Aveg Y]])^2 ) -> 1.118033989 | J158: =IF(Table1[[#This Row],[ID Spiegel]]=B157, SQRT((Table1[[#This Row],[Aveg X]]-G157)^2+(Table1[[#This Row],[Aveg Y]]-H157)^2), "" ) -> 
A159: 156 | B159: 78 | C159: 16 | D159: 2023-12-06 | E159: =YEAR(Table1[[#This Row],[Tag]]) -> 2023 | F159: 7 | G159: 3 | H159: 2.5 | I159: =SQRT( ABS(Table1[[#This Row],[Aveg X]])^2 + ABS(Table1[[#This Row],[Aveg Y]])^2 ) -> 3.905124838 | J159: =IF(Table1[[#This Row],[ID Spiegel]]=B158, SQRT((Table1[[#This Row],[Aveg X]]-G158)^2+(Table1[[#This Row],[Aveg Y]]-H158)^2), "" ) -> 4.472135955
A160: 157 | B160: 79 | C160: 16 | D160: 2023-12-06 | E160: =YEAR(Table1[[#This Row],[Tag]]) -> 2023 | F160: 9 | G160: -0.5 | H160: -2.5 | I160: =SQRT( ABS(Table1[[#This Row],[Aveg X]])^2 + ABS(Table1[[#This Row],[Aveg Y]])^2 ) -> 2.549509757 | J160: =IF(Table1[[#This Row],[ID Spiegel]]=B159, SQRT((Table1[[#This Row],[Aveg X]]-G159)^2+(Table1[[#This Row],[Aveg Y]]-H159)^2), "" ) -> 
A161: 158 | B161: 79 | C161: 16 | D161: 2023-12-06 | E161: =YEAR(Table1[[#This Row],[Tag]]) -> 2023 | F161: 7 | G161: 3.5 | H161: -2.5 | I161: =SQRT( ABS(Table1[[#This Row],[Aveg X]])^2 + ABS(Table1[[#This Row],[Aveg Y]])^2 ) -> 4.301162634 | J161: =IF(Table1[[#This Row],[ID Spiegel]]=B160, SQRT((Table1[[#This Row],[Aveg X]]-G160)^2+(Table1[[#This Row],[Aveg Y]]-H160)^2), "" ) -> 4
A162: 159 | B162: 80 | C162: 16 | D162: 2023-12-06 | E162: =YEAR(Table1[[#This Row],[Tag]]) -> 2023 | F162: 5 | G162: 1.5 | H162: -5.5 | I162: =SQRT( ABS(Table1[[#This Row],[Aveg X]])^2 + ABS(Table1[[#This Row],[Aveg Y]])^2 ) -> 5.700877125 | J162: =IF(Table1[[#This Row],[ID Spiegel]]=B161, SQRT((Table1[[#This Row],[Aveg X]]-G161)^2+(Table1[[#This Row],[Aveg Y]]-H161)^2), "" ) -> 
A163: 160 | B163: 80 | C163: 16 | D163: 2023-12-06 | E163: =YEAR(Table1[[#This Row],[Tag]]) -> 2023 | F163: 0 | G163: 8.5 | H163: 9 | I163: =SQRT( ABS(Table1[[#This Row],[Aveg X]])^2 + ABS(Table1[[#This Row],[Aveg Y]])^2 ) -> 12.3794184 | J163: =IF(Table1[[#This Row],[ID Spiegel]]=B162, SQRT((Table1[[#This Row],[Aveg X]]-G162)^2+(Table1[[#This Row],[Aveg Y]]-H162)^2), "" ) -> 16.10124219
A164: 161 | B164: 81 | C164: 17 | D164: 2023-12-06 | E164: =YEAR(Table1[[#This Row],[Tag]]) -> 2023 | F164: 7 | G164: -2.5 | H164: -3 | I164: =SQRT( ABS(Table1[[#This Row],[Aveg X]])^2 + ABS(Table1[[#This Row],[Aveg Y]])^2 ) -> 3.905124838 | J164: =IF(Table1[[#This Row],[ID Spiegel]]=B163, SQRT((Table1[[#This Row],[Aveg X]]-G163)^2+(Table1[[#This Row],[Aveg Y]]-H163)^2), "" ) -> 
A165: 162 | B165: 81 | C165: 17 | D165: 2023-12-06 | E165: =YEAR(Table1[[#This Row],[Tag]]) -> 2023 | F165: 7 | G165: -1.5 | H165: -4 | I165: =SQRT( ABS(Table1[[#This Row],[Aveg X]])^2 + ABS(Table1[[#This Row],[Aveg Y]])^2 ) -> 4.272001873 | J165: =IF(Table1[[#This Row],[ID Spiegel]]=B164, SQRT((Table1[[#This Row],[Aveg X]]-G164)^2+(Table1[[#This Row],[Aveg Y]]-H164)^2), "" ) -> 1.414213562
A166: 163 | B166: 82 | C166: 17 | D166: 2023-12-06 | E166: =YEAR(Table1[[#This Row],[Tag]]) -> 2023 | F166: 7 | G166: -3.5 | H166: 1.5 | I166: =SQRT( ABS(Table1[[#This Row],[Aveg X]])^2 + ABS(Table1[[#This Row],[Aveg Y]])^2 ) -> 3.807886553 | J166: =IF(Table1[[#This Row],[ID Spiegel]]=B165, SQRT((Table1[[#This Row],[Aveg X]]-G165)^2+(Table1[[#This Row],[Aveg Y]]-H165)^2), "" ) -> 
A167: 164 | B167: 82 | C167: 17 | D167: 2023-12-06 | E167: =YEAR(Table1[[#This Row],[Tag]]) -> 2023 | F167: 7 | G167: -2 | H167: -3.5 | I167: =SQRT( ABS(Table1[[#This Row],[Aveg X]])^2 + ABS(Table1[[#This Row],[Aveg Y]])^2 ) -> 4.031128874 | J167: =IF(Table1[[#This Row],[ID Spiegel]]=B166, SQRT((Table1[[#This Row],[Aveg X]]-G166)^2+(Table1[[#This Row],[Aveg Y]]-H166)^2), "" ) -> 5.220153254
A168: 165 | B168: 83 | C168: 17 | D168: 2023-12-06 | E168: =YEAR(Table1[[#This Row],[Tag]]) -> 2023 | F168: 8 | G168: 0.5 | H168: 3.5 | I168: =SQRT( ABS(Table1[[#This Row],[Aveg X]])^2 + ABS(Table1[[#This Row],[Aveg Y]])^2 ) -> 3.535533906 | J168: =IF(Table1[[#This Row],[ID Spiegel]]=B167, SQRT((Table1[[#This Row],[Aveg X]]-G167)^2+(Table1[[#This Row],[Aveg Y]]-H167)^2), "" ) -> 
A169: 166 | B169: 83 | C169: 17 | D169: 2023-12-06 | E169: =YEAR(Table1[[#This Row],[Tag]]) -> 2023 | F169: 6 | G169: 3 | H169: 4.5 | I169: =SQRT( ABS(Table1[[#This Row],[Aveg X]])^2 + ABS(Table1[[#This Row],[Aveg Y]])^2 ) -> 5.408326913 | J169: =IF(Table1[[#This Row],[ID Spiegel]]=B168, SQRT((Table1[[#This Row],[Aveg X]]-G168)^2+(Table1[[#This Row],[Aveg Y]]-H168)^2), "" ) -> 2.692582404
A170: 167 | B170: 84 | C170: 17 | D170: 2023-12-06 | E170: =YEAR(Table1[[#This Row],[Tag]]) -> 2023 | F170: 8 | G170: 2 | H170: 2.5 | I170: =SQRT( ABS(Table1[[#This Row],[Aveg X]])^2 + ABS(Table1[[#This Row],[Aveg Y]])^2 ) -> 3.201562119 | J170: =IF(Table1[[#This Row],[ID Spiegel]]=B169, SQRT((Table1[[#This Row],[Aveg X]]-G169)^2+(Table1[[#This Row],[Aveg Y]]-H169)^2), "" ) -> 
A171: 168 | B171: 84 | C171: 17 | D171: 2023-12-06 | E171: =YEAR(Table1[[#This Row],[Tag]]) -> 2023 | F171: 5 | G171: 5.5 | H171: 3 | I171: =SQRT( ABS(Table1[[#This Row],[Aveg X]])^2 + ABS(Table1[[#This Row],[Aveg Y]])^2 ) -> 6.264982043 | J171: =IF(Table1[[#This Row],[ID Spiegel]]=B170, SQRT((Table1[[#This Row],[Aveg X]]-G170)^2+(Table1[[#This Row],[Aveg Y]]-H170)^2), "" ) -> 3.535533906
A172: 169 | B172: 85 | C172: 17 | D172: 2023-12-06 | E172: =YEAR(Table1[[#This Row],[Tag]]) -> 2023 | F172: 7 | G172: 3.5 | H172: 1 | I172: =SQRT( ABS(Table1[[#This Row],[Aveg X]])^2 + ABS(Table1[[#This Row],[Aveg Y]])^2 ) -> 3.640054945 | J172: =IF(Table1[[#This Row],[ID Spiegel]]=B171, SQRT((Table1[[#This Row],[Aveg X]]-G171)^2+(Table1[[#This Row],[Aveg Y]]-H171)^2), "" ) -> 
A173: 170 | B173: 85 | C173: 17 | D173: 2023-12-06 | E173: =YEAR(Table1[[#This Row],[Tag]]) -> 2023 | F173: 6 | G173: 4.5 | H173: 0.5 | I173: =SQRT( ABS(Table1[[#This Row],[Aveg X]])^2 + ABS(Table1[[#This Row],[Aveg Y]])^2 ) -> 4.527692569 | J173: =IF(Table1[[#This Row],[ID Spiegel]]=B172, SQRT((Table1[[#This Row],[Aveg X]]-G172)^2+(Table1[[#This Row],[Aveg Y]]-H172)^2), "" ) -> 1.118033989
A174: 171 | B174: 86 | C174: 18 | D174: 2023-12-13 | E174: =YEAR(Table1[[#This Row],[Tag]]) -> 2023 | F174: 6 | G174: -1.5 | H174: -5 | I174: =SQRT( ABS(Table1[[#This Row],[Aveg X]])^2 + ABS(Table1[[#This Row],[Aveg Y]])^2 ) -> 5.220153254 | J174: =IF(Table1[[#This Row],[ID Spiegel]]=B173, SQRT((Table1[[#This Row],[Aveg X]]-G173)^2+(Table1[[#This Row],[Aveg Y]]-H173)^2), "" ) -> 
A175: 172 | B175: 86 | C175: 18 | D175: 2023-12-13 | E175: =YEAR(Table1[[#This Row],[Tag]]) -> 2023 | F175: 5 | G175: -5.5 | H175: -1 | I175: =SQRT( ABS(Table1[[#This Row],[Aveg X]])^2 + ABS(Table1[[#This Row],[Aveg Y]])^2 ) -> 5.590169944 | J175: =IF(Table1[[#This Row],[ID Spiegel]]=B174, SQRT((Table1[[#This Row],[Aveg X]]-G174)^2+(Table1[[#This Row],[Aveg Y]]-H174)^2), "" ) -> 5.656854249
A176: 173 | B176: 87 | C176: 18 | D176: 2023-12-13 | E176: =YEAR(Table1[[#This Row],[Tag]]) -> 2023 | F176: 0 | G176: 11.5 | H176: 1.5 | I176: =SQRT( ABS(Table1[[#This Row],[Aveg X]])^2 + ABS(Table1[[#This Row],[Aveg Y]])^2 ) -> 11.5974135 | J176: =IF(Table1[[#This Row],[ID Spiegel]]=B175, SQRT((Table1[[#This Row],[Aveg X]]-G175)^2+(Table1[[#This Row],[Aveg Y]]-H175)^2), "" ) -> 
A177: 174 | B177: 87 | C177: 18 | D177: 2023-12-13 | E177: =YEAR(Table1[[#This Row],[Tag]]) -> 2023 | F177: 8 | G177: -3 | H177: -1 | I177: =SQRT( ABS(Table1[[#This Row],[Aveg X]])^2 + ABS(Table1[[#This Row],[Aveg Y]])^2 ) -> 3.16227766 | J177: =IF(Table1[[#This Row],[ID Spiegel]]=B176, SQRT((Table1[[#This Row],[Aveg X]]-G176)^2+(Table1[[#This Row],[Aveg Y]]-H176)^2), "" ) -> 14.71393897
A178: 175 | B178: 88 | C178: 18 | D178: 2023-12-13 | E178: =YEAR(Table1[[#This Row],[Tag]]) -> 2023 | F178: 7 | G178: 4 | H178: -1 | I178: =SQRT( ABS(Table1[[#This Row],[Aveg X]])^2 + ABS(Table1[[#This Row],[Aveg Y]])^2 ) -> 4.123105626 | J178: =IF(Table1[[#This Row],[ID Spiegel]]=B177, SQRT((Table1[[#This Row],[Aveg X]]-G177)^2+(Table1[[#This Row],[Aveg Y]]-H177)^2), "" ) -> 
A179: 176 | B179: 88 | C179: 18 | D179: 2023-12-13 | E179: =YEAR(Table1[[#This Row],[Tag]]) -> 2023 | F179: 4 | G179: 4.5 | H179: -5.5 | I179: =SQRT( ABS(Table1[[#This Row],[Aveg X]])^2 + ABS(Table1[[#This Row],[Aveg Y]])^2 ) -> 7.106335202 | J179: =IF(Table1[[#This Row],[ID Spiegel]]=B178, SQRT((Table1[[#This Row],[Aveg X]]-G178)^2+(Table1[[#This Row],[Aveg Y]]-H178)^2), "" ) -> 4.527692569
A180: 177 | B180: 89 | C180: 18 | D180: 2023-12-13 | E180: =YEAR(Table1[[#This Row],[Tag]]) -> 2023 | F180: 6 | G180: 5 | H180: 1.5 | I180: =SQRT( ABS(Table1[[#This Row],[Aveg X]])^2 + ABS(Table1[[#This Row],[Aveg Y]])^2 ) -> 5.220153254 | J180: =IF(Table1[[#This Row],[ID Spiegel]]=B179, SQRT((Table1[[#This Row],[Aveg X]]-G179)^2+(Table1[[#This Row],[Aveg Y]]-H179)^2), "" ) -> 
A181: 178 | B181: 89 | C181: 18 | D181: 2023-12-13 | E181: =YEAR(Table1[[#This Row],[Tag]]) -> 2023 | F181: 4 | G181: 6.5 | H181: -1.5 | I181: =SQRT( ABS(Table1[[#This Row],[Aveg X]])^2 + ABS(Table1[[#This Row],[Aveg Y]])^2 ) -> 6.670832032 | J181: =IF(Table1[[#This Row],[ID Spiegel]]=B180, SQRT((Table1[[#This Row],[Aveg X]]-G180)^2+(Table1[[#This Row],[Aveg Y]]-H180)^2), "" ) -> 3.354101966
A182: 179 | B182: 90 | C182: 18 | D182: 2023-12-13 | E182: =YEAR(Table1[[#This Row],[Tag]]) -> 2023 | F182: 6 | G182: 2.5 | H182: -5 | I182: =SQRT( ABS(Table1[[#This Row],[Aveg X]])^2 + ABS(Table1[[#This Row],[Aveg Y]])^2 ) -> 5.590169944 | J182: =IF(Table1[[#This Row],[ID Spiegel]]=B181, SQRT((Table1[[#This Row],[Aveg X]]-G181)^2+(Table1[[#This Row],[Aveg Y]]-H181)^2), "" ) -> 
A183: 180 | B183: 90 | C183: 18 | D183: 2023-12-13 | E183: =YEAR(Table1[[#This Row],[Tag]]) -> 2023 | F183: 5 | G183: 5 | H183: -4.5 | I183: =SQRT( ABS(Table1[[#This Row],[Aveg X]])^2 + ABS(Table1[[#This Row],[Aveg Y]])^2 ) -> 6.726812024 | J183: =IF(Table1[[#This Row],[ID Spiegel]]=B182, SQRT((Table1[[#This Row],[Aveg X]]-G182)^2+(Table1[[#This Row],[Aveg Y]]-H182)^2), "" ) -> 2.549509757
A184: 181 | B184: 91 | C184: 19 | D184: 2023-12-13 | E184: =YEAR(Table1[[#This Row],[Tag]]) -> 2023 | F184: 6 | G184: 5 | H184: 2.5 | I184: =SQRT( ABS(Table1[[#This Row],[Aveg X]])^2 + ABS(Table1[[#This Row],[Aveg Y]])^2 ) -> 5.590169944 | J184: =IF(Table1[[#This Row],[ID Spiegel]]=B183, SQRT((Table1[[#This Row],[Aveg X]]-G183)^2+(Table1[[#This Row],[Aveg Y]]-H183)^2), "" ) -> 
A185: 182 | B185: 91 | C185: 19 | D185: 2023-12-13 | E185: =YEAR(Table1[[#This Row],[Tag]]) -> 2023 | F185: 6 | G185: -3.5 | H185: -4 | I185: =SQRT( ABS(Table1[[#This Row],[Aveg X]])^2 + ABS(Table1[[#This Row],[Aveg Y]])^2 ) -> 5.315072906 | J185: =IF(Table1[[#This Row],[ID Spiegel]]=B184, SQRT((Table1[[#This Row],[Aveg X]]-G184)^2+(Table1[[#This Row],[Aveg Y]]-H184)^2), "" ) -> 10.70046728
A186: 183 | B186: 92 | C186: 19 | D186: 2023-12-13 | E186: =YEAR(Table1[[#This Row],[Tag]]) -> 2023 | F186: 10 | G186: 1.5 | H186: 1.5 | I186: =SQRT( ABS(Table1[[#This Row],[Aveg X]])^2 + ABS(Table1[[#This Row],[Aveg Y]])^2 ) -> 2.121320344 | J186: =IF(Table1[[#This Row],[ID Spiegel]]=B185, SQRT((Table1[[#This Row],[Aveg X]]-G185)^2+(Table1[[#This Row],[Aveg Y]]-H185)^2), "" ) -> 
A187: 184 | B187: 92 | C187: 19 | D187: 2023-12-13 | E187: =YEAR(Table1[[#This Row],[Tag]]) -> 2023 | F187: 6 | G187: -5 | H187: -1 | I187: =SQRT( ABS(Table1[[#This Row],[Aveg X]])^2 + ABS(Table1[[#This Row],[Aveg Y]])^2 ) -> 5.099019514 | J187: =IF(Table1[[#This Row],[ID Spiegel]]=B186, SQRT((Table1[[#This Row],[Aveg X]]-G186)^2+(Table1[[#This Row],[Aveg Y]]-H186)^2), "" ) -> 6.964194139
A188: 185 | B188: 93 | C188: 19 | D188: 2023-12-13 | E188: =YEAR(Table1[[#This Row],[Tag]]) -> 2023 | F188: 7 | G188: -2.5 | H188: -3 | I188: =SQRT( ABS(Table1[[#This Row],[Aveg X]])^2 + ABS(Table1[[#This Row],[Aveg Y]])^2 ) -> 3.905124838 | J188: =IF(Table1[[#This Row],[ID Spiegel]]=B187, SQRT((Table1[[#This Row],[Aveg X]]-G187)^2+(Table1[[#This Row],[Aveg Y]]-H187)^2), "" ) -> 
A189: 186 | B189: 93 | C189: 19 | D189: 2023-12-13 | E189: =YEAR(Table1[[#This Row],[Tag]]) -> 2023 | F189: 6 | G189: -4.5 | H189: 1 | I189: =SQRT( ABS(Table1[[#This Row],[Aveg X]])^2 + ABS(Table1[[#This Row],[Aveg Y]])^2 ) -> 4.609772229 | J189: =IF(Table1[[#This Row],[ID Spiegel]]=B188, SQRT((Table1[[#This Row],[Aveg X]]-G188)^2+(Table1[[#This Row],[Aveg Y]]-H188)^2), "" ) -> 4.472135955
A190: 187 | B190: 94 | C190: 19 | D190: 2023-12-13 | E190: =YEAR(Table1[[#This Row],[Tag]]) -> 2023 | F190: 7 | G190: -3.5 | H190: 1 | I190: =SQRT( ABS(Table1[[#This Row],[Aveg X]])^2 + ABS(Table1[[#This Row],[Aveg Y]])^2 ) -> 3.640054945 | J190: =IF(Table1[[#This Row],[ID Spiegel]]=B189, SQRT((Table1[[#This Row],[Aveg X]]-G189)^2+(Table1[[#This Row],[Aveg Y]]-H189)^2), "" ) -> 
A191: 188 | B191: 94 | C191: 19 | D191: 2023-12-13 | E191: =YEAR(Table1[[#This Row],[Tag]]) -> 2023 | F191: 7 | G191: 4 | H191: 1.5 | I191: =SQRT( ABS(Table1[[#This Row],[Aveg X]])^2 + ABS(Table1[[#This Row],[Aveg Y]])^2 ) -> 4.272001873 | J191: =IF(Table1[[#This Row],[ID Spiegel]]=B190, SQRT((Table1[[#This Row],[Aveg X]]-G190)^2+(Table1[[#This Row],[Aveg Y]]-H190)^2), "" ) -> 7.516648189
A192: 189 | B192: 95 | C192: 19 | D192: 2023-12-13 | E192: =YEAR(Table1[[#This Row],[Tag]]) -> 2023 | F192: 10 | G192: 0.5 | H192: 0.5 | I192: =SQRT( ABS(Table1[[#This Row],[Aveg X]])^2 + ABS(Table1[[#This Row],[Aveg Y]])^2 ) -> 0.7071067812 | J192: =IF(Table1[[#This Row],[ID Spiegel]]=B191, SQRT((Table1[[#This Row],[Aveg X]]-G191)^2+(Table1[[#This Row],[Aveg Y]]-H191)^2), "" ) -> 
A193: 190 | B193: 95 | C193: 19 | D193: 2023-12-13 | E193: =YEAR(Table1[[#This Row],[Tag]]) -> 2023 | F193: 3 | G193: 7.5 | H193: 1 | I193: =SQRT( ABS(Table1[[#This Row],[Aveg X]])^2 + ABS(Table1[[#This Row],[Aveg Y]])^2 ) -> 7.566372975 | J193: =IF(Table1[[#This Row],[ID Spiegel]]=B192, SQRT((Table1[[#This Row],[Aveg X]]-G192)^2+(Table1[[#This Row],[Aveg Y]]-H192)^2), "" ) -> 7.017834424
A194: 191 | B194: 96 | C194: 20 | D194: 2023-12-13 | E194: =YEAR(Table1[[#This Row],[Tag]]) -> 2023 | F194: 6 | G194: -5 | H194: -1.5 | I194: =SQRT( ABS(Table1[[#This Row],[Aveg X]])^2 + ABS(Table1[[#This Row],[Aveg Y]])^2 ) -> 5.220153254 | J194: =IF(Table1[[#This Row],[ID Spiegel]]=B193, SQRT((Table1[[#This Row],[Aveg X]]-G193)^2+(Table1[[#This Row],[Aveg Y]]-H193)^2), "" ) -> 
A195: 192 | B195: 96 | C195: 20 | D195: 2023-12-13 | E195: =YEAR(Table1[[#This Row],[Tag]]) -> 2023 | F195: 10 | G195: 1.5 | H195: 0 | I195: =SQRT( ABS(Table1[[#This Row],[Aveg X]])^2 + ABS(Table1[[#This Row],[Aveg Y]])^2 ) -> 1.5 | J195: =IF(Table1[[#This Row],[ID Spiegel]]=B194, SQRT((Table1[[#This Row],[Aveg X]]-G194)^2+(Table1[[#This Row],[Aveg Y]]-H194)^2), "" ) -> 6.670832032
A196: =IF(ISTEXT(A195),1,A195+1) -> 193 | B196: =IF(ISTEXT(B195),1,IF(B195=B194,B195+1,B195)) -> 97 | C196: 20 | D196: 2023-12-13 | E196: =YEAR(Table1[[#This Row],[Tag]]) -> 2023 | F196: 8 | G196: -1 | H196: 3 | I196: =SQRT( ABS(Table1[[#This Row],[Aveg X]])^2 + ABS(Table1[[#This Row],[Aveg Y]])^2 ) -> 3.16227766 | J196: =IF(Table1[[#This Row],[ID Spiegel]]=B195, SQRT((Table1[[#This Row],[Aveg X]]-G195)^2+(Table1[[#This Row],[Aveg Y]]-H195)^2), "" ) -> 
A197: 194 | B197: 97 | C197: 20 | D197: 2023-12-13 | E197: =YEAR(Table1[[#This Row],[Tag]]) -> 2023 | F197: 5 | G197: 5 | H197: -3.5 | I197: =SQRT( ABS(Table1[[#This Row],[Aveg X]])^2 + ABS(Table1[[#This Row],[Aveg Y]])^2 ) -> 6.103277808 | J197: =IF(Table1[[#This Row],[ID Spiegel]]=B196, SQRT((Table1[[#This Row],[Aveg X]]-G196)^2+(Table1[[#This Row],[Aveg Y]]-H196)^2), "" ) -> 8.845903006
A198: 195 | B198: 98 | C198: 20 | D198: 2023-12-13 | E198: =YEAR(Table1[[#This Row],[Tag]]) -> 2023 | F198: 10 | G198: 0.5 | H198: 0.5 | I198: =SQRT( ABS(Table1[[#This Row],[Aveg X]])^2 + ABS(Table1[[#This Row],[Aveg Y]])^2 ) -> 0.7071067812 | J198: =IF(Table1[[#This Row],[ID Spiegel]]=B197, SQRT((Table1[[#This Row],[Aveg X]]-G197)^2+(Table1[[#This Row],[Aveg Y]]-H197)^2), "" ) -> 
A199: 196 | B199: 98 | C199: 20 | D199: 2023-12-13 | E199: =YEAR(Table1[[#This Row],[Tag]]) -> 2023 | F199: 5 | G199: 5.5 | H199: -1 | I199: =SQRT( ABS(Table1[[#This Row],[Aveg X]])^2 + ABS(Table1[[#This Row],[Aveg Y]])^2 ) -> 5.590169944 | J199: =IF(Table1[[#This Row],[ID Spiegel]]=B198, SQRT((Table1[[#This Row],[Aveg X]]-G198)^2+(Table1[[#This Row],[Aveg Y]]-H198)^2), "" ) -> 5.220153254
A200: 197 | B200: 99 | C200: 20 | D200: 2023-12-13 | E200: =YEAR(Table1[[#This Row],[Tag]]) -> 2023 | F200: 8 | G200: -1.5 | H200: -2.5 | I200: =SQRT( ABS(Table1[[#This Row],[Aveg X]])^2 + ABS(Table1[[#This Row],[Aveg Y]])^2 ) -> 2.915475947 | J200: =IF(Table1[[#This Row],[ID Spiegel]]=B199, SQRT((Table1[[#This Row],[Aveg X]]-G199)^2+(Table1[[#This Row],[Aveg Y]]-H199)^2), "" ) -> 
A201: 198 | B201: 99 | C201: 20 | D201: 2023-12-13 | E201: =YEAR(Table1[[#This Row],[Tag]]) -> 2023 | F201: 7 | G201: 3.5 | H201: 2.5 | I201: =SQRT( ABS(Table1[[#This Row],[Aveg X]])^2 + ABS(Table1[[#This Row],[Aveg Y]])^2 ) -> 4.301162634 | J201: =IF(Table1[[#This Row],[ID Spiegel]]=B200, SQRT((Table1[[#This Row],[Aveg X]]-G200)^2+(Table1[[#This Row],[Aveg Y]]-H200)^2), "" ) -> 7.071067812
... 1802 more rows

Sheet Sheet3
A2: 2023-11-15 | B2: 2
A3: 2023-11-22 | B3: 2
A4: 2023-11-29 | B4: 2
A5: 2023-12-06 | B5: 2
A6: 2023-12-13 | B6: 2
A7: 2023-12-20 | B7: 2
A8: 2023-12-27 | B8: 2
A9: 2024-01-10 | B9: 2 | C9: 20
A10: 2024-01-17 | B10: 2
A11: 2024-01-24 | B11: 2
A12: 2024-01-31 | B12: 2
A13: 2024-02-03 | B13: 2
A14: 2024-02-07 | B14: 2
A15: 2024-02-14 | B15: 2
A16: 2024-03-06 | B16: 2
A17: 2024-03-20 | B17: 2
A18: 2024-03-23 | B18: 2
A19: 2024-10-22 | B19: 2 | C19: 22
A20: 2024-11-05 | B20: 2
A21: 2024-11-12 | B21: 2
A22: 2024-11-19 | B22: 2
A23: 2024-11-26 | B23: 2
A24: 2024-11-27 | B24: 2
A25: 2024-12-03 | B25: 2
A26: 2024-12-10 | B26: 2
A27: 2024-12-11 | B27: 2
A28: 2024-12-17 | B28: 2
A29: 2024-12-18 | B29: 2
A30: 2025-01-07 | B30: 2 | C30: 28
A31: 2025-01-14 | B31: 2
A32: 2025-01-21 | B32: 2
A33: 2025-01-28 | B33: 2
A34: 2025-01-29 | B34: 2
A35: 2025-02-04 | B35: 2
A36: 2025-02-05 | B36: 2
A37: 2025-02-08 | B37: 2
A38: 2025-02-11 | B38: 2
A39: 2025-02-12 | B39: 2
A40: 2025-03-04 | B40: 2
A41: 2025-03-05 | B41: 2
A42: 2025-03-11 | B42: 2
A43: 2025-03-12 | B43: 2

Sheet Fragestellungen
A1: Nach wie viele Zeit sind die erste Verbesserungen ersichtlich?
A2: Sind verbesserungen ersichtlich?
A3: Wie verändert sich die Nähe der zwei Schüsse?
A4: Sieht man bei Trainingskonsistenz veränderungen?

Sheet DDLo (hidden)
A2: ID Schuss | B2: ID Spiegel | C2: ID Scheibe | D2: Tag | E2: Punkte (pro Schuss) | F2: X_pkt_1 | G2: X_pkt_2 | H2: Aveg X | I2: Y_pkt_1 | J2: Y_pkt_2 | K2: Aveg Y
A3: =IF(ISTEXT(A2),1,A2+1) -> 1 | B3: =IF(ISTEXT(B2),1,IF(B2=B1,B2+1,B2)) -> 1 | C3: 1 | D3: 2024-12-03 | E3: 10 | F3: 10 | G3: 8 | H3: 1 | I3: 10 | J3: -9 | K3: -0.5
A4: =IF(ISTEXT(A3),1,A3+1) -> 2 | B4: 1 | C4: 1 | D4: 2024-12-03 | E4: 5 | F4: 5 | G4: 4 | H4: 5.5 | I4: 10 | J4: -10 | K4: 0
A5: 3 | B5: 2 | C5: 1 | D5: 2024-12-03 | E5: 7 | F5: 7 | G5: 5 | H5: 4 | I5: -8 | J5: -7 | K5: -2.5
A6: 4 | B6: 2 | C6: 1 | D6: 2024-12-03 | E6: 6 | F6: -4 | G6: -6 | H6: -5 | I6: 9 | J6: 7 | K6: 2
A7: 5 | B7: 3 | C7: 1 | D7: 2024-12-03 | E7: 9 | F7: -9 | G7: -7 | H7: -2 | I7: 9 | J7: 8 | K7: 1.5
A8: 6 | B8: 3 | C8: 1 | D8: 2024-12-03 | E8: 8 | F8: -6 | G8: -8 | H8: -3 | I8: 9 | J8: 8 | K8: 1.5
A9: 7 | B9: 4 | C9: 1 | D9: 2024-12-03 | E9: 10 | F9: -9 | G9: -8 | H9: -1.5 | I9: 9 | J9: 8 | K9: 1.5
A10: 8 | B10: 4 | C10: 1 | D10: 2024-12-03 | E10: 9 | F10: -7 | G10: -9 | H10: -2 | I10: 10 | J10: 10 | K10: 0
A11: 9 | B11: 5 | C11: 1 | D11: 2024-12-03 | E11: 10 | F11: -10 | G11: -8 | H11: -1 | I11: 10 | J11: 8 | K11: 1
A12: 10 | B12: 5 | C12: 1 | D12: 2024-12-03 | E12: 7 | F12: -6 | G12: -7 | H12: -3.5 | I12: 10 | J12: 8 | K12: 1
A13: 11 | B13: 6 | C13: 2 | D13: 2024-12-03 | E13: 10 | F13: 10 | G13: 8 | H13: 1 | I13: 10 | J13: 9 | K13: 0.5
A14: 12 | B14: 6 | C14: 2 | D14: 2024-12-03 | E14: 6 | F14: -5 | G14: -6 | H14: -4.5 | I14: -9 | J14: -8 | K14: -1.5
A15: 13 | B15: 7 | C15: 2 | D15: 2024-12-03 | E15: 10 | F15: 10 | G15: 9 | H15: 0.5 | I15: 10 | J15: 10 | K15: 0
A16: 14 | B16: 7 | C16: 2 | D16: 2024-12-03 | E16: 8 | F16: -8 | G16: -7 | H16: -2.5 | I16: 8 | J16: 7 | K16: 2.5
A17: 15 | B17: 8 | C17: 2 | D17: 2024-12-03 | E17: 9 | F17: -9 | G17: -8 | H17: -1.5 | I17: -10 | J17: -9 | K17: -0.5
A18: 16 | B18: 8 | C18: 2 | D18: 2024-12-03 | E18: 9 | F18: -9 | G18: 9 | H18: 0 | I18: -9 | J18: -7 | K18: -2
A19: 17 | B19: 9 | C19: 2 | D19: 2024-12-03 | E19: 8 | F19: -9 | G19: -7 | H19: -2 | I19: 7 | J19: 8 | K19: 2.5
A20: 18 | B20: 9 | C20: 2 | D20: 2024-12-03 | E20: 7 | F20: -6 | G20: -8 | H20: -3 | I20: -7 | J20: -6 | K20: -3.5
A21: 19 | B21: 10 | C21: 2 | D21: 2024-12-03 | E21: 9 | F21: -8 | G21: -9 | H21: -1.5 | I21: 7 | J21: 9 | K21: 2
A22: 20 | B22: 10 | C22: 2 | D22: 2024-12-03 | E22: 7 | F22: 10 | G22: -7 | H22: -1.5 | I22: -6 | J22: -5 | K22: -4.5
A23: 21 | B23: 11 | C23: 3 | D23: 2024-12-03 | E23: 8 | F23: 10 | G23: 8 | H23: 1 | I23: 8 | J23: 7 | K23: 2.5
A24: 22 | B24: 11 | C24: 3 | D24: 2024-12-03 | E24: 7 | F24: -7 | G24: -6 | H24: -3.5 | I24: -9 | J24: -7 | K24: -2
A25: 23 | B25: 12 | C25: 3 | D25: 2024-12-03 | E25: 9 | F25: -9 | G25: 8 | H25: 0.5 | I25: 10 | J25: -8 | K25: -1
A26: 24 | B26: 12 | C26: 3 | D26: 2024-12-03 | E26: 7 | F26: 10 | G26: -8 | H26: -1 | I26: -7 | J26: -5 | K26: -4
A27: 25 | B27: 13 | C27: 3 | D27: 2024-12-03 | E27: 9 | F27: -10 | G27: -8 | H27: -1 | I27: -8 | J27: -7 | K27: -2.5
A28: 26 | B28: 13 | C28: 3 | D28: 2024-12-03 | E28: 4 | F28: 4 | G28: 3 | H28: 6.5 | I28: -6 | J28: -4 | K28: -5
A29: 27 | B29: 14 | C29: 3 | D29: 2024-12-03 | E29: 9 | F29: 9 | G29: -8 | H29: -0.5 | I29: 9 | J29: 8 | K29: 1.5
A30: 28 | B30: 14 | C30: 3 | D30: 2024-12-03 | E30: 8 | F30: -9 | G30: -8 | H30: -1.5 | I30: 8 | J30: 6 | K30: 3
A31: 29 | B31: 15 | C31: 3 | D31: 2024-12-03 | E31: 10 | F31: 9 | G31: -9 | H31: 0 | I31: 9 | J31: -8 | K31: -0.5
A32: 30 | B32: 15 | C32: 3 | D32: 2024-12-03 | E32: 7 | F32: -7 | G32: -5 | H32: -4 | I32: -8 | J32: -6 | K32: -3
A33: 31 | B33: 16 | C33: 4 | D33: 2024-12-03 | E33: 9 | F33: 9 | G33: -9 | H33: 0 | I33: 8 | J33: 7 | K33: 2.5
A34: 32 | B34: 16 | C34: 4 | D34: 2024-12-03 | E34: 9 | F34: -9 | G34: -7 | H34: -2 | I34: 9 | J34: 8 | K34: 1.5
A35: 33 | B35: 17 | C35: 4 | D35: 2024-12-03 | E35: 10 | F35: 9 | G35: -9 | H35: 0 | I35: 10 | J35: 8 | K35: 1
A36: 34 | B36: 17 | C36: 4 | D36: 2024-12-03 | E36: 9 | F36: -9 | G36: -7 | H36: -2 | I36: 9 | J36: 8 | K36: 1.5
A37: 35 | B37: 18 | C37: 4 | D37: 2024-12-03 | E37: 9 | F37: 10 | G37: 8 | H37: 1 | I37: 7 | J37: 6 | K37: 3.5
A38: 36 | B38: 18 | C38: 4 | D38: 2024-12-03 | E38: 7 | F38: -9 | G38: -8 | H38: -1.5 | I38: -10 | J38: -8 | K38: -1
A39: 37 | B39: 19 | C39: 4 | D39: 2024-12-03 | E39: 8 | F39: 10 | G39: 8 | H39: 1 | I39: 8 | J39: 6 | K39: 3
A40: 38 | B40: 19 | C40: 4 | D40: 2024-12-03 | E40: 7 | F40: -10 | G40: -8 | H40: -1 | I40: -7 | J40: -6 | K40: -3.5
A41: 39 | B41: 20 | C41: 4 | D41: 2024-12-03 | E41: 9 | F41: -9 | G41: -8 | H41: -1.5 | I41: -9 | J41: 8 | K41: 0.5
A42: 40 | B42: 20 | C42: 4 | D42: 2024-12-03 | E42: 6 | F42: 6 | G42: 5 | H42: 4.5 | I42: -8 | J42: -7 | K42: -2.5
A43: 41 | B43: 21 | C43: 5 | D43: 2024-12-03 | E43: 6 | F43: 9 | G43: 7 | H43: 2 | I43: 4 | J43: 5 | K43: 5.5
A44: 42 | B44: 21 | C44: 5 | D44: 2024-12-03 | E44: 4 | F44: 6 | G44: 4 | H44: 5 | I44: -5 | J44: -4 | K44: -5.5
A45: 43 | B45: 22 | C45: 5 | D45: 2024-12-03 | E45: 7 | F45: 7 | G45: 6 | H45: 3.5 | I45: -8 | J45: -7 | K45: -2.5
A46: 44 | B46: 22 | C46: 5 | D46: 2024-12-03 | E46: 5 | F46: 10 | G46: 8 | H46: 1 | I46: -5 | J46: -4 | K46: -5.5
A47: 45 | B47: 23 | C47: 5 | D47: 2024-12-03 | E47: 6 | F47: -7 | G47: -5 | H47: -4 | I47: -7 | J47: -6 | K47: -3.5
A48: 46 | B48: 23 | C48: 5 | D48: 2024-12-03 | E48: 3 | F48: 4 | G48: 3 | H48: 6.5 | I48: -5 | J48: -4 | K48: -5.5
A49: 47 | B49: 24 | C49: 5 | D49: 2024-12-03 | E49: 7 | F49: 7 | G49: 6 | H49: 3.5 | I49: -7 | J49: -6 | K49: -3.5
A50: 48 | B50: 24 | C50: 5 | D50: 2024-12-03 | E50: 5 | F50: 10 | G50: 8 | H50: 1 | I50: -5 | J50: -4 | K50: -5.5
A51: 49 | B51: 25 | C51: 5 | D51: 2024-12-03 | E51: 7 | F51: 8 | G51: 7 | H51: 2.5 | I51: -7 | J51: -6 | K51: -3.5
A52: 50 | B52: 25 | C52: 5 | D52: 2024-12-03 | E52: 4 | F52: 9 | G52: 7 | H52: 2 | I52: -4 | J52: -3 | K52: -6.5
A53: 51 | B53: 26 | C53: 6 | D53: 2024-12-10 | E53: 5 | F53: 6 | G53: 5 | H53: 4.5 | I53: -6 | J53: -5 | K53: -4.5
A54: 52 | B54: 26 | C54: 6 | D54: 2024-12-10 | E54: 5 | F54: 7 | G54: 6 | H54: 3.5 | I54: -5 | J54: -4 | K54: -5.5
A55: 53 | B55: 27 | C55: 6 | D55: 2024-12-10 | E55: 9 | F55: 10 | G55: 8 | H55: 1 | I55: -10 | J55: -8 | K55: -1
A56: 54 | B56: 27 | C56: 6 | D56: 2024-12-10 | E56: 4 | F56: 7 | G56: 5 | H56: 4 | I56: -5 | J56: -4 | K56: -5.5
A57: 55 | B57: 28 | C57: 6 | D57: 2024-12-10 | E57: 8 | F57: -9 | G57: 9 | H57: 0 | I57: -8 | J57: -7 | K57: -2.5
A58: 56 | B58: 28 | C58: 6 | D58: 2024-12-10 | E58: 5 | F58: 5 | G58: 4 | H58: 5.5 | I58: -6 | J58: -5 | K58: -4.5
A59: 57 | B59: 29 | C59: 6 | D59: 2024-12-10 | E59: 8 | F59: 8 | G59: 6 | H59: 3 | I59: -9 | J59: -8 | K59: -1.5
A60: 58 | B60: 29 | C60: 6 | D60: 2024-12-10 | E60: 7 | F60: 8 | G60: 7 | H60: 2.5 | I60: -7 | J60: -6 | K60: -3.5
A61: 59 | B61: 30 | C61: 6 | D61: 2024-12-10 | E61: 8 | F61: -8 | G61: -6 | H61: -3 | I61: -8 | J61: -7 | K61: -2.5
A62: 60 | B62: 30 | C62: 6 | D62: 2024-12-10 | E62: 8 | F62: 8 | G62: 6 | H62: 3 | I62: 9 | J62: -8 | K62: -0.5
A63: 61 | B63: 31 | C63: 7 | D63: 2024-12-10 | E63: 8 | F63: 8 | G63: 6 | H63: 3 | I63: -9 | J63: -8 | K63: -1.5
A64: 62 | B64: 31 | C64: 7 | D64: 2024-12-10 | E64: 7 | F64: 8 | G64: 7 | H64: 2.5 | I64: -7 | J64: -6 | K64: -3.5
A65: 63 | B65: 32 | C65: 7 | D65: 2024-12-10 | E65: 8 | F65: 10 | G65: 8 | H65: 1 | I65: -8 | J65: -7 | K65: -2.5
A66: 64 | B66: 32 | C66: 7 | D66: 2024-12-10 | E66: 7 | F66: 7 | G66: 6 | H66: 3.5 | I66: -10 | J66: -8 | K66: -1
A67: =IF(ISTEXT(A66),1,A66+1) -> 65 | B67: =IF(ISTEXT(B66),1,IF(B66=B65,B66+1,B66)) -> 33 | C67: 7 | D67: 2024-12-10 | E67: 9 | F67: 7 | G67: 9 | H67: 2 | I67: 9 | J67: -8 | K67: -0.5
A68: 66 | B68: 33 | C68: 7 | D68: 2024-12-10 | E68: 5 | F68: 5 | G68: 4 | H68: 5.5 | I68: -8 | J68: -6 | K68: -3
A69: 67 | B69: 34 | C69: 7 | D69: 2024-12-10 | E69: 9 | F69: 9 | G69: 8 | H69: 1.5 | I69: -9 | J69: -8 | K69: -1.5
A70: 68 | B70: 34 | C70: 7 | D70: 2024-12-10 | E70: 7 | F70: 9 | G70: -9 | H70: 0 | I70: 6 | J70: 7 | K70: 3.5
A71: 69 | B71: 35 | C71: 7 | D71: 2024-12-10 | E71: 10 | F71: 10 | G71: -8 | H71: -1 | I71: 10 | J71: -8 | K71: -1
A72: 70 | B72: 35 | C72: 7 | D72: 2024-12-10 | E72: 7 | F72: 9 | G72: 8 | H72: 1.5 | I72: -7 | J72: -6 | K72: -3.5
A73: 71 | B73: 36 | C73: 8 | D73: 2024-12-10 | E73: 9 | F73: -9 | G73: -8 | H73: -1.5 | I73: -9 | J73: -8 | K73: -1.5
A74: 72 | B74: 36 | C74: 8 | D74: 2024-12-10 | E74: 6 | F74: -7 | G74: -6 | H74: -3.5 | I74: 7 | J74: 6 | K74: 3.5
A75: 73 | B75: 37 | C75: 8 | D75: 2024-12-10 | E75: 6 | F75: 6 | G75: 5 | H75: 4.5 | I75: 7 | J75: 8 | K75: 2.5
A76: 74 | B76: 37 | C76: 8 | D76: 2024-12-10 | E76: 6 | F76: 9 | G76: -8 | H76: -0.5 | I76: -6 | J76: -5 | K76: -4.5
A77: 75 | B77: 38 | C77: 8 | D77: 2024-12-10 | E77: 9 | F77: -9.5 | G77: -7.5 | H77: -1.5 | I77: 10 | J77: 8 | K77: 1
A78: 76 | B78: 38 | C78: 8 | D78: 2024-12-10 | E78: 8 | F78: 6 | G78: 8 | H78: 3 | I78: 10 | J78: -8 | K78: -1
A79: 77 | B79: 39 | C79: 8 | D79: 2024-12-10 | E79: 10 | F79: 9 | G79: -9 | H79: 0 | I79: 9 | J79: -8 | K79: -0.5
A80: 78 | B80: 39 | C80: 8 | D80: 2024-12-10 | E80: 8 | F80: 10 | G80: -8 | H80: -1 | I80: 8 | J80: 7 | K80: 2.5
A81: 79 | B81: 40 | C81: 8 | D81: 2024-12-10 | E81: 7 | F81: 6 | G81: 7 | H81: 3.5 | I81: 10 | J81: 8 | K81: 1
A82: 80 | B82: 40 | C82: 8 | D82: 2024-12-10 | E82: 4 | F82: -4 | G82: -3 | H82: -6.5 | I82: 10 | J82: -7 | K82: -1.5
A83: 81 | B83: 41 | C83: 9 | D83: 2024-12-10 | E83: 9 | F83: 9 | G83: 7 | H83: 2 | I83: 10 | J83: 8 | K83: 1
A84: 82 | B84: 41 | C84: 9 | D84: 2024-12-10 | E84: 9 | F84: 10 | G84: 10 | H84: 0 | I84: -8 | J84: -9 | K84: -1.5
A85: 83 | B85: 42 | C85: 9 | D85: 2024-12-10 | E85: 9 | F85: 9 | G85: 8 | H85: 1.5 | I85: -9 | J85: -8 | K85: -1.5
A86: 84 | B86: 42 | C86: 9 | D86: 2024-12-10 | E86: 7 | F86: -7 | G86: -8 | H86: -2.5 | I86: -8 | J86: -7 | K86: -2.5
A87: 85 | B87: 43 | C87: 9 | D87: 2024-12-10 | E87: 10 | F87: 10 | G87: 8 | H87: 1 | I87: 10 | J87: 10 | K87: 0
A88: 86 | B88: 43 | C88: 9 | D88: 2024-12-10 | E88: 8 | F88: -7 | G88: -8 | H88: -2.5 | I88: 7 | J88: 8 | K88: 2.5
A89: 87 | B89: 44 | C89: 9 | D89: 2024-12-10 | E89: 9 | F89: -9 | G89: -8 | H89: -1.5 | I89: 10 | J89: -8 | K89: -1
A90: 88 | B90: 44 | C90: 9 | D90: 2024-12-10 | E90: 8 | F90: 10 | G90: 8 | H90: 1 | I90: 6 | J90: 8 | K90: 3
A91: 89 | B91: 45 | C91: 9 | D91: 2024-12-10 | E91: 7 | F91: -5 | G91: -7 | H91: -4 | I91: 10 | J91: 9 | K91: 0.5
A92: 90 | B92: 45 | C92: 9 | D92: 2024-12-10 | E92: 6 | F92: -5 | G92: -6 | H92: -4.5 | I92: 6 | J92: 8 | K92: 3
A93: 91 | B93: 46 | C93: 10 | D93: 2024-12-10 | E93: 10 | F93: 10 | G93: -9 | H93: -0.5 | I93: 10 | J93: 10 | K93: 0
A94: 92 | B94: 46 | C94: 10 | D94: 2024-12-10 | E94: 6 | F94: -5 | G94: -6 | H94: -4.5 | I94: 7 | J94: 8 | K94: 2.5
A95: 93 | B95: 47 | C95: 10 | D95: 2024-12-10 | E95: 8 | F95: 8 | G95: 7 | H95: 2.5 | I95: 7 | J95: 8 | K95: 2.5
A96: 94 | B96: 47 | C96: 10 | D96: 2024-12-10 | E96: 8 | F96: -8 | G96: -7 | H96: -2.5 | I96: 10 | J96: -8 | K96: -1
A97: 95 | B97: 48 | C97: 10 | D97: 2024-12-10 | E97: 8 | F97: 9 | G97: 8 | H97: 1.5 | I97: 6 | J97: 8 | K97: 3
A98: 96 | B98: 48 | C98: 10 | D98: 2024-12-10 | E98: 9 | F98: -7 | G98: -8 | H98: -2.5 | I98: 10 | J98: 10 | K98: 0
A99: 97 | B99: 49 | C99: 10 | D99: 2024-12-10 | E99: 8 | F99: 8 | G99: 7 | H99: 2.5 | I99: -8 | J99: -7 | K99: -2.5
A100: 98 | B100: 49 | C100: 10 | D100: 2024-12-10 | E100: 6 | F100: 6 | G100: 4 | H100: 5 | I100: 10 | J100: 8 | K100: 1
A101: 99 | B101: 50 | C101: 10 | D101: 2024-12-10 | E101: 10 | F101: 10 | G101: 9 | H101: 0.5 | I101: 10 | J101: 9 | K101: 0.5
A102: 100 | B102: 50 | C102: 10 | D102: 2024-12-10 | E102: 8 | F102: -7 | G102: -8 | H102: -2.5 | I102: 9 | J102: 8 | K102: 1.5
A103: 101 | B103: 51 | C103: 11 | D103: 2024-12-10 | E103: 7 | F103: 10 | G103: 8 | H103: 1 | I103: 6 | J103: 7 | K103: 3.5
A104: 102 | B104: 51 | C104: 11 | D104: 2024-12-10 | E104: 8 | F104: -7 | G104: -8 | H104: -2.5 | I104: -7 | J104: -8 | K104: -2.5
A105: 103 | B105: 52 | C105: 11 | D105: 2024-12-10 | E105: 8 | F105: 10 | G105: 8 | H105: 1 | I105: 8 | J105: 7 | K105: 2.5
A106: 104 | B106: 52 | C106: 11 | D106: 2024-12-10 | E106: 6 | F106: 5 | G106: 6 | H106: 4.5 | I106: -9 | J106: -7 | K106: -2
A107: 105 | B107: 53 | C107: 11 | D107: 2024-12-10 | E107: 10 | F107: 10 | G107: -8 | H107: -1 | I107: 9 | J107: -9 | K107: 0
A108: 106 | B108: 53 | C108: 11 | D108: 2024-12-10 | E108: 6 | F108: 8 | G108: 7 | H108: 2.5 | I108: -6 | J108: -5 | K108: -4.5
A109: 107 | B109: 54 | C109: 11 | D109: 2024-12-10 | E109: 10 | F109: 10 | G109: 9 | H109: 0.5 | I109: 10 | J109: 10 | K109: 0
A110: 108 | B110: 54 | C110: 11 | D110: 2024-12-10 | E110: 7 | F110: 7 | G110: 6 | H110: 3.5 | I110: 5 | J110: 7 | K110: 4
A111: 109 | B111: 55 | C111: 11 | D111: 2024-12-10 | E111: 10 | F111: 10 | G111: 8 | H111: 1 | I111: 10 | J111: 10 | K111: 0
A112: 110 | B112: 55 | C112: 11 | D112: 2024-12-10 | E112: 8 | F112: 9 | G112: 7 | H112: 2 | I112: 6 | J112: 8 | K112: 3
A113: 111 | B113: 56 | C113: 12 | D113: 2024-12-10 | E113: 10 | F113: -8 | G113: 10 | H113: -1 | I113: 10 | J113: -9 | K113: -0.5
A114: 112 | B114: 56 | C114: 12 | D114: 2024-12-10 | E114: 8 | F114: 10 | G114: -8 | H114: -1 | I114: -8 | J114: -7 | K114: -2.5
A115: 113 | B115: 57 | C115: 12 | D115: 2024-12-10 | E115: 7 | F115: 5 | G115: 7 | H115: 4 | I115: 5 | J115: 7 | K115: 4
A116: 114 | B116: 57 | C116: 12 | D116: 2024-12-10 | E116: 6 | F116: -5 | G116: -6 | H116: -4.5 | I116: 10 | J116: -8 | K116: -1
A117: 115 | B117: 58 | C117: 12 | D117: 2024-12-10 | E117: 6 | F117: 9 | G117: 7 | H117: 2 | I117: 4 | J117: 5 | K117: 5.5
A118: 116 | B118: 58 | C118: 12 | D118: 2024-12-10 | E118: 6 | F118: -5 | G118: -6 | H118: -4.5 | I118: 7 | J118: 8 | K118: 2.5
A119: 117 | B119: 59 | C119: 12 | D119: 2024-12-10 | E119: 9 | F119: 9 | G119: 8 | H119: 1.5 | I119: 9 | J119: -8 | K119: -0.5
A120: 118 | B120: 59 | C120: 12 | D120: 2024-12-10 | E120: 7 | F120: 7 | G120: 5 | H120: 4 | I120: -7 | J120: -6 | K120: -3.5
A121: 119 | B121: 60 | C121: 12 | D121: 2024-12-10 | E121: 10 | F121: -8 | G121: 10 | H121: -1 | I121: 9 | J121: 9 | K121: 1
A122: 120 | B122: 60 | C122: 12 | D122: 2024-12-10 | E122: 8 | F122: 9 | G122: 8 | H122: 1.5 | I122: -8 | J122: -7 | K122: -2.5
A123: 121 | B123: 61 | C123: 13 | D123: 2024-12-11 | E123: 8 | F123: 8 | G123: 6 | H123: 3 | I123: 10 | J123: 10 | K123: 0
A124: 122 | B124: 61 | C124: 13 | D124: 2024-12-11 | E124: 7 | F124: 8 | G124: 7 | H124: 2.5 | I124: 7 | J124: 8 | K124: 2.5
A125: 123 | B125: 62 | C125: 13 | D125: 2024-12-11 | E125: 9 | F125: -9 | G125: -8 | H125: -1.5 | I125: 9 | J125: 8 | K125: 1.5
A126: 124 | B126: 62 | C126: 13 | D126: 2024-12-11 | E126: 8 | F126: 8 | G126: 7 | H126: 2.5 | I126: 10 | J126: 10 | K126: 0
A127: 125 | B127: 63 | C127: 13 | D127: 2024-12-11 | E127: 9 | F127: 10 | G127: 10 | H127: 0 | I127: 9 | J127: 8 | K127: 1.5
A128: 126 | B128: 63 | C128: 13 | D128: 2024-12-11 | E128: 9 | F128: 8 | G128: 9 | H128: 1.5 | I128: 7 | J128: 8 | K128: 2.5
A129: 127 | B129: 64 | C129: 13 | D129: 2024-12-11 | E129: 9 | F129: -9 | G129: -7 | H129: -2 | I129: 10 | J129: 10 | K129: 0
A130: 128 | B130: 64 | C130: 13 | D130: 2024-12-11 | E130: 6 | F130: 6 | G130: 5 | H130: 4.5 | I130: 7 | J130: 8 | K130: 2.5
A131: =IF(ISTEXT(A130),1,A130+1) -> 129 | B131: =IF(ISTEXT(B130),1,IF(B130=B129,B130+1,B130)) -> 65 | C131: 13 | D131: 2024-12-11 | E131: 9 | F131: -7 | G131: -8 | H131: -2.5 | I131: 10 | J131: 10 | K131: 0
A132: 130 | B132: 65 | C132: 13 | D132: 2024-12-11 | E132: 8 | F132: 7 | G132: 8 | H132: 2.5 | I132: 6 | J132: 7 | K132: 3.5
A133: 131 | B133: 66 | C133: 14 | D133: 2024-12-11 | E133: 9 | F133: 8 | G133: 9 | H133: 1.5 | I133: 8 | J133: 9 | K133: 1.5
A134: 132 | B134: 66 | C134: 14 | D134: 2024-12-11 | E134: 7 | F134: 6 | G134: 7 | H134: 3.5 | I134: 6 | J134: 7 | K134: 3.5
A135: 133 | B135: 67 | C135: 14 | D135: 2024-12-11 | E135: 9 | F135: 10 | G135: 10 | H135: 0 | I135: -8 | J135: -7 | K135: -2.5
A136: 134 | B136: 67 | C136: 14 | D136: 2024-12-11 | E136: 6 | F136: -4 | G136: -6 | H136: -5 | I136: 10 | J136: 10 | K136: 0
A137: 135 | B137: 68 | C137: 14 | D137: 2024-12-11 | E137: 9 | F137: -9 | G137: -8 | H137: -1.5 | I137: 10 | J137: -9 | K137: -0.5
A138: 136 | B138: 68 | C138: 14 | D138: 2024-12-11 | E138: 7 | F138: 6 | G138: 5 | H138: 4.5 | I138: 10 | J138: 10 | K138: 0
A139: 137 | B139: 69 | C139: 14 | D139: 2024-12-11 | E139: 5 | F139: 5 | G139: 3 | H139: 6 | I139: -9 | J139: -8 | K139: -1.5
A140: 138 | B140: 69 | C140: 14 | D140: 2024-12-11 | E140: 0 | F140: 0 | G140: 0 | H140: 10 | I140: 0 | J140: 0 | K140: 10
A141: 139 | B141: 70 | C141: 14 | D141: 2024-12-11 | E141: 9 | F141: -9 | G141: -8 | H141: -1.5 | I141: 9 | J141: 8 | K141: 1.5
A142: 140 | B142: 70 | C142: 14 | D142: 2024-12-11 | E142: 8 | F142: -6 | G142: -8 | H142: -3 | I142: -9 | J142: -8 | K142: -1.5
A143: 141 | B143: 71 | C143: 14 | D143: 2024-12-11 | E143: 8 | F143: -6 | G143: -8 | H143: -3 | I143: 10 | J143: 10 | K143: 0
A144: 142 | B144: 71 | C144: 14 | D144: 2024-12-11 | E144: 7 | F144: 7 | G144: 8 | H144: 2.5 | I144: -8 | J144: -7 | K144: -2.5
A145: 143 | B145: 72 | C145: 14 | D145: 2024-12-11 | E145: 8 | F145: 8 | G145: 7 | H145: 2.5 | I145: 10 | J145: 10 | K145: 0
A146: 144 | B146: 72 | C146: 14 | D146: 2024-12-11 | E146: 6 | F146: -4 | G146: -6 | H146: -5 | I146: 10 | J146: 10 | K146: 0
A147: 145 | B147: 73 | C147: 14 | D147: 2024-12-11 | E147: 8 | F147: -6 | G147: -8 | H147: -3 | I147: 10 | J147: 10 | K147: 0
A148: 146 | B148: 73 | C148: 14 | D148: 2024-12-11 | E148: 8 | F148: -9 | G148: -8 | H148: -1.5 | I148: 6 | J148: 8 | K148: 3
A149: 147 | B149: 74 | C149: 14 | D149: 2024-12-11 | E149: 9 | F149: 9 | G149: 8 | H149: 1.5 | I149: 7 | J149: 8 | K149: 2.5
A150: 148 | B150: 74 | C150: 14 | D150: 2024-12-11 | E150: 8 | F150: 8 | G150: 7 | H150: 2.5 | I150: -9 | J150: 8 | K150: 0.5
A151: 149 | B151: 75 | C151: 14 | D151: 2024-12-11 | E151: 8 | F151: -7 | G151: -8 | H151: -2.5 | I151: 8 | J151: 9 | K151: 1.5
A152: 150 | B152: 75 | C152: 14 | D152: 2024-12-11 | E152: 6 | F152: -4 | G152: -6 | H152: -5 | I152: 10 | J152: 10 | K152: 0
A153: 151 | B153: 76 | C153: 15 | D153: 2024-12-17 | E153: 9 | F153: 10 | G153: 8 | H153: 1 | I153: 9 | J153: 8 | K153: 1.5
A154: 152 | B154: 76 | C154: 15 | D154: 2024-12-17 | E154: 9 | F154: -9 | G154: -8 | H154: -1.5 | I154: -9 | J154: -8 | K154: -1.5
A155: 153 | B155: 77 | C155: 15 | D155: 2024-12-17 | E155: 10 | F155: 9 | G155: 8 | H155: 1.5 | I155: 10 | J155: 10 | K155: 0
A156: 154 | B156: 77 | C156: 15 | D156: 2024-12-17 | E156: 6 | F156: -4 | G156: -6 | H156: -5 | I156: 10 | J156: 10 | K156: 0
A157: 155 | B157: 78 | C157: 15 | D157: 2024-12-17 | E157: 9 | F157: 9 | G157: 8 | H157: 1.5 | I157: 10 | J157: 10 | K157: 0
A158: 156 | B158: 78 | C158: 15 | D158: 2024-12-17 | E158: 7 | F158: 7 | G158: 6 | H158: 3.5 | I158: 7 | J158: 6 | K158: 3.5
A159: 157 | B159: 79 | C159: 15 | D159: 2024-12-17 | E159: 9 | F159: -9 | G159: -10 | H159: -0.5 | I159: 7 | J159: 8 | K159: 2.5
A160: 158 | B160: 79 | C160: 15 | D160: 2024-12-17 | E160: 9 | F160: -7 | G160: -8 | H160: -2.5 | I160: -9 | J160: -7 | K160: -2
A161: 159 | B161: 80 | C161: 15 | D161: 2024-12-17 | E161: 10 | F161: 10 | G161: 9 | H161: 0.5 | I161: 10 | J161: 9 | K161: 0.5
A162: 160 | B162: 80 | C162: 15 | D162: 2024-12-17 | E162: 8 | F162: 8 | G162: 7 | H162: 2.5 | I162: 8 | J162: 7 | K162: 2.5
A163: 161 | B163: 81 | C163: 16 | D163: 2024-12-17 | E163: 8 | F163: 8 | G163: 7 | H163: 2.5 | I163: -9 | J163: -8 | K163: -1.5
A164: 162 | B164: 81 | C164: 16 | D164: 2024-12-17 | E164: 7 | F164: -6 | G164: -8 | H164: -3 | I164: 6 | J164: 7 | K164: 3.5
A165: 163 | B165: 82 | C165: 16 | D165: 2024-12-17 | E165: 9 | F165: 10 | G165: 10 | H165: 0 | I165: 7 | J165: 8 | K165: 2.5
A166: 164 | B166: 82 | C166: 16 | D166: 2024-12-17 | E166: 8 | F166: 9 | G166: 7 | H166: 2 | I166: 7 | J166: 8 | K166: 2.5
A167: 165 | B167: 83 | C167: 16 | D167: 2024-12-17 | E167: 9 | F167: 9 | G167: 8 | H167: 1.5 | I167: 7 | J167: 9 | K167: 2
A168: 166 | B168: 83 | C168: 16 | D168: 2024-12-17 | E168: 8 | F168: 7 | G168: 8 | H168: 2.5 | I168: -8 | J168: -7 | K168: -2.5
A169: 167 | B169: 84 | C169: 16 | D169: 2024-12-17 | E169: 7 | F169: 8 | G169: 7 | H169: 2.5 | I169: 6 | J169: 7 | K169: 3.5
A170: 168 | B170: 84 | C170: 16 | D170: 2024-12-17 | E170: 6 | F170: 7 | G170: 6 | H170: 3.5 | I170: 5 | J170: 6 | K170: 4.5
A171: 169 | B171: 85 | C171: 16 | D171: 2024-12-17 | E171: 8 | F171: 8 | G171: 7 | H171: 2.5 | I171: 10 | J171: 10 | K171: 0
A172: 170 | B172: 85 | C172: 16 | D172: 2024-12-17 | E172: 7 | F172: 6 | G172: 7 | H172: 3.5 | I172: 8 | J172: 9 | K172: 1.5
A173: 171 | B173: 86 | C173: 17 | D173: 2024-12-17 | E173: 8 | F173: 8 | G173: 7 | H173: 2.5 | I173: 8 | J173: 9 | K173: 1.5
A174: 172 | B174: 86 | C174: 17 | D174: 2024-12-17 | E174: 6 | F174: -6 | G174: -7 | H174: -3.5 | I174: 6 | J174: 5 | K174: 4.5
A175: 173 | B175: 87 | C175: 17 | D175: 2024-12-17 | E175: 10 | F175: 10 | G175: 10 | H175: 0 | I175: 10 | J175: 9 | K175: 0.5
A176: 174 | B176: 87 | C176: 17 | D176: 2024-12-17 | E176: 10 | F176: 9 | G176: 10 | H176: 0.5 | I176: 10 | J176: 10 | K176: 0
A177: 175 | B177: 88 | C177: 17 | D177: 2024-12-17 | E177: 8 | F177: -7 | G177: -8 | H177: -2.5 | I177: 7 | J177: 9 | K177: 2
A178: 176 | B178: 88 | C178: 17 | D178: 2024-12-17 | E178: 7 | F178: 7 | G178: 6 | H178: 3.5 | I178: -9 | J178: -7 | K178: -2
A179: 177 | B179: 89 | C179: 17 | D179: 2024-12-17 | E179: 8 | F179: 8 | G179: 7 | H179: 2.5 | I179: 8 | J179: 7 | K179: 2.5
A180: 178 | B180: 89 | C180: 17 | D180: 2024-12-17 | E180: 8 | F180: 8 | G180: 7 | H180: 2.5 | I180: 8 | J180: 7 | K180: 2.5
A181: 179 | B181: 90 | C181: 17 | D181: 2024-12-17 | E181: 8 | F181: 10 | G181: 10 | H181: 0 | I181: 5 | J181: 8 | K181: 3.5
A182: 180 | B182: 90 | C182: 17 | D182: 2024-12-17 | E182: 8 | F182: -9 | G182: -8 | H182: -1.5 | I182: -8 | J182: -7 | K182: -2.5
A183: 181 | B183: 91 | C183: 18 | D183: 2024-12-17 | E183: 9 | F183: 9 | G183: 8 | H183: 1.5 | I183: 10 | J183: 10 | K183: 0
A184: 182 | B184: 91 | C184: 18 | D184: 2024-12-17 | E184: 8 | F184: 9 | G184: 8 | H184: 1.5 | I184: -7 | J184: -6 | K184: -3.5
A185: 183 | B185: 92 | C185: 18 | D185: 2024-12-17 | E185: 9 | F185: 9 | G185: 8 | H185: 1.5 | I185: 8 | J185: 9 | K185: 1.5
A186: 184 | B186: 92 | C186: 18 | D186: 2024-12-17 | E186: 5 | F186: 5 | G186: 4 | H186: 5.5 | I186: -8 | J186: -7 | K186: -2.5
A187: 185 | B187: 93 | C187: 18 | D187: 2024-12-17 | E187: 8 | F187: 8 | G187: 7 | H187: 2.5 | I187: 8 | J187: 7 | K187: 2.5
A188: 186 | B188: 93 | C188: 18 | D188: 2024-12-17 | E188: 6 | F188: 6 | G188: 8 | H188: 3 | I188: -6 | J188: -5 | K188: -4.5
A189: 187 | B189: 94 | C189: 18 | D189: 2024-12-17 | E189: 9 | F189: 9 | G189: 8 | H189: 1.5 | I189: -9 | J189: -8 | K189: -1.5
A190: 188 | B190: 94 | C190: 18 | D190: 2024-12-17 | E190: 6 | F190: 5 | G190: 7 | H190: 4 | I190: -7 | J190: -6 | K190: -3.5
A191: 189 | B191: 95 | C191: 18 | D191: 2024-12-17 | E191: 7 | F191: 8 | G191: 7 | H191: 2.5 | I191: 6 | J191: 7 | K191: 3.5
A192: 190 | B192: 95 | C192: 18 | D192: 2024-12-17 | E192: 8 | F192: 8 | G192: 7 | H192: 2.5 | I192: -9 | J192: -8 | K192: -1.5
A193: 191 | B193: 96 | C193: 19 | D193: 2024-12-17 | E193: 8 | F193: 8 | G193: 7 | H193: 2.5 | I193: 9 | J193: 8 | K193: 1.5
A194: 192 | B194: 96 | C194: 19 | D194: 2024-12-17 | E194: 4 | F194: 4 | G194: 3 | H194: 6.5 | I194: -8 | J194: -7 | K194: -2.5
A195: =IF(ISTEXT(A194),1,A194+1) -> 193 | B195: =IF(ISTEXT(B194),1,IF(B194=B193,B194+1,B194)) -> 97 | C195: 19 | D195: 2024-12-17 | E195: 10 | F195: 10 | G195: -9 | H195: -0.5 | I195: 9 | J195: 10 | K195: 0.5
A196: 194 | B196: 97 | C196: 19 | D196: 2024-12-17 | E196: 6 | F196: 8 | G196: 6 | H196: 3 | I196: 4 | J196: 6 | K196: 5
A197: 195 | B197: 98 | C197: 19 | D197: 2024-12-17 | E197: 10 | F197: 10 | G197: 9 | H197: 0.5 | I197: 10 | J197: 10 | K197: 0
A198: 196 | B198: 98 | C198: 19 | D198: 2024-12-17 | E198: 5 | F198: 10 | G198: 8 | H198: 1 | I198: 5 | J198: 4 | K198: 5.5
A199: 197 | B199: 99 | C199: 19 | D199: 2024-12-17 | E199: 8 | F199: 9 | G199: 8 | H199: 1.5 | I199: 7 | J199: 8 | K199: 2.5
A200: 198 | B200: 99 | C200: 19 | D200: 2024-12-17 | E200: 8 | F200: -6 | G200: -8 | H200: -3 | I200: -9 | J200: 8 | K200: 0.5
A201: 199 | B201: 100 | C201: 19 | D201: 2024-12-17 | E201: 8 | F201: 8 | G201: 6 | H201: 3 | I201: 8 | J201: 9 | K201: 1.5
... 201 more rows
